Body,Body Name,Transaction Number,Invoice Ref.,Supplier Name,Expense Code,Expense Type,Date, Amount
http://statistics.data.gov.uk/id/local-authority-district/23UB,Cheltenham Borough Council,438533,1011-019,A. P. DELL,C-0T10H1-3151,Sean Lock-Specialist Equipment,16-Dec-10,130.00
http://statistics.data.gov.uk/id/local-authority-district/23UB,Cheltenham Borough Council,438533,1011-019,A. P. DELL,C-0T13H1-3151,Sensational Six-Specialist Equipment,16-Dec-10,130.00
http://statistics.data.gov.uk/id/local-authority-district/23UB,Cheltenham Borough Council,438533,1011-019,A. P. DELL,C-0T19G1-3151,John Bishop-Specialist Equipment,16-Dec-10,130.00
http://statistics.data.gov.uk/id/local-authority-district/23UB,Cheltenham Borough Council,438533,1011-019,A. P. DELL,C-0T20H1-3151,Jethro-Specialist Equipment,16-Dec-10,130.00
http://statistics.data.gov.uk/id/local-authority-district/23UB,Cheltenham Borough Council,438533,1011-019,A. P. DELL,C-0T21G1-3151,Mugenkyo Drumrs-Specialist Equipment,16-Dec-10,130.00
http://statistics.data.gov.uk/id/local-authority-district/23UB,Cheltenham Borough Council,438533,1011-019,A. P. DELL,C-0T23H1-3151,Mark Watson-Specialist Equipment,16-Dec-10,130.00
http://statistics.data.gov.uk/id/local-authority-district/23UB,Cheltenham Borough Council,438533,1011-019,A. P. DELL,C-0T27H1-3151,Paul Carrack-Specialist Equipment,16-Dec-10,130.00
http://statistics.data.gov.uk/id/local-authority-district/23UB,Cheltenham Borough Council,438965,137944,A&E FIRE EQUIPMENT LTD,C-D13550-1115,Area Off -E.Hse-Fire prevention,16-Dec-10,53.58
http://statistics.data.gov.uk/id/local-authority-district/23UB,Cheltenham Borough Council,438817,138414,A&E FIRE EQUIPMENT LTD,C-D30200-1124,Misc Props & Ld-Berkeley Mews  Repairs,16-Dec-10,5.64
http://statistics.data.gov.uk/id/local-authority-district/23UB,Cheltenham Borough Council,438805,138231,A&E FIRE EQUIPMENT LTD,C-L41100-1808,AG & M-RM-Routine works,16-Dec-10,113.31
http://statistics.data.gov.uk/id/local-authority-district/23UB,Cheltenham Borough Council,438802,138218,A&E FIRE EQUIPMENT LTD,C-L21200-1808,Pump Room-RM-Routine works,16-Dec-10,34.78
http://statistics.data.gov.uk/id/local-authority-district/23UB,Cheltenham Borough Council,438803,138219,A&E FIRE EQUIPMENT LTD,C-D13100-1808,Muni Off Blgs-RM-Routine works,16-Dec-10,146.64
http://statistics.data.gov.uk/id/local-authority-district/23UB,Cheltenham Borough Council,438804,138220,A&E FIRE EQUIPMENT LTD,C-C22140-1808,Nursery-RM-Routine works,16-Dec-10,89.01
http://statistics.data.gov.uk/id/local-authority-district/23UB,Cheltenham Borough Council,438806,138291,A&E FIRE EQUIPMENT LTD,C-L41100-1808,AG & M-RM-Routine works,16-Dec-10,32.40
http://statistics.data.gov.uk/id/local-authority-district/23UB,Cheltenham Borough Council,438807,138298,A&E FIRE EQUIPMENT LTD,C-L41100-1808,AG & M-RM-Routine works,16-Dec-10,32.40
http://statistics.data.gov.uk/id/local-authority-district/23UB,Cheltenham Borough Council,438808,138304,A&E FIRE EQUIPMENT LTD,C-L21100-1808,Town Hall-RM-Routine works,16-Dec-10,124.08
http://statistics.data.gov.uk/id/local-authority-district/23UB,Cheltenham Borough Council,438809,138335,A&E FIRE EQUIPMENT LTD,C-D13100-1808,Muni Off Blgs-RM-Routine works,16-Dec-10,260.24
http://statistics.data.gov.uk/id/local-authority-district/23UB,Cheltenham Borough Council,438810,138406,A&E FIRE EQUIPMENT LTD,C-C23140-1808,Public Convnces-RM-Routine works,16-Dec-10,2.82
http://statistics.data.gov.uk/id/local-authority-district/23UB,Cheltenham Borough Council,438811,138407,A&E FIRE EQUIPMENT LTD,C-C22120-1808,Sports & Open S-RM-Routine works,16-Dec-10,4.70
http://statistics.data.gov.uk/id/local-authority-district/23UB,Cheltenham Borough Council,438812,138408,A&E FIRE EQUIPMENT LTD,C-C22120-1808,Sports & Open S-RM-Routine works,16-Dec-10,7.52
http://statistics.data.gov.uk/id/local-authority-district/23UB,Cheltenham Borough Council,438813,138409,A&E FIRE EQUIPMENT LTD,C-C22120-1808,Sports & Open S-RM-Routine works,16-Dec-10,3.76
http://statistics.data.gov.uk/id/local-authority-district/23UB,Cheltenham Borough Council,438814,138410,A&E FIRE EQUIPMENT LTD,C-C22120-1808,Sports & Open S-RM-Routine works,16-Dec-10,1.88
http://statistics.data.gov.uk/id/local-authority-district/23UB,Cheltenham Borough Council,438815,138411,A&E FIRE EQUIPMENT LTD,C-C22120-1808,Sports & Open S-RM-Routine works,16-Dec-10,1.88
http://statistics.data.gov.uk/id/local-authority-district/23UB,Cheltenham Borough Council,438816,138412,A&E FIRE EQUIPMENT LTD,C-C22120-1808,Sports & Open S-RM-Routine works,16-Dec-10,9.40
http://statistics.data.gov.uk/id/local-authority-district/23UB,Cheltenham Borough Council,438800,138413,A&E FIRE EQUIPMENT LTD,C-C22120-1808,Sports & Open S-RM-Routine works,16-Dec-10,6.58
http://statistics.data.gov.uk/id/local-authority-district/23UB,Cheltenham Borough Council,438818,138415,A&E FIRE EQUIPMENT LTD,C-C22120-1808,Sports & Open S-RM-Routine works,16-Dec-10,1.88
http://statistics.data.gov.uk/id/local-authority-district/23UB,Cheltenham Borough Council,438819,138416,A&E FIRE EQUIPMENT LTD,C-C22120-1808,Sports & Open S-RM-Routine works,16-Dec-10,2.82
http://statistics.data.gov.uk/id/local-authority-district/23UB,Cheltenham Borough Council,438820,138417,A&E FIRE EQUIPMENT LTD,C-C23140-1808,Public Convnces-RM-Routine works,16-Dec-10,2.82
http://statistics.data.gov.uk/id/local-authority-district/23UB,Cheltenham Borough Council,438821,138418,A&E FIRE EQUIPMENT LTD,C-C23140-1808,Public Convnces-RM-Routine works,16-Dec-10,2.82
http://statistics.data.gov.uk/id/local-authority-district/23UB,Cheltenham Borough Council,438822,138419,A&E FIRE EQUIPMENT LTD,C-C22120-1808,Sports & Open S-RM-Routine works,16-Dec-10,2.82
http://statistics.data.gov.uk/id/local-authority-district/23UB,Cheltenham Borough Council,438823,138420,A&E FIRE EQUIPMENT LTD,C-C22120-1808,Sports & Open S-RM-Routine works,16-Dec-10,6.58
http://statistics.data.gov.uk/id/local-authority-district/23UB,Cheltenham Borough Council,438824,138421,A&E FIRE EQUIPMENT LTD,C-C23140-1808,Public Convnces-RM-Routine works,16-Dec-10,9.40
http://statistics.data.gov.uk/id/local-authority-district/23UB,Cheltenham Borough Council,438825,138422,A&E FIRE EQUIPMENT LTD,C-C23140-1808,Public Convnces-RM-Routine works,16-Dec-10,3.76
http://statistics.data.gov.uk/id/local-authority-district/23UB,Cheltenham Borough Council,438826,138493,A&E FIRE EQUIPMENT LTD,C-D14100-1808,Depot Building-RM-Routine works,16-Dec-10,85.61
http://statistics.data.gov.uk/id/local-authority-district/23UB,Cheltenham Borough Council,438827,138499,A&E FIRE EQUIPMENT LTD,C-L21100-1808,Town Hall-RM-Routine works,16-Dec-10,196.08
http://statistics.data.gov.uk/id/local-authority-district/23UB,Cheltenham Borough Council,438828,138501,A&E FIRE EQUIPMENT LTD,C-L21200-1808,Pump Room-RM-Routine works,16-Dec-10,34.78
http://statistics.data.gov.uk/id/local-authority-district/23UB,Cheltenham Borough Council,438829,138509,A&E FIRE EQUIPMENT LTD,C-L11500-1808,Rec Facilities-RM-Routine works,16-Dec-10,105.66
http://statistics.data.gov.uk/id/local-authority-district/23UB,Cheltenham Borough Council,438830,138510,A&E FIRE EQUIPMENT LTD,C-L11500-1808,Rec Facilities-RM-Routine works,16-Dec-10,381.26
http://statistics.data.gov.uk/id/local-authority-district/23UB,Cheltenham Borough Council,438831,138511,A&E FIRE EQUIPMENT LTD,C-L11500-1808,Rec Facilities-RM-Routine works,16-Dec-10,95.16
http://statistics.data.gov.uk/id/local-authority-district/23UB,Cheltenham Borough Council,438835,138581,A&E FIRE EQUIPMENT LTD,C-D14100-1808,Depot Building-RM-Routine works,16-Dec-10,99.92
http://statistics.data.gov.uk/id/local-authority-district/23UB,Cheltenham Borough Council,438832,138526,A&E FIRE EQUIPMENT LTD,C-L41100-1808,AG & M-RM-Routine works,16-Dec-10,28.20
http://statistics.data.gov.uk/id/local-authority-district/23UB,Cheltenham Borough Council,438833,138528,A&E FIRE EQUIPMENT LTD,C-E21100-1808,Car Prks-Off St-RM-Routine works,16-Dec-10,45.12
http://statistics.data.gov.uk/id/local-authority-district/23UB,Cheltenham Borough Council,438834,138540,A&E FIRE EQUIPMENT LTD,C-D33950-1808,Resource Centre-RM-Routine works,16-Dec-10,207.16
http://statistics.data.gov.uk/id/local-authority-district/23UB,Cheltenham Borough Council,438836,138593,A&E FIRE EQUIPMENT LTD,C-L41100-1808,AG & M-RM-Routine works,16-Dec-10,10.34
http://statistics.data.gov.uk/id/local-authority-district/23UB,Cheltenham Borough Council,438837,138741,A&E FIRE EQUIPMENT LTD,C-L21400-1808,Stanton Room-RM-Routine works,16-Dec-10,4.50
http://statistics.data.gov.uk/id/local-authority-district/23UB,Cheltenham Borough Council,438251,N11049,AIREY CONSULTANCY SERVICES LTD,C-D12420-3608,Bens jnt train-Trainers Fees,08-Dec-10,"1,240.00"
http://statistics.data.gov.uk/id/local-authority-district/23UB,Cheltenham Borough Council,438400,935573,ALLCOOPERS LTD,C-L41100-1114,AG & M-Security systems,08-Dec-10,776.00
http://statistics.data.gov.uk/id/local-authority-district/23UB,Cheltenham Borough Council,438794,935125,ALLCOOPERS LTD,C-L41100-1114,AG & M-Security systems,16-Dec-10,220.00
http://statistics.data.gov.uk/id/local-authority-district/23UB,Cheltenham Borough Council,438794,935125,ALLCOOPERS LTD,C-L41100-1114,AG & M-Security systems,16-Dec-10,80.00
http://statistics.data.gov.uk/id/local-authority-district/23UB,Cheltenham Borough Council,438794,935125,ALLCOOPERS LTD,C-L41100-1114,AG & M-Security systems,16-Dec-10,150.00
http://statistics.data.gov.uk/id/local-authority-district/23UB,Cheltenham Borough Council,438795,935126,ALLCOOPERS LTD,C-L41100-1114,AG & M-Security systems,16-Dec-10,20.00
http://statistics.data.gov.uk/id/local-authority-district/23UB,Cheltenham Borough Council,438795,935126,ALLCOOPERS LTD,C-L41100-1114,AG & M-Security systems,16-Dec-10,100.00
http://statistics.data.gov.uk/id/local-authority-district/23UB,Cheltenham Borough Council,438237,49542,ALPHA COLOUR PRINTERS LTD,C-D21100-3401,Dem Process-Printing - general,08-Dec-10,25.00
http://statistics.data.gov.uk/id/local-authority-district/23UB,Cheltenham Borough Council,438235,49553,ALPHA COLOUR PRINTERS LTD,C-D12430-3410,Housing & CT Be-Stationery & office supp,08-Dec-10,443.00
http://statistics.data.gov.uk/id/local-authority-district/23UB,Cheltenham Borough Council,438384,49557,ALPHA COLOUR PRINTERS LTD,C-E63100-3401,Cemetery & Crem-Printing - general,08-Dec-10,178.00
http://statistics.data.gov.uk/id/local-authority-district/23UB,Cheltenham Borough Council,438236,49564,ALPHA COLOUR PRINTERS LTD,C-D21100-3401,Dem Process-Printing - general,08-Dec-10,245.00
http://statistics.data.gov.uk/id/local-authority-district/23UB,Cheltenham Borough Council,438236,49564,ALPHA COLOUR PRINTERS LTD,C-D21100-3403,Dem Process-Printing-Committee Papers,08-Dec-10,208.00
http://statistics.data.gov.uk/id/local-authority-district/23UB,Cheltenham Borough Council,438541,49508,ALPHA COLOUR PRINTERS LTD,C-0T11H1-3528,Lon Mozart Play-Programme costs,16-Dec-10,119.00
http://statistics.data.gov.uk/id/local-authority-district/23UB,Cheltenham Borough Council,438784,49541,ALPHA COLOUR PRINTERS LTD,C-N72800-3410,Stationery Hldg-Stationery & office supp,16-Dec-10,336.00
http://statistics.data.gov.uk/id/local-authority-district/23UB,Cheltenham Borough Council,438540,49543,ALPHA COLOUR PRINTERS LTD,C-D12300-3401,Personnel and P-Printing - general,16-Dec-10,"1,301.00"
http://statistics.data.gov.uk/id/local-authority-district/23UB,Cheltenham Borough Council,438846,49554,ALPHA COLOUR PRINTERS LTD,C-D21100-3401,Dem Process-Printing - general,16-Dec-10,105.00
http://statistics.data.gov.uk/id/local-authority-district/23UB,Cheltenham Borough Council,438500,49555,ALPHA COLOUR PRINTERS LTD,C-D12480-3401,Business Revenu-Printing - general,16-Dec-10,268.00
http://statistics.data.gov.uk/id/local-authority-district/23UB,Cheltenham Borough Council,438725,49556,ALPHA COLOUR PRINTERS LTD,C-L16100-3406,Holiday Rec-Printing-Promotion/Mkting,16-Dec-10,551.00
http://statistics.data.gov.uk/id/local-authority-district/23UB,Cheltenham Borough Council,438847,49571,ALPHA COLOUR PRINTERS LTD,C-D21100-3403,Dem Process-Printing-Committee Papers,16-Dec-10,103.00
http://statistics.data.gov.uk/id/local-authority-district/23UB,Cheltenham Borough Council,438222,INV126330,AMENITY LANDSCAPE SERVICES LTD,C-C22105-3122,Hsg Forecourts-Materials-Extra Works,08-Dec-10,139.50
http://statistics.data.gov.uk/id/local-authority-district/23UB,Cheltenham Borough Council,438221,INV126331,AMENITY LANDSCAPE SERVICES LTD,C-C22140-3123,Nursery-Materials-Int Landscaping,08-Dec-10,"1,395.00"
http://statistics.data.gov.uk/id/local-authority-district/23UB,Cheltenham Borough Council,438380,24770,ARKELL AND HURCOMBE BRONZE WORK LTD,C-E63100-3111,Cemetery & Crem-Goods purch for resale,08-Dec-10,360.00
http://statistics.data.gov.uk/id/local-authority-district/23UB,Cheltenham Borough Council,438381,24771,ARKELL AND HURCOMBE BRONZE WORK LTD,C-E63100-3111,Cemetery & Crem-Goods purch for resale,08-Dec-10,756.00
http://statistics.data.gov.uk/id/local-authority-district/23UB,Cheltenham Borough Council,438383,24772,ARKELL AND HURCOMBE BRONZE WORK LTD,C-E63100-3111,Cemetery & Crem-Goods purch for resale,08-Dec-10,36.00
http://statistics.data.gov.uk/id/local-authority-district/23UB,Cheltenham Borough Council,438383,24772,ARKELL AND HURCOMBE BRONZE WORK LTD,C-E63100-3111,Cemetery & Crem-Goods purch for resale,08-Dec-10,612.00
http://statistics.data.gov.uk/id/local-authority-district/23UB,Cheltenham Borough Council,438387,24806,ARKELL AND HURCOMBE BRONZE WORK LTD,C-E63100-3111,Cemetery & Crem-Goods purch for resale,08-Dec-10,324.00
http://statistics.data.gov.uk/id/local-authority-district/23UB,Cheltenham Borough Council,438395,10322,ARTFUL LIMITED,C-B51120-3920,Develt Con-Advertising,08-Dec-10,"2,546.96"
http://statistics.data.gov.uk/id/local-authority-district/23UB,Cheltenham Borough Council,438443,12873,ART WORKS DESIGN CONSULTANTS (CHELT) LTD,C-L31100-3510,TIC-Promotion & Marketing,09-Dec-10,326.00
http://statistics.data.gov.uk/id/local-authority-district/23UB,Cheltenham Borough Council,438471,12925,ART WORKS DESIGN CONSULTANTS (CHELT) LTD,C-0T50M0-3406,Lunchtime Recit-Printing-Promotion/Mktin,09-Dec-10,426.00
http://statistics.data.gov.uk/id/local-authority-district/23UB,Cheltenham Borough Council,438744,12888,ART WORKS DESIGN CONSULTANTS (CHELT) LTD,C-L31100-3558,TIC-Conference Mkt/Promotion,16-Dec-10,70.00
http://statistics.data.gov.uk/id/local-authority-district/23UB,Cheltenham Borough Council,438743,12891,ART WORKS DESIGN CONSULTANTS (CHELT) LTD,C-L31100-3510,TIC-Promotion & Marketing,16-Dec-10,50.00
http://statistics.data.gov.uk/id/local-authority-district/23UB,Cheltenham Borough Council,438745,12913,ART WORKS DESIGN CONSULTANTS (CHELT) LTD,C-L31100-3510,TIC-Promotion & Marketing,16-Dec-10,400.00
http://statistics.data.gov.uk/id/local-authority-district/23UB,Cheltenham Borough Council,439011,12912,ART WORKS DESIGN CONSULTANTS (CHELT) LTD,C-L31100-3510,TIC-Promotion & Marketing,20-Dec-10,"3,420.00"
http://statistics.data.gov.uk/id/local-authority-district/23UB,Cheltenham Borough Council,438752,11075,ASKAS,C-N42250-3110,Stores stock-Materials,16-Dec-10,336.77
http://statistics.data.gov.uk/id/local-authority-district/23UB,Cheltenham Borough Council,438752,11075,ASKAS,C-N42250-3110,Stores stock-Materials,16-Dec-10,376.39
http://statistics.data.gov.uk/id/local-authority-district/23UB,Cheltenham Borough Council,438752,11075,ASKAS,C-N42250-3110,Stores stock-Materials,16-Dec-10,198.10
http://statistics.data.gov.uk/id/local-authority-district/23UB,Cheltenham Borough Council,438527,70717,ATS EUROMASTER LTD,C-C24100-3501,Fleet Maint-Hire of outside services,16-Dec-10,"2,959.18"
http://statistics.data.gov.uk/id/local-authority-district/23UB,Cheltenham Borough Council,438041,4034284,THE AUDIT COMMISSION FOR LOCAL AUTHORITI,C-D21200-3507,Corp Mgt-Audit Commission fees,03-Dec-10,"1,150.00"
http://statistics.data.gov.uk/id/local-authority-district/23UB,Cheltenham Borough Council,438663,SIN002072,AVALON PROMOTIONS LIMITED,C-0T24H1-3568,Redacted-Artist Fees,16-Dec-10,868.40
http://statistics.data.gov.uk/id/local-authority-district/23UB,Cheltenham Borough Council,438663,SIN002072,AVALON PROMOTIONS LIMITED,C-Z12210-9271,Box Off A/C-CBC Invoices Paid,16-Dec-10,-144.00
http://statistics.data.gov.uk/id/local-authority-district/23UB,Cheltenham Borough Council,439093,GRANT,AVICENNA DESIGN LIMITED,C-D34400-3862,Bus & Econ Dev-Grants - Local G.E.A. Con,23-Dec-10,"1,250.00"
http://statistics.data.gov.uk/id/local-authority-district/23UB,Cheltenham Borough Council,439010,FINAL SETTLEME,JAN AYERS,C-N13125-9205,ASH Ledger-Town Hall Invoices Paid,20-Dec-10,"-4,002.47"
http://statistics.data.gov.uk/id/local-authority-district/23UB,Cheltenham Borough Council,439010,FINAL SETTLEME,JAN AYERS,C-Z12210-9138,Box Off A/C-TH Hirers Tkt Pd out,20-Dec-10,"-6,000.00"
http://statistics.data.gov.uk/id/local-authority-district/23UB,Cheltenham Borough Council,439010,FINAL SETTLEME,JAN AYERS,C-Z12210-9138,Box Off A/C-TH Hirers Tkt Pd out,20-Dec-10,"15,820.00"
http://statistics.data.gov.uk/id/local-authority-district/23UB,Cheltenham Borough Council,439010,FINAL SETTLEME,JAN AYERS,C-Z12210-9276,Box Off A/C-Hirers Invoices Pd,20-Dec-10,"-2,720.00"
http://statistics.data.gov.uk/id/local-authority-district/23UB,Cheltenham Borough Council,438728,2092432,BAKER ROSS LIMITED,C-L16100-3104,Holiday Rec-Sports & play equipment,16-Dec-10,102.13
http://statistics.data.gov.uk/id/local-authority-district/23UB,Cheltenham Borough Council,438728,2092432,BAKER ROSS LIMITED,C-L16100-3104,Holiday Rec-Sports & play equipment,16-Dec-10,29.49
http://statistics.data.gov.uk/id/local-authority-district/23UB,Cheltenham Borough Council,438728,2092432,BAKER ROSS LIMITED,C-L16100-3104,Holiday Rec-Sports & play equipment,16-Dec-10,15.23
http://statistics.data.gov.uk/id/local-authority-district/23UB,Cheltenham Borough Council,438728,2092432,BAKER ROSS LIMITED,C-L16100-3104,Holiday Rec-Sports & play equipment,16-Dec-10,91.91
http://statistics.data.gov.uk/id/local-authority-district/23UB,Cheltenham Borough Council,438728,2092432,BAKER ROSS LIMITED,C-L16100-3104,Holiday Rec-Sports & play equipment,16-Dec-10,9.83
http://statistics.data.gov.uk/id/local-authority-district/23UB,Cheltenham Borough Council,438728,2092432,BAKER ROSS LIMITED,C-L16100-3104,Holiday Rec-Sports & play equipment,16-Dec-10,5.87
http://statistics.data.gov.uk/id/local-authority-district/23UB,Cheltenham Borough Council,438728,2092432,BAKER ROSS LIMITED,C-L16100-3104,Holiday Rec-Sports & play equipment,16-Dec-10,72.77
http://statistics.data.gov.uk/id/local-authority-district/23UB,Cheltenham Borough Council,438728,2092432,BAKER ROSS LIMITED,C-L16100-3104,Holiday Rec-Sports & play equipment,16-Dec-10,23.80
http://statistics.data.gov.uk/id/local-authority-district/23UB,Cheltenham Borough Council,438728,2092432,BAKER ROSS LIMITED,C-L16100-3104,Holiday Rec-Sports & play equipment,16-Dec-10,86.81
http://statistics.data.gov.uk/id/local-authority-district/23UB,Cheltenham Borough Council,438728,2092432,BAKER ROSS LIMITED,C-L16100-3104,Holiday Rec-Sports & play equipment,16-Dec-10,56.17
http://statistics.data.gov.uk/id/local-authority-district/23UB,Cheltenham Borough Council,438728,2092432,BAKER ROSS LIMITED,C-L16100-3104,Holiday Rec-Sports & play equipment,16-Dec-10,29.49
http://statistics.data.gov.uk/id/local-authority-district/23UB,Cheltenham Borough Council,438728,2092432,BAKER ROSS LIMITED,C-L16100-3104,Holiday Rec-Sports & play equipment,16-Dec-10,147.06
http://statistics.data.gov.uk/id/local-authority-district/23UB,Cheltenham Borough Council,438728,2092432,BAKER ROSS LIMITED,C-L16100-3104,Holiday Rec-Sports & play equipment,16-Dec-10,44.12
http://statistics.data.gov.uk/id/local-authority-district/23UB,Cheltenham Borough Council,438728,2092432,BAKER ROSS LIMITED,C-L16100-3104,Holiday Rec-Sports & play equipment,16-Dec-10,16.98
http://statistics.data.gov.uk/id/local-authority-district/23UB,Cheltenham Borough Council,438728,2092432,BAKER ROSS LIMITED,C-L16100-3104,Holiday Rec-Sports & play equipment,16-Dec-10,128.68
http://statistics.data.gov.uk/id/local-authority-district/23UB,Cheltenham Borough Council,438042,PAK/LEDMO/2705,PETER BALL & CO,C-V62100-3501,Cap Rec (Rest)-Hire of outside services,03-Dec-10,"16,250.00"
http://statistics.data.gov.uk/id/local-authority-district/23UB,Cheltenham Borough Council,438425,H1413,F BAMFORD ENGINEERING LIMITED,C-HC4062-C302,Door Entry-Building Contractor,08-Dec-10,"13,627.75"
http://statistics.data.gov.uk/id/local-authority-district/23UB,Cheltenham Borough Council,439081,H1417 PEN,F BAMFORD ENGINEERING LIMITED,C-HC4062-C302,Door Entry-Building Contractor,23-Dec-10,"15,066.50"
http://statistics.data.gov.uk/id/local-authority-district/23UB,Cheltenham Borough Council,439028,131210,BAY TV LIMITED,C-LC6002-C402,Brizen Rec-Building Contractor,23-Dec-10,"3,340.07"
http://statistics.data.gov.uk/id/local-authority-district/23UB,Cheltenham Borough Council,437941,78021,BERMAN GUEDES STRETTON,C-L41100-3816,AG & M-RIBA - Fees,01-Dec-10,"18,133.00"
http://statistics.data.gov.uk/id/local-authority-district/23UB,Cheltenham Borough Council,439153,22667,BPF INSTRUMENTS LTD,C-D13120-3636,Mail Room-Area Offs Courier Service,30-Dec-10,605.00
http://statistics.data.gov.uk/id/local-authority-district/23UB,Cheltenham Borough Council,439153,22667,BPF INSTRUMENTS LTD,C-E72500-3501,Built Env Div-Hire of outside services,30-Dec-10,106.60
http://statistics.data.gov.uk/id/local-authority-district/23UB,Cheltenham Borough Council,439153,22667,BPF INSTRUMENTS LTD,C-H22300-3877,Housing Grants-Grants - One-Stop-Shop,30-Dec-10,61.60
http://statistics.data.gov.uk/id/local-authority-district/23UB,Cheltenham Borough Council,439153,22667,BPF INSTRUMENTS LTD,C-Z16500-3501,CBH Holding Acc-Hire of outside services,30-Dec-10,61.60
http://statistics.data.gov.uk/id/local-authority-district/23UB,Cheltenham Borough Council,438196,40729,BIOLAB U K LTD,C-L11500-1714,Rec Facilities-Chemicals,08-Dec-10,177.66
http://statistics.data.gov.uk/id/local-authority-district/23UB,Cheltenham Borough Council,438196,40729,BIOLAB U K LTD,C-L11500-1714,Rec Facilities-Chemicals,08-Dec-10,157.80
http://statistics.data.gov.uk/id/local-authority-district/23UB,Cheltenham Borough Council,438196,40729,BIOLAB U K LTD,C-L11500-1714,Rec Facilities-Chemicals,08-Dec-10,22.60
http://statistics.data.gov.uk/id/local-authority-district/23UB,Cheltenham Borough Council,438196,40729,BIOLAB U K LTD,C-L11500-1714,Rec Facilities-Chemicals,08-Dec-10,22.00
http://statistics.data.gov.uk/id/local-authority-district/23UB,Cheltenham Borough Council,438196,40729,BIOLAB U K LTD,C-L11500-1714,Rec Facilities-Chemicals,08-Dec-10,5.20
http://statistics.data.gov.uk/id/local-authority-district/23UB,Cheltenham Borough Council,438196,40729,BIOLAB U K LTD,C-L11500-1714,Rec Facilities-Chemicals,08-Dec-10,19.12
http://statistics.data.gov.uk/id/local-authority-district/23UB,Cheltenham Borough Council,438196,40729,BIOLAB U K LTD,C-L11500-1714,Rec Facilities-Chemicals,08-Dec-10,73.69
http://statistics.data.gov.uk/id/local-authority-district/23UB,Cheltenham Borough Council,438196,40729,BIOLAB U K LTD,C-L11500-1714,Rec Facilities-Chemicals,08-Dec-10,82.80
http://statistics.data.gov.uk/id/local-authority-district/23UB,Cheltenham Borough Council,438485,BIZ PRIDE RENT ,BLINK IMAGE,C-D34400-3862,Bus & Econ Dev-Grants - Local G.E.A. Con,16-Dec-10,"1,250.00"
http://statistics.data.gov.uk/id/local-authority-district/23UB,Cheltenham Borough Council,438369,DANCE DEMO,WARREN  AND KRISTI BOYCE,C-0T15J1-3568,Christmas Ball-Artist Fees,08-Dec-10,800.00
http://statistics.data.gov.uk/id/local-authority-district/23UB,Cheltenham Borough Council,438491,47si,BRENNTAG UK,C-L11500-1714,Rec Facilities-Chemicals,16-Dec-10,732.00
http://statistics.data.gov.uk/id/local-authority-district/23UB,Cheltenham Borough Council,438491,47si,BRENNTAG UK,C-L11500-1714,Rec Facilities-Chemicals,16-Dec-10,11.00
http://statistics.data.gov.uk/id/local-authority-district/23UB,Cheltenham Borough Council,438491,47si,BRENNTAG UK,C-L11500-1714,Rec Facilities-Chemicals,16-Dec-10,40.00
http://statistics.data.gov.uk/id/local-authority-district/23UB,Cheltenham Borough Council,438754,INV060464,BROXAP LIMITED,C-C23110-3101,Street Cleaning-Equipment purchases,16-Dec-10,890.00
http://statistics.data.gov.uk/id/local-authority-district/23UB,Cheltenham Borough Council,438754,INV060464,BROXAP LIMITED,C-C23110-3101,Street Cleaning-Equipment purchases,16-Dec-10,110.00
http://statistics.data.gov.uk/id/local-authority-district/23UB,Cheltenham Borough Council,438753,INV060900,BROXAP LIMITED,C-C23110-3101,Street Cleaning-Equipment purchases,16-Dec-10,"1,224.00"
http://statistics.data.gov.uk/id/local-authority-district/23UB,Cheltenham Borough Council,438267,GRANT,BRYCAM,C-D34400-3862,Bus & Econ Dev-Grants - Local G.E.A. Con,08-Dec-10,"1,250.00"
http://statistics.data.gov.uk/id/local-authority-district/23UB,Cheltenham Borough Council,437938,1411,THOMAS CAKEBREAD MEMORIALS,C-E63100-3111,Cemetery & Crem-Goods purch for resale,01-Dec-10,53.00
http://statistics.data.gov.uk/id/local-authority-district/23UB,Cheltenham Borough Council,437938,1411,THOMAS CAKEBREAD MEMORIALS,C-E63100-3111,Cemetery & Crem-Goods purch for resale,01-Dec-10,598.00
http://statistics.data.gov.uk/id/local-authority-district/23UB,Cheltenham Borough Council,438045,4203,C AND R DECORATORS,C-HC4053-C302,Internal Imp-Building Contractor,03-Dec-10,"4,415.86"
http://statistics.data.gov.uk/id/local-authority-district/23UB,Cheltenham Borough Council,438043,4207,C AND R DECORATORS,C-HC4050-C302,Major Voids-Building Contractor,03-Dec-10,374.83
http://statistics.data.gov.uk/id/local-authority-district/23UB,Cheltenham Borough Council,438046,4208,C AND R DECORATORS,C-HC4050-C302,Major Voids-Building Contractor,03-Dec-10,364.00
http://statistics.data.gov.uk/id/local-authority-district/23UB,Cheltenham Borough Council,438047,4212,C AND R DECORATORS,C-H4214V-1104,Voids 2214-Council House repairs,03-Dec-10,744.00
http://statistics.data.gov.uk/id/local-authority-district/23UB,Cheltenham Borough Council,438049,4213,C AND R DECORATORS,C-H4207V-1104,Voids 2207-Council House repairs,03-Dec-10,52.20
http://statistics.data.gov.uk/id/local-authority-district/23UB,Cheltenham Borough Council,438048,4218,C AND R DECORATORS,C-H4206V-1104,Voids 2206-Council House repairs,03-Dec-10,365.40
http://statistics.data.gov.uk/id/local-authority-district/23UB,Cheltenham Borough Council,438050,4219,C AND R DECORATORS,C-H4204V-1104,Voids 2204-Council House repairs,03-Dec-10,26.10
http://statistics.data.gov.uk/id/local-authority-district/23UB,Cheltenham Borough Council,438044,4220,C AND R DECORATORS,C-HC4053-C302,Internal Imp-Building Contractor,03-Dec-10,156.60
http://statistics.data.gov.uk/id/local-authority-district/23UB,Cheltenham Borough Council,438464,4215,C AND R DECORATORS,C-HC4053-C302,Internal Imp-Building Contractor,09-Dec-10,"4,930.00"
http://statistics.data.gov.uk/id/local-authority-district/23UB,Cheltenham Borough Council,438940,33548,CARRIER DIRECT LIMITED,C-L31100-3510,TIC-Promotion & Marketing,16-Dec-10,337.73
http://statistics.data.gov.uk/id/local-authority-district/23UB,Cheltenham Borough Council,438941,33609,CARRIER DIRECT LIMITED,C-L31100-3602,TIC-Postages ,16-Dec-10,526.95
http://statistics.data.gov.uk/id/local-authority-district/23UB,Cheltenham Borough Council,438939,33834,CARRIER DIRECT LIMITED,C-L31100-3602,TIC-Postages,16-Dec-10,126.07
http://statistics.data.gov.uk/id/local-authority-district/23UB,Cheltenham Borough Council,438790,2110,CCTVACCESS.COM,C-EC0033-C601,Car Parks CCTV-Equipment,16-Dec-10,"5,648.08"
http://statistics.data.gov.uk/id/local-authority-district/23UB,Cheltenham Borough Council,438169,1966,CDS PUBLICATIONS LTD,C-L31100-3510,TIC-Promotion & Marketing,03-Dec-10,600.00
http://statistics.data.gov.uk/id/local-authority-district/23UB,Cheltenham Borough Council,438099,HC5783,CHAMBERS MANAGEMENT CLIENT ACCOUNT,C-0T09K1-3568,Philharmonia 2-Events,03-Dec-10,"9,000.00"
http://statistics.data.gov.uk/id/local-authority-district/23UB,Cheltenham Borough Council,438680,ROUGH SLEEPER,CHELTENHAM HOUSING AID CENTRE,C-H22400-3828,Homelessness-Prevention Fund,16-Dec-10,900.00
http://statistics.data.gov.uk/id/local-authority-district/23UB,Cheltenham Borough Council,439008,SETTLEMENT,CHELTENHAM PHILHARMONIC ORCHESTRA,C-N13125-9205,ASH Ledger-Town Hall Invoices Paid,20-Dec-10,-964.60
http://statistics.data.gov.uk/id/local-authority-district/23UB,Cheltenham Borough Council,439008,SETTLEMENT,CHELTENHAM PHILHARMONIC ORCHESTRA,C-Z12210-9138,Box Off A/C-TH Hirers Tkt Pd out,20-Dec-10,"3,570.00"
http://statistics.data.gov.uk/id/local-authority-district/23UB,Cheltenham Borough Council,439008,SETTLEMENT,CHELTENHAM PHILHARMONIC ORCHESTRA,C-Z12210-9276,Box Off A/C-Hirers Invoices Pd,20-Dec-10,"-1,980.00"
http://statistics.data.gov.uk/id/local-authority-district/23UB,Cheltenham Borough Council,438418,SETTLEMENT,CHELTENHAM MUSIC SOCIETY,C-N13125-9206,ASH Ledger-PPR Invoices Paid,08-Dec-10,"-1,338.52"
http://statistics.data.gov.uk/id/local-authority-district/23UB,Cheltenham Borough Council,438418,SETTLEMENT,CHELTENHAM MUSIC SOCIETY,C-Z12210-9137,Box Off A/C-PPR Hirers Tkt Pd out,08-Dec-10,"4,098.00"
http://statistics.data.gov.uk/id/local-authority-district/23UB,Cheltenham Borough Council,438418,SETTLEMENT,CHELTENHAM MUSIC SOCIETY,C-Z12210-9276,Box Off A/C-Hirers Invoices Pd,08-Dec-10,"-2,204.00"
http://statistics.data.gov.uk/id/local-authority-district/23UB,Cheltenham Borough Council,439144,CHELTDW/9/2010,CHELTENHAM ANIMAL SHELTER,C-E61300-3501,Animal Welfare-Hire of outside services,30-Dec-10,"1,913.25"
http://statistics.data.gov.uk/id/local-authority-district/23UB,Cheltenham Borough Council,439143,CHELTDW/9/2010,CHELTENHAM ANIMAL SHELTER,C-E61300-3501,Animal Welfare-Hire of outside services,30-Dec-10,456.00
http://statistics.data.gov.uk/id/local-authority-district/23UB,Cheltenham Borough Council,439142,CHELTDW/10/201,CHELTENHAM ANIMAL SHELTER,C-E61300-3501,Animal Welfare-Hire of outside services,30-Dec-10,"1,121.00"
http://statistics.data.gov.uk/id/local-authority-district/23UB,Cheltenham Borough Council,437808,APP/INV,CHELTENHAM TREE SERVICES,C-C22110-1312,Parks & Gardens-Annual felling prog,01-Dec-10,200.00
http://statistics.data.gov.uk/id/local-authority-district/23UB,Cheltenham Borough Council,437808,APP/INV,CHELTENHAM TREE SERVICES,C-C22120-1312,Spts/Open Space-Annual felling prog,01-Dec-10,175.00
http://statistics.data.gov.uk/id/local-authority-district/23UB,Cheltenham Borough Council,437808,APP/INV,CHELTENHAM TREE SERVICES,C-C22120-1312,Spts/Open Space-Annual felling prog,01-Dec-10,175.00
http://statistics.data.gov.uk/id/local-authority-district/23UB,Cheltenham Borough Council,438899,INV00194,CHELTENHAM FESTIVALS LTD,C-L21100-3119,Town Hall-Piano Hire/Tuning,16-Dec-10,660.00
http://statistics.data.gov.uk/id/local-authority-district/23UB,Cheltenham Borough Council,439096,GRANT,CHELTENHAM MODEL CENTRES,C-D34400-3863,Bus & Econ Dev-Grants - Gen G.E.A. Cont,23-Dec-10,500.00
http://statistics.data.gov.uk/id/local-authority-district/23UB,Cheltenham Borough Council,438798,DB 10323184,CHRISTIE'S SOUTH KENSINGTON LTD,C-L41100-3129,AG & M-Purchases for collections,16-Dec-10,"3,500.00"
http://statistics.data.gov.uk/id/local-authority-district/23UB,Cheltenham Borough Council,438798,DB 10323184,CHRISTIE'S SOUTH KENSINGTON LTD,C-L41100-3129,AG & M-Purchases for collections,16-Dec-10,875.00
http://statistics.data.gov.uk/id/local-authority-district/23UB,Cheltenham Borough Council,439036,CIEH SUBS,C I E H,C-H22600-3890,Community Servs-Subscriptions - general,23-Dec-10,151.00
http://statistics.data.gov.uk/id/local-authority-district/23UB,Cheltenham Borough Council,439036,CIEH SUBS,C I E H,C-H22600-3890,Community Servs-Subscriptions - general,23-Dec-10,151.00
http://statistics.data.gov.uk/id/local-authority-district/23UB,Cheltenham Borough Council,439036,CIEH SUBS,C I E H,C-H22600-3890,Community Servs-Subscriptions - general,23-Dec-10,151.00
http://statistics.data.gov.uk/id/local-authority-district/23UB,Cheltenham Borough Council,439036,CIEH SUBS,C I E H,C-H22600-3890,Community Servs-Subscriptions - general,23-Dec-10,151.00
http://statistics.data.gov.uk/id/local-authority-district/23UB,Cheltenham Borough Council,439035,I00006237,C I E H,C-H22600-3890,Community Servs-Subscriptions - general,23-Dec-10,151.00
http://statistics.data.gov.uk/id/local-authority-district/23UB,Cheltenham Borough Council,438145,SETTLEMENT,COLE MUSIC PRODUCTIONS,C-N13125-9206,ASH Ledger-PPR Invoices Paid,03-Dec-10,-280.00
http://statistics.data.gov.uk/id/local-authority-district/23UB,Cheltenham Borough Council,438145,SETTLEMENT,COLE MUSIC PRODUCTIONS,C-Z12210-9137,Box Off A/C-PPR Hirers Tkt Pd out,03-Dec-10,"5,100.00"
http://statistics.data.gov.uk/id/local-authority-district/23UB,Cheltenham Borough Council,438145,SETTLEMENT,COLE MUSIC PRODUCTIONS,C-Z12210-9276,Box Off A/C-Hirers Invoices Pd,03-Dec-10,-731.60
http://statistics.data.gov.uk/id/local-authority-district/23UB,Cheltenham Borough Council,437947,COT-2217,COMPLETE WEED CONTROL,C-C22115-3501,Grass Verges-Hire of outside services,01-Dec-10,"13,256.24"
http://statistics.data.gov.uk/id/local-authority-district/23UB,Cheltenham Borough Council,438146,501919,COMENSURA LIMITED,C-C22115-0115,Grass Verges-Temporary Agency Staff,03-Dec-10,313.02
http://statistics.data.gov.uk/id/local-authority-district/23UB,Cheltenham Borough Council,438146,501919,COMENSURA LIMITED,C-C23100-0115,Refuse Collection-Temporary Agency Staff,03-Dec-10,207.69
http://statistics.data.gov.uk/id/local-authority-district/23UB,Cheltenham Borough Council,438146,501919,COMENSURA LIMITED,C-C23100-0115,Refuse Collection-Temporary Agency Staff,03-Dec-10,101.52
http://statistics.data.gov.uk/id/local-authority-district/23UB,Cheltenham Borough Council,438146,501919,COMENSURA LIMITED,C-C23100-0115,Refuse Collection-Temporary Agency Staff,03-Dec-10,291.12
http://statistics.data.gov.uk/id/local-authority-district/23UB,Cheltenham Borough Council,438146,501919,COMENSURA LIMITED,C-C23100-0115,Refuse Collection-Temporary Agency Staff,03-Dec-10,63.45
http://statistics.data.gov.uk/id/local-authority-district/23UB,Cheltenham Borough Council,438146,501919,COMENSURA LIMITED,C-C23100-0115,Refuse Collection-Temporary Agency Staff,03-Dec-10,48.64
http://statistics.data.gov.uk/id/local-authority-district/23UB,Cheltenham Borough Council,438146,501919,COMENSURA LIMITED,C-C23100-0115,Refuse Collection-Temporary Agency Staff,03-Dec-10,59.22
http://statistics.data.gov.uk/id/local-authority-district/23UB,Cheltenham Borough Council,438146,501919,COMENSURA LIMITED,C-C23100-0115,Refuse Collection-Temporary Agency Staff,03-Dec-10,97.04
http://statistics.data.gov.uk/id/local-authority-district/23UB,Cheltenham Borough Council,438146,501919,COMENSURA LIMITED,C-C23100-0115,Refuse Collection-Temporary Agency Staff,03-Dec-10,279.18
http://statistics.data.gov.uk/id/local-authority-district/23UB,Cheltenham Borough Council,438146,501919,COMENSURA LIMITED,C-C23100-0115,Refuse Collection-Temporary Agency Staff,03-Dec-10,194.08
http://statistics.data.gov.uk/id/local-authority-district/23UB,Cheltenham Borough Council,438146,501919,COMENSURA LIMITED,C-C23100-0115,Refuse Collection-Temporary Agency Staff,03-Dec-10,264.38
http://statistics.data.gov.uk/id/local-authority-district/23UB,Cheltenham Borough Council,438146,501919,COMENSURA LIMITED,C-C23100-0115,Refuse Collection-Temporary Agency Staff,03-Dec-10,46.53
http://statistics.data.gov.uk/id/local-authority-district/23UB,Cheltenham Borough Council,438146,501919,COMENSURA LIMITED,C-C23100-0115,Refuse Collection-Temporary Agency Staff,03-Dec-10,126.90
http://statistics.data.gov.uk/id/local-authority-district/23UB,Cheltenham Borough Council,438146,501919,COMENSURA LIMITED,C-C23100-0115,Refuse Collection-Temporary Agency Staff,03-Dec-10,217.84
http://statistics.data.gov.uk/id/local-authority-district/23UB,Cheltenham Borough Council,438146,501919,COMENSURA LIMITED,C-C23110-0115,Street Cleaning-Temporary Agency Staff,03-Dec-10,313.02
http://statistics.data.gov.uk/id/local-authority-district/23UB,Cheltenham Borough Council,438146,501919,COMENSURA LIMITED,C-C23110-0115,Street Cleaning-Temporary Agency Staff,03-Dec-10,313.02
http://statistics.data.gov.uk/id/local-authority-district/23UB,Cheltenham Borough Council,438146,501919,COMENSURA LIMITED,C-C23125-0115,Recyl Bring Schms-Temporary Agency Staff,03-Dec-10,424.55
http://statistics.data.gov.uk/id/local-authority-district/23UB,Cheltenham Borough Council,438146,501919,COMENSURA LIMITED,C-C23140-0115,Public Convnces-Temporary Agency Staff,03-Dec-10,340.45
http://statistics.data.gov.uk/id/local-authority-district/23UB,Cheltenham Borough Council,438146,501919,COMENSURA LIMITED,C-C23140-0115,Public Convnces-Temporary Agency Staff,03-Dec-10,359.55
http://statistics.data.gov.uk/id/local-authority-district/23UB,Cheltenham Borough Council,438146,501919,COMENSURA LIMITED,C-C23180-0115,Rcycl Coltn Schms-Temporary Agency Staff,03-Dec-10,186.12
http://statistics.data.gov.uk/id/local-authority-district/23UB,Cheltenham Borough Council,438146,501919,COMENSURA LIMITED,C-C23180-0115,Rcycl Coltn Schms-Temporary Agency Staff,03-Dec-10,346.86
http://statistics.data.gov.uk/id/local-authority-district/23UB,Cheltenham Borough Council,438146,501919,COMENSURA LIMITED,C-C23180-0115,Rcycl Coltn Schms-Temporary Agency Staff,03-Dec-10,59.22
http://statistics.data.gov.uk/id/local-authority-district/23UB,Cheltenham Borough Council,438146,501919,COMENSURA LIMITED,C-C23180-0115,Rcycl Coltn Schms-Temporary Agency Staff,03-Dec-10,105.75
http://statistics.data.gov.uk/id/local-authority-district/23UB,Cheltenham Borough Council,438146,501919,COMENSURA LIMITED,C-C23180-0115,Rcycl Coltn Schms-Temporary Agency Staff,03-Dec-10,181.89
http://statistics.data.gov.uk/id/local-authority-district/23UB,Cheltenham Borough Council,438146,501919,COMENSURA LIMITED,C-C23180-0115,Rcycl Coltn Schms-Temporary Agency Staff,03-Dec-10,224.19
http://statistics.data.gov.uk/id/local-authority-district/23UB,Cheltenham Borough Council,438146,501919,COMENSURA LIMITED,C-C23180-0115,Rcycl Coltn Schms-Temporary Agency Staff,03-Dec-10,260.14
http://statistics.data.gov.uk/id/local-authority-district/23UB,Cheltenham Borough Council,438146,501919,COMENSURA LIMITED,C-C23180-0115,Rcycl Coltn Schms-Temporary Agency Staff,03-Dec-10,230.54
http://statistics.data.gov.uk/id/local-authority-district/23UB,Cheltenham Borough Council,438146,501919,COMENSURA LIMITED,C-C23180-0115,Rcycl Coltn Schms-Temporary Agency Staff,03-Dec-10,103.10
http://statistics.data.gov.uk/id/local-authority-district/23UB,Cheltenham Borough Council,438146,501919,COMENSURA LIMITED,C-C23180-0115,Rcycl Coltn Schms-Temporary Agency Staff,03-Dec-10,44.42
http://statistics.data.gov.uk/id/local-authority-district/23UB,Cheltenham Borough Council,438146,501919,COMENSURA LIMITED,C-C23180-0115,Rcycl Coltn Schms-Temporary Agency Staff,03-Dec-10,485.20
http://statistics.data.gov.uk/id/local-authority-district/23UB,Cheltenham Borough Council,438146,501919,COMENSURA LIMITED,C-C23180-0115,Rcycl Coltn Schms-Temporary Agency Staff,03-Dec-10,97.04
http://statistics.data.gov.uk/id/local-authority-district/23UB,Cheltenham Borough Council,438146,501919,COMENSURA LIMITED,C-C23180-0115,Rcycl Coltn Schms-Temporary Agency Staff,03-Dec-10,97.04
http://statistics.data.gov.uk/id/local-authority-district/23UB,Cheltenham Borough Council,438146,501919,COMENSURA LIMITED,C-C23180-0115,Rcycl Coltn Schms-Temporary Agency Staff,03-Dec-10,291.12
http://statistics.data.gov.uk/id/local-authority-district/23UB,Cheltenham Borough Council,438146,501919,COMENSURA LIMITED,C-C23180-0115,Rcycl Coltn Schms-Temporary Agency Staff,03-Dec-10,152.28
http://statistics.data.gov.uk/id/local-authority-district/23UB,Cheltenham Borough Council,438146,501919,COMENSURA LIMITED,C-C23190-0115,Garden Collectn-Temporary Agency Staff,03-Dec-10,232.65
http://statistics.data.gov.uk/id/local-authority-district/23UB,Cheltenham Borough Council,438146,501919,COMENSURA LIMITED,C-C23190-0115,Garden Collectn-Temporary Agency Staff,03-Dec-10,76.14
http://statistics.data.gov.uk/id/local-authority-district/23UB,Cheltenham Borough Council,438146,501919,COMENSURA LIMITED,C-C23190-0115,Garden Collectn-Temporary Agency Staff,03-Dec-10,93.06
http://statistics.data.gov.uk/id/local-authority-district/23UB,Cheltenham Borough Council,438146,501919,COMENSURA LIMITED,C-C23190-0115,Garden Collectn-Temporary Agency Staff,03-Dec-10,388.16
http://statistics.data.gov.uk/id/local-authority-district/23UB,Cheltenham Borough Council,438146,501919,COMENSURA LIMITED,C-D12500-0115,Property Servs-Temporary Agency Staff,03-Dec-10,21.15
http://statistics.data.gov.uk/id/local-authority-district/23UB,Cheltenham Borough Council,438146,501919,COMENSURA LIMITED,C-D12500-0115,Property Servs-Temporary Agency Staff,03-Dec-10,105.75
http://statistics.data.gov.uk/id/local-authority-district/23UB,Cheltenham Borough Council,438146,501919,COMENSURA LIMITED,C-D12500-0115,Property Servs-Temporary Agency Staff,03-Dec-10,105.75
http://statistics.data.gov.uk/id/local-authority-district/23UB,Cheltenham Borough Council,438146,501919,COMENSURA LIMITED,C-D12500-0115,Property Servs-Temporary Agency Staff,03-Dec-10,21.15
http://statistics.data.gov.uk/id/local-authority-district/23UB,Cheltenham Borough Council,438146,501919,COMENSURA LIMITED,C-D12500-0115,Property Servs-Temporary Agency Staff,03-Dec-10,105.75
http://statistics.data.gov.uk/id/local-authority-district/23UB,Cheltenham Borough Council,438146,501919,COMENSURA LIMITED,C-E63100-0115,Cemetery & Crem-Temporary Agency Staff,03-Dec-10,313.02
http://statistics.data.gov.uk/id/local-authority-district/23UB,Cheltenham Borough Council,438146,501919,COMENSURA LIMITED,C-E75500-0115,Intgd Tran Div-Temporary Agency Staff,03-Dec-10,411.30
http://statistics.data.gov.uk/id/local-authority-district/23UB,Cheltenham Borough Council,438146,501919,COMENSURA LIMITED,C-E75500-0115,Intgd Tran Div-Temporary Agency Staff,03-Dec-10,528.81
http://statistics.data.gov.uk/id/local-authority-district/23UB,Cheltenham Borough Council,439024,502012,COMENSURA LIMITED,C-C22115-0115,Grass Verges-Temporary Agency Staff,21-Dec-10,313.02
http://statistics.data.gov.uk/id/local-authority-district/23UB,Cheltenham Borough Council,439024,502012,COMENSURA LIMITED,C-C23100-0115,Refuse Collection-Temporary Agency Staff,21-Dec-10,95.17
http://statistics.data.gov.uk/id/local-authority-district/23UB,Cheltenham Borough Council,439024,502012,COMENSURA LIMITED,C-C23100-0115,Refuse Collection-Temporary Agency Staff,21-Dec-10,194.08
http://statistics.data.gov.uk/id/local-authority-district/23UB,Cheltenham Borough Council,439024,502012,COMENSURA LIMITED,C-C23100-0115,Refuse Collection-Temporary Agency Staff,21-Dec-10,97.04
http://statistics.data.gov.uk/id/local-authority-district/23UB,Cheltenham Borough Council,439024,502012,COMENSURA LIMITED,C-C23100-0115,Refuse Collection-Temporary Agency Staff,21-Dec-10,57.10
http://statistics.data.gov.uk/id/local-authority-district/23UB,Cheltenham Borough Council,439024,502012,COMENSURA LIMITED,C-C23100-0115,Refuse Collection-Temporary Agency Staff,21-Dec-10,215.72
http://statistics.data.gov.uk/id/local-authority-district/23UB,Cheltenham Borough Council,439024,502012,COMENSURA LIMITED,C-C23100-0115,Refuse Collection-Temporary Agency Staff,21-Dec-10,120.56
http://statistics.data.gov.uk/id/local-authority-district/23UB,Cheltenham Borough Council,439024,502012,COMENSURA LIMITED,C-C23100-0115,Refuse Collection-Temporary Agency Staff,21-Dec-10,194.08
http://statistics.data.gov.uk/id/local-authority-district/23UB,Cheltenham Borough Council,439024,502012,COMENSURA LIMITED,C-C23100-0115,Refuse Collection-Temporary Agency Staff,21-Dec-10,152.28
http://statistics.data.gov.uk/id/local-authority-district/23UB,Cheltenham Borough Council,439024,502012,COMENSURA LIMITED,C-C23100-0115,Refuse Collection-Temporary Agency Staff,21-Dec-10,84.91
http://statistics.data.gov.uk/id/local-authority-district/23UB,Cheltenham Borough Council,439024,502012,COMENSURA LIMITED,C-C23100-0115,Refuse Collection-Temporary Agency Staff,21-Dec-10,114.21
http://statistics.data.gov.uk/id/local-authority-district/23UB,Cheltenham Borough Council,439024,502012,COMENSURA LIMITED,C-C23100-0115,Refuse Collection-Temporary Agency Staff,21-Dec-10,105.75
http://statistics.data.gov.uk/id/local-authority-district/23UB,Cheltenham Borough Council,439024,502012,COMENSURA LIMITED,C-C23110-0115,Street Cleaning-Temporary Agency Staff,21-Dec-10,63.40
http://statistics.data.gov.uk/id/local-authority-district/23UB,Cheltenham Borough Council,439024,502012,COMENSURA LIMITED,C-C23110-0115,Street Cleaning-Temporary Agency Staff,21-Dec-10,194.58
http://statistics.data.gov.uk/id/local-authority-district/23UB,Cheltenham Borough Council,439024,502012,COMENSURA LIMITED,C-C23110-0115,Street Cleaning-Temporary Agency Staff,21-Dec-10,313.02
http://statistics.data.gov.uk/id/local-authority-district/23UB,Cheltenham Borough Council,439024,502012,COMENSURA LIMITED,C-C23125-0115,Recyl Bring Schms-Temporary Agency Staff,21-Dec-10,339.64
http://statistics.data.gov.uk/id/local-authority-district/23UB,Cheltenham Borough Council,439024,502012,COMENSURA LIMITED,C-C23140-0115,Public Convnces-Temporary Agency Staff,21-Dec-10,215.73
http://statistics.data.gov.uk/id/local-authority-district/23UB,Cheltenham Borough Council,439024,502012,COMENSURA LIMITED,C-C23140-0115,Public Convnces-Temporary Agency Staff,21-Dec-10,340.58
http://statistics.data.gov.uk/id/local-authority-district/23UB,Cheltenham Borough Council,439024,502012,COMENSURA LIMITED,C-C23140-0115,Public Convnces-Temporary Agency Staff,21-Dec-10,101.52
http://statistics.data.gov.uk/id/local-authority-district/23UB,Cheltenham Borough Council,439024,502012,COMENSURA LIMITED,C-C23180-0115,Rcycl Coltn Schms-Temporary Agency Staff,21-Dec-10,313.02
http://statistics.data.gov.uk/id/local-authority-district/23UB,Cheltenham Borough Council,439024,502012,COMENSURA LIMITED,C-C23180-0115,Rcycl Coltn Schms-Temporary Agency Staff,21-Dec-10,82.48
http://statistics.data.gov.uk/id/local-authority-district/23UB,Cheltenham Borough Council,439024,502012,COMENSURA LIMITED,C-C23180-0115,Rcycl Coltn Schms-Temporary Agency Staff,21-Dec-10,97.04
http://statistics.data.gov.uk/id/local-authority-district/23UB,Cheltenham Borough Council,439024,502012,COMENSURA LIMITED,C-C23180-0115,Rcycl Coltn Schms-Temporary Agency Staff,21-Dec-10,175.56
http://statistics.data.gov.uk/id/local-authority-district/23UB,Cheltenham Borough Council,439024,502012,COMENSURA LIMITED,C-C23180-0115,Rcycl Coltn Schms-Temporary Agency Staff,21-Dec-10,50.76
http://statistics.data.gov.uk/id/local-authority-district/23UB,Cheltenham Borough Council,439024,502012,COMENSURA LIMITED,C-C23180-0115,Rcycl Coltn Schms-Temporary Agency Staff,21-Dec-10,485.20
http://statistics.data.gov.uk/id/local-authority-district/23UB,Cheltenham Borough Council,439024,502012,COMENSURA LIMITED,C-C23180-0115,Rcycl Coltn Schms-Temporary Agency Staff,21-Dec-10,247.45
http://statistics.data.gov.uk/id/local-authority-district/23UB,Cheltenham Borough Council,439024,502012,COMENSURA LIMITED,C-C23180-0115,Rcycl Coltn Schms-Temporary Agency Staff,21-Dec-10,200.93
http://statistics.data.gov.uk/id/local-authority-district/23UB,Cheltenham Borough Council,439024,502012,COMENSURA LIMITED,C-C23180-0115,Rcycl Coltn Schms-Temporary Agency Staff,21-Dec-10,103.64
http://statistics.data.gov.uk/id/local-authority-district/23UB,Cheltenham Borough Council,439024,502012,COMENSURA LIMITED,C-C23180-0115,Rcycl Coltn Schms-Temporary Agency Staff,21-Dec-10,59.22
http://statistics.data.gov.uk/id/local-authority-district/23UB,Cheltenham Borough Council,439024,502012,COMENSURA LIMITED,C-C23180-0115,Rcycl Coltn Schms-Temporary Agency Staff,21-Dec-10,224.19
http://statistics.data.gov.uk/id/local-authority-district/23UB,Cheltenham Borough Council,439024,502012,COMENSURA LIMITED,C-C23190-0115,Garden Collectn-Temporary Agency Staff,21-Dec-10,262.26
http://statistics.data.gov.uk/id/local-authority-district/23UB,Cheltenham Borough Council,439024,502012,COMENSURA LIMITED,C-C23190-0115,Garden Collectn-Temporary Agency Staff,21-Dec-10,388.16
http://statistics.data.gov.uk/id/local-authority-district/23UB,Cheltenham Borough Council,439024,502012,COMENSURA LIMITED,C-C23190-0115,Garden Collectn-Temporary Agency Staff,21-Dec-10,255.92
http://statistics.data.gov.uk/id/local-authority-district/23UB,Cheltenham Borough Council,439024,502012,COMENSURA LIMITED,C-C23190-0115,Garden Collectn-Temporary Agency Staff,21-Dec-10,97.04
http://statistics.data.gov.uk/id/local-authority-district/23UB,Cheltenham Borough Council,439024,502012,COMENSURA LIMITED,C-C23190-0115,Garden Collectn-Temporary Agency Staff,21-Dec-10,54.99
http://statistics.data.gov.uk/id/local-authority-district/23UB,Cheltenham Borough Council,439024,502012,COMENSURA LIMITED,C-C23190-0115,Garden Collectn-Temporary Agency Staff,21-Dec-10,485.20
http://statistics.data.gov.uk/id/local-authority-district/23UB,Cheltenham Borough Council,439024,502012,COMENSURA LIMITED,C-D13100-0115,Muni Off Blgs-Temporary Agency Staff,21-Dec-10,84.60
http://statistics.data.gov.uk/id/local-authority-district/23UB,Cheltenham Borough Council,439024,502012,COMENSURA LIMITED,C-E36200-0115,On-St Car Prkng-Temporary Agency Staff,21-Dec-10,462.00
http://statistics.data.gov.uk/id/local-authority-district/23UB,Cheltenham Borough Council,439024,502012,COMENSURA LIMITED,C-E36200-0115,On-St Car Prkng-Temporary Agency Staff,21-Dec-10,462.00
http://statistics.data.gov.uk/id/local-authority-district/23UB,Cheltenham Borough Council,439024,502012,COMENSURA LIMITED,C-E36200-0115,On-St Car Prkng-Temporary Agency Staff,21-Dec-10,462.00
http://statistics.data.gov.uk/id/local-authority-district/23UB,Cheltenham Borough Council,439024,502012,COMENSURA LIMITED,C-E36200-0115,On-St Car Prkng-Temporary Agency Staff,21-Dec-10,486.64
http://statistics.data.gov.uk/id/local-authority-district/23UB,Cheltenham Borough Council,439024,502012,COMENSURA LIMITED,C-E36200-0115,On-St Car Prkng-Temporary Agency Staff,21-Dec-10,394.24
http://statistics.data.gov.uk/id/local-authority-district/23UB,Cheltenham Borough Council,439024,502012,COMENSURA LIMITED,C-E36200-0115,On-St Car Prkng-Temporary Agency Staff,21-Dec-10,474.32
http://statistics.data.gov.uk/id/local-authority-district/23UB,Cheltenham Borough Council,439024,502012,COMENSURA LIMITED,C-E36200-0115,On-St Car Prkng-Temporary Agency Staff,21-Dec-10,388.08
http://statistics.data.gov.uk/id/local-authority-district/23UB,Cheltenham Borough Council,439024,502012,COMENSURA LIMITED,C-E36200-0115,On-St Car Prkng-Temporary Agency Staff,21-Dec-10,474.32
http://statistics.data.gov.uk/id/local-authority-district/23UB,Cheltenham Borough Council,439024,502012,COMENSURA LIMITED,C-E36200-0115,On-St Car Prkng-Temporary Agency Staff,21-Dec-10,462.00
http://statistics.data.gov.uk/id/local-authority-district/23UB,Cheltenham Borough Council,439024,502012,COMENSURA LIMITED,C-E36200-0115,On-St Car Prkng-Temporary Agency Staff,21-Dec-10,498.96
http://statistics.data.gov.uk/id/local-authority-district/23UB,Cheltenham Borough Council,439024,502012,COMENSURA LIMITED,C-E36200-0115,On-St Car Prkng-Temporary Agency Staff,21-Dec-10,474.32
http://statistics.data.gov.uk/id/local-authority-district/23UB,Cheltenham Borough Council,439024,502012,COMENSURA LIMITED,C-E36200-0115,On-St Car Prkng-Temporary Agency Staff,21-Dec-10,326.48
http://statistics.data.gov.uk/id/local-authority-district/23UB,Cheltenham Borough Council,439024,502012,COMENSURA LIMITED,C-E36200-0115,On-St Car Prkng-Temporary Agency Staff,21-Dec-10,511.28
http://statistics.data.gov.uk/id/local-authority-district/23UB,Cheltenham Borough Council,439024,502012,COMENSURA LIMITED,C-E36200-0115,On-St Car Prkng-Temporary Agency Staff,21-Dec-10,511.28
http://statistics.data.gov.uk/id/local-authority-district/23UB,Cheltenham Borough Council,439024,502012,COMENSURA LIMITED,C-E36200-0115,On-St Car Prkng-Temporary Agency Staff,21-Dec-10,412.72
http://statistics.data.gov.uk/id/local-authority-district/23UB,Cheltenham Borough Council,439024,502012,COMENSURA LIMITED,C-E63100-0115,Cemetery & Crem-Temporary Agency Staff,21-Dec-10,214.40
http://statistics.data.gov.uk/id/local-authority-district/23UB,Cheltenham Borough Council,439024,502012,COMENSURA LIMITED,C-E63100-0115,Cemetery & Crem-Temporary Agency Staff,21-Dec-10,313.02
http://statistics.data.gov.uk/id/local-authority-district/23UB,Cheltenham Borough Council,439024,502012,COMENSURA LIMITED,C-E63100-0115,Cemetery & Crem-Temporary Agency Staff,21-Dec-10,225.12
http://statistics.data.gov.uk/id/local-authority-district/23UB,Cheltenham Borough Council,439024,502012,COMENSURA LIMITED,C-E75500-0115,Intgd Tran Div-Temporary Agency Staff,21-Dec-10,661.80
http://statistics.data.gov.uk/id/local-authority-district/23UB,Cheltenham Borough Council,439025,502110,COMENSURA LIMITED,C-C22100-0115,Green Env Div-Temporary Agency Staff,21-Dec-10,346.88
http://statistics.data.gov.uk/id/local-authority-district/23UB,Cheltenham Borough Council,439025,502110,COMENSURA LIMITED,C-C22100-0115,Green Env Div-Temporary Agency Staff,21-Dec-10,209.40
http://statistics.data.gov.uk/id/local-authority-district/23UB,Cheltenham Borough Council,439025,502110,COMENSURA LIMITED,C-C22100-0115,Green Env Div-Temporary Agency Staff,21-Dec-10,279.20
http://statistics.data.gov.uk/id/local-authority-district/23UB,Cheltenham Borough Council,439025,502110,COMENSURA LIMITED,C-C22100-0115,Green Env Div-Temporary Agency Staff,21-Dec-10,346.88
http://statistics.data.gov.uk/id/local-authority-district/23UB,Cheltenham Borough Council,439025,502110,COMENSURA LIMITED,C-C22100-0115,Green Env Div-Temporary Agency Staff,21-Dec-10,346.88
http://statistics.data.gov.uk/id/local-authority-district/23UB,Cheltenham Borough Council,439025,502110,COMENSURA LIMITED,C-C22100-0115,Green Env Div-Temporary Agency Staff,21-Dec-10,279.20
http://statistics.data.gov.uk/id/local-authority-district/23UB,Cheltenham Borough Council,439025,502110,COMENSURA LIMITED,C-C22100-0115,Green Env Div-Temporary Agency Staff,21-Dec-10,327.84
http://statistics.data.gov.uk/id/local-authority-district/23UB,Cheltenham Borough Council,439025,502110,COMENSURA LIMITED,C-C22110-0115,Parks & Gardens-Temporary Agency Staff,21-Dec-10,90.64
http://statistics.data.gov.uk/id/local-authority-district/23UB,Cheltenham Borough Council,439025,502110,COMENSURA LIMITED,C-C22110-0115,Parks & Gardens-Temporary Agency Staff,21-Dec-10,131.84
http://statistics.data.gov.uk/id/local-authority-district/23UB,Cheltenham Borough Council,439025,502110,COMENSURA LIMITED,C-C22110-0115,Parks & Gardens-Temporary Agency Staff,21-Dec-10,24.72
http://statistics.data.gov.uk/id/local-authority-district/23UB,Cheltenham Borough Council,439025,502110,COMENSURA LIMITED,C-C22110-0115,Parks & Gardens-Temporary Agency Staff,21-Dec-10,139.03
http://statistics.data.gov.uk/id/local-authority-district/23UB,Cheltenham Borough Council,439025,502110,COMENSURA LIMITED,C-C22115-0115,Grass Verges-Temporary Agency Staff,21-Dec-10,313.02
http://statistics.data.gov.uk/id/local-authority-district/23UB,Cheltenham Borough Council,439025,502110,COMENSURA LIMITED,C-C23100-0115,Refuse Collection-Temporary Agency Staff,21-Dec-10,315.15
http://statistics.data.gov.uk/id/local-authority-district/23UB,Cheltenham Borough Council,439025,502110,COMENSURA LIMITED,C-C23100-0115,Refuse Collection-Temporary Agency Staff,21-Dec-10,268.62
http://statistics.data.gov.uk/id/local-authority-district/23UB,Cheltenham Borough Council,439025,502110,COMENSURA LIMITED,C-C23100-0115,Refuse Collection-Temporary Agency Staff,21-Dec-10,283.41
http://statistics.data.gov.uk/id/local-authority-district/23UB,Cheltenham Borough Council,439025,502110,COMENSURA LIMITED,C-C23100-0115,Refuse Collection-Temporary Agency Staff,21-Dec-10,194.08
http://statistics.data.gov.uk/id/local-authority-district/23UB,Cheltenham Borough Council,439025,502110,COMENSURA LIMITED,C-C23100-0115,Refuse Collection-Temporary Agency Staff,21-Dec-10,255.93
http://statistics.data.gov.uk/id/local-authority-district/23UB,Cheltenham Borough Council,439025,502110,COMENSURA LIMITED,C-C23100-0115,Refuse Collection-Temporary Agency Staff,21-Dec-10,97.04
http://statistics.data.gov.uk/id/local-authority-district/23UB,Cheltenham Borough Council,439025,502110,COMENSURA LIMITED,C-C23100-0115,Refuse Collection-Temporary Agency Staff,21-Dec-10,412.42
http://statistics.data.gov.uk/id/local-authority-district/23UB,Cheltenham Borough Council,439025,502110,COMENSURA LIMITED,C-C23100-0115,Refuse Collection-Temporary Agency Staff,21-Dec-10,230.55
http://statistics.data.gov.uk/id/local-authority-district/23UB,Cheltenham Borough Council,439025,502110,COMENSURA LIMITED,C-C23100-0115,Refuse Collection-Temporary Agency Staff,21-Dec-10,179.78
http://statistics.data.gov.uk/id/local-authority-district/23UB,Cheltenham Borough Council,439025,502110,COMENSURA LIMITED,C-C23100-0115,Refuse Collection-Temporary Agency Staff,21-Dec-10,126.90
http://statistics.data.gov.uk/id/local-authority-district/23UB,Cheltenham Borough Council,439025,502110,COMENSURA LIMITED,C-C23110-0115,Street Cleaning-Temporary Agency Staff,21-Dec-10,313.02
http://statistics.data.gov.uk/id/local-authority-district/23UB,Cheltenham Borough Council,439025,502110,COMENSURA LIMITED,C-C23110-0115,Street Cleaning-Temporary Agency Staff,21-Dec-10,313.02
http://statistics.data.gov.uk/id/local-authority-district/23UB,Cheltenham Borough Council,439025,502110,COMENSURA LIMITED,C-C23125-0115,Recyl Bring Schms-Temporary Agency Staff,21-Dec-10,388.16
http://statistics.data.gov.uk/id/local-authority-district/23UB,Cheltenham Borough Council,439025,502110,COMENSURA LIMITED,C-C23125-0115,Recyl Bring Schms-Temporary Agency Staff,21-Dec-10,424.55
http://statistics.data.gov.uk/id/local-authority-district/23UB,Cheltenham Borough Council,439025,502110,COMENSURA LIMITED,C-C23130-0115,Build Cleaning-Temporary Agency Staff,21-Dec-10,105.75
http://statistics.data.gov.uk/id/local-authority-district/23UB,Cheltenham Borough Council,439025,502110,COMENSURA LIMITED,C-C23140-0115,Public Convnces-Temporary Agency Staff,21-Dec-10,152.28
http://statistics.data.gov.uk/id/local-authority-district/23UB,Cheltenham Borough Council,439025,502110,COMENSURA LIMITED,C-C23140-0115,Public Convnces-Temporary Agency Staff,21-Dec-10,435.75
http://statistics.data.gov.uk/id/local-authority-district/23UB,Cheltenham Borough Council,439025,502110,COMENSURA LIMITED,C-C23160-0115,Env Maint Div-Temporary Agency Staff,21-Dec-10,316.48
http://statistics.data.gov.uk/id/local-authority-district/23UB,Cheltenham Borough Council,439025,502110,COMENSURA LIMITED,C-C23160-0115,Env Maint Div-Temporary Agency Staff,21-Dec-10,346.15
http://statistics.data.gov.uk/id/local-authority-district/23UB,Cheltenham Borough Council,439025,502110,COMENSURA LIMITED,C-C23160-0115,Env Maint Div-Temporary Agency Staff,21-Dec-10,346.15
http://statistics.data.gov.uk/id/local-authority-district/23UB,Cheltenham Borough Council,439025,502110,COMENSURA LIMITED,C-C23180-0115,Rcycl Coltn Schms-Temporary Agency Staff,21-Dec-10,54.99
http://statistics.data.gov.uk/id/local-authority-district/23UB,Cheltenham Borough Council,439025,502110,COMENSURA LIMITED,C-C23180-0115,Rcycl Coltn Schms-Temporary Agency Staff,21-Dec-10,260.15
http://statistics.data.gov.uk/id/local-authority-district/23UB,Cheltenham Borough Council,439025,502110,COMENSURA LIMITED,C-C23180-0115,Rcycl Coltn Schms-Temporary Agency Staff,21-Dec-10,232.65
http://statistics.data.gov.uk/id/local-authority-district/23UB,Cheltenham Borough Council,439025,502110,COMENSURA LIMITED,C-C23180-0115,Rcycl Coltn Schms-Temporary Agency Staff,21-Dec-10,306.68
http://statistics.data.gov.uk/id/local-authority-district/23UB,Cheltenham Borough Council,439025,502110,COMENSURA LIMITED,C-C23180-0115,Rcycl Coltn Schms-Temporary Agency Staff,21-Dec-10,226.30
http://statistics.data.gov.uk/id/local-authority-district/23UB,Cheltenham Borough Council,439025,502110,COMENSURA LIMITED,C-C23180-0115,Rcycl Coltn Schms-Temporary Agency Staff,21-Dec-10,491.26
http://statistics.data.gov.uk/id/local-authority-district/23UB,Cheltenham Borough Council,439025,502110,COMENSURA LIMITED,C-C23180-0115,Rcycl Coltn Schms-Temporary Agency Staff,21-Dec-10,148.05
http://statistics.data.gov.uk/id/local-authority-district/23UB,Cheltenham Borough Council,439025,502110,COMENSURA LIMITED,C-C23180-0115,Rcycl Coltn Schms-Temporary Agency Staff,21-Dec-10,230.54
http://statistics.data.gov.uk/id/local-authority-district/23UB,Cheltenham Borough Council,439025,502110,COMENSURA LIMITED,C-C23180-0115,Rcycl Coltn Schms-Temporary Agency Staff,21-Dec-10,186.12
http://statistics.data.gov.uk/id/local-authority-district/23UB,Cheltenham Borough Council,439025,502110,COMENSURA LIMITED,C-C23190-0115,Garden Collectn-Temporary Agency Staff,21-Dec-10,245.34
http://statistics.data.gov.uk/id/local-authority-district/23UB,Cheltenham Borough Council,439025,502110,COMENSURA LIMITED,C-C23190-0115,Garden Collectn-Temporary Agency Staff,21-Dec-10,296.11
http://statistics.data.gov.uk/id/local-authority-district/23UB,Cheltenham Borough Council,439025,502110,COMENSURA LIMITED,C-C23190-0115,Garden Collectn-Temporary Agency Staff,21-Dec-10,485.20
http://statistics.data.gov.uk/id/local-authority-district/23UB,Cheltenham Borough Council,439025,502110,COMENSURA LIMITED,C-C23190-0115,Garden Collectn-Temporary Agency Staff,21-Dec-10,207.27
http://statistics.data.gov.uk/id/local-authority-district/23UB,Cheltenham Borough Council,439025,502110,COMENSURA LIMITED,C-C23190-0115,Garden Collectn-Temporary Agency Staff,21-Dec-10,19.78
http://statistics.data.gov.uk/id/local-authority-district/23UB,Cheltenham Borough Council,439025,502110,COMENSURA LIMITED,C-D13100-0115,Muni Off Blgs-Temporary Agency Staff,21-Dec-10,21.15
http://statistics.data.gov.uk/id/local-authority-district/23UB,Cheltenham Borough Council,439025,502110,COMENSURA LIMITED,C-D13100-0115,Muni Off Blgs-Temporary Agency Staff,21-Dec-10,105.75
http://statistics.data.gov.uk/id/local-authority-district/23UB,Cheltenham Borough Council,439025,502110,COMENSURA LIMITED,C-E36200-0115,On-St Car Prkng-Temporary Agency Staff,21-Dec-10,375.76
http://statistics.data.gov.uk/id/local-authority-district/23UB,Cheltenham Borough Council,439025,502110,COMENSURA LIMITED,C-E36200-0115,On-St Car Prkng-Temporary Agency Staff,21-Dec-10,369.60
http://statistics.data.gov.uk/id/local-authority-district/23UB,Cheltenham Borough Council,439025,502110,COMENSURA LIMITED,C-E36200-0115,On-St Car Prkng-Temporary Agency Staff,21-Dec-10,394.24
http://statistics.data.gov.uk/id/local-authority-district/23UB,Cheltenham Borough Council,439025,502110,COMENSURA LIMITED,C-E63100-0115,Cemetery & Crem-Temporary Agency Staff,21-Dec-10,313.02
http://statistics.data.gov.uk/id/local-authority-district/23UB,Cheltenham Borough Council,439025,502110,COMENSURA LIMITED,C-E75500-0115,Intgd Tran Div-Temporary Agency Staff,21-Dec-10,569.02
http://statistics.data.gov.uk/id/local-authority-district/23UB,Cheltenham Borough Council,439026,502212,COMENSURA LIMITED,C-C22100-0115,Green Env Div-Temporary Agency Staff,21-Dec-10,330.80
http://statistics.data.gov.uk/id/local-authority-district/23UB,Cheltenham Borough Council,439026,502212,COMENSURA LIMITED,C-C22115-0115,Grass Verges-Temporary Agency Staff,21-Dec-10,304.56
http://statistics.data.gov.uk/id/local-authority-district/23UB,Cheltenham Borough Council,439026,502212,COMENSURA LIMITED,C-C23100-0115,Refuse Collection-Temporary Agency Staff,21-Dec-10,272.84
http://statistics.data.gov.uk/id/local-authority-district/23UB,Cheltenham Borough Council,439026,502212,COMENSURA LIMITED,C-C23100-0115,Refuse Collection-Temporary Agency Staff,21-Dec-10,264.36
http://statistics.data.gov.uk/id/local-authority-district/23UB,Cheltenham Borough Council,439026,502212,COMENSURA LIMITED,C-C23100-0115,Refuse Collection-Temporary Agency Staff,21-Dec-10,118.44
http://statistics.data.gov.uk/id/local-authority-district/23UB,Cheltenham Borough Council,439026,502212,COMENSURA LIMITED,C-C23100-0115,Refuse Collection-Temporary Agency Staff,21-Dec-10,485.20
http://statistics.data.gov.uk/id/local-authority-district/23UB,Cheltenham Borough Council,439026,502212,COMENSURA LIMITED,C-C23100-0115,Refuse Collection-Temporary Agency Staff,21-Dec-10,105.75
http://statistics.data.gov.uk/id/local-authority-district/23UB,Cheltenham Borough Council,439026,502212,COMENSURA LIMITED,C-C23100-0115,Refuse Collection-Temporary Agency Staff,21-Dec-10,209.39
http://statistics.data.gov.uk/id/local-authority-district/23UB,Cheltenham Borough Council,439026,502212,COMENSURA LIMITED,C-C23100-0115,Refuse Collection-Temporary Agency Staff,21-Dec-10,394.22
http://statistics.data.gov.uk/id/local-authority-district/23UB,Cheltenham Borough Council,439026,502212,COMENSURA LIMITED,C-C23100-0115,Refuse Collection-Temporary Agency Staff,21-Dec-10,97.04
http://statistics.data.gov.uk/id/local-authority-district/23UB,Cheltenham Borough Council,439026,502212,COMENSURA LIMITED,C-C23100-0115,Refuse Collection-Temporary Agency Staff,21-Dec-10,169.21
http://statistics.data.gov.uk/id/local-authority-district/23UB,Cheltenham Borough Council,439026,502212,COMENSURA LIMITED,C-C23100-0115,Refuse Collection-Temporary Agency Staff,21-Dec-10,59.22
http://statistics.data.gov.uk/id/local-authority-district/23UB,Cheltenham Borough Council,439026,502212,COMENSURA LIMITED,C-C23100-0115,Refuse Collection-Temporary Agency Staff,21-Dec-10,97.04
http://statistics.data.gov.uk/id/local-authority-district/23UB,Cheltenham Borough Council,439026,502212,COMENSURA LIMITED,C-C23100-0115,Refuse Collection-Temporary Agency Staff,21-Dec-10,63.45
http://statistics.data.gov.uk/id/local-authority-district/23UB,Cheltenham Borough Council,439026,502212,COMENSURA LIMITED,C-C23110-0115,Street Cleaning-Temporary Agency Staff,21-Dec-10,122.67
http://statistics.data.gov.uk/id/local-authority-district/23UB,Cheltenham Borough Council,439026,502212,COMENSURA LIMITED,C-C23110-0115,Street Cleaning-Temporary Agency Staff,21-Dec-10,313.02
http://statistics.data.gov.uk/id/local-authority-district/23UB,Cheltenham Borough Council,439026,502212,COMENSURA LIMITED,C-C23125-0115,Recyl Bring Schms-Temporary Agency Staff,21-Dec-10,424.55
http://statistics.data.gov.uk/id/local-authority-district/23UB,Cheltenham Borough Council,439026,502212,COMENSURA LIMITED,C-C23125-0115,Recyl Bring Schms-Temporary Agency Staff,21-Dec-10,485.20
http://statistics.data.gov.uk/id/local-authority-district/23UB,Cheltenham Borough Council,439026,502212,COMENSURA LIMITED,C-C23140-0115,Public Convnces-Temporary Agency Staff,21-Dec-10,238.93
http://statistics.data.gov.uk/id/local-authority-district/23UB,Cheltenham Borough Council,439026,502212,COMENSURA LIMITED,C-C23140-0115,Public Convnces-Temporary Agency Staff,21-Dec-10,340.58
http://statistics.data.gov.uk/id/local-authority-district/23UB,Cheltenham Borough Council,439026,502212,COMENSURA LIMITED,C-C23160-0115,Env Maint Div-Temporary Agency Staff,21-Dec-10,346.15
http://statistics.data.gov.uk/id/local-authority-district/23UB,Cheltenham Borough Council,439026,502212,COMENSURA LIMITED,C-C23180-0115,Rcycl Coltn Schms-Temporary Agency Staff,21-Dec-10,283.41
http://statistics.data.gov.uk/id/local-authority-district/23UB,Cheltenham Borough Council,439026,502212,COMENSURA LIMITED,C-C23180-0115,Rcycl Coltn Schms-Temporary Agency Staff,21-Dec-10,59.22
http://statistics.data.gov.uk/id/local-authority-district/23UB,Cheltenham Borough Council,439026,502212,COMENSURA LIMITED,C-C23180-0115,Rcycl Coltn Schms-Temporary Agency Staff,21-Dec-10,190.35
http://statistics.data.gov.uk/id/local-authority-district/23UB,Cheltenham Borough Council,439026,502212,COMENSURA LIMITED,C-C23180-0115,Rcycl Coltn Schms-Temporary Agency Staff,21-Dec-10,281.29
http://statistics.data.gov.uk/id/local-authority-district/23UB,Cheltenham Borough Council,439026,502212,COMENSURA LIMITED,C-C23180-0115,Rcycl Coltn Schms-Temporary Agency Staff,21-Dec-10,245.34
http://statistics.data.gov.uk/id/local-authority-district/23UB,Cheltenham Borough Council,439026,502212,COMENSURA LIMITED,C-C23180-0115,Rcycl Coltn Schms-Temporary Agency Staff,21-Dec-10,488.23
http://statistics.data.gov.uk/id/local-authority-district/23UB,Cheltenham Borough Council,439026,502212,COMENSURA LIMITED,C-C23180-0115,Rcycl Coltn Schms-Temporary Agency Staff,21-Dec-10,67.68
http://statistics.data.gov.uk/id/local-authority-district/23UB,Cheltenham Borough Council,439026,502212,COMENSURA LIMITED,C-C23180-0115,Rcycl Coltn Schms-Temporary Agency Staff,21-Dec-10,249.57
http://statistics.data.gov.uk/id/local-authority-district/23UB,Cheltenham Borough Council,439026,502212,COMENSURA LIMITED,C-C23180-0115,Rcycl Coltn Schms-Temporary Agency Staff,21-Dec-10,63.45
http://statistics.data.gov.uk/id/local-authority-district/23UB,Cheltenham Borough Council,439026,502212,COMENSURA LIMITED,C-C23180-0115,Rcycl Coltn Schms-Temporary Agency Staff,21-Dec-10,54.99
http://statistics.data.gov.uk/id/local-authority-district/23UB,Cheltenham Borough Council,439026,502212,COMENSURA LIMITED,C-C23190-0115,Garden Collectn-Temporary Agency Staff,21-Dec-10,71.91
http://statistics.data.gov.uk/id/local-authority-district/23UB,Cheltenham Borough Council,439026,502212,COMENSURA LIMITED,C-C23190-0115,Garden Collectn-Temporary Agency Staff,21-Dec-10,485.20
http://statistics.data.gov.uk/id/local-authority-district/23UB,Cheltenham Borough Council,439026,502212,COMENSURA LIMITED,C-C23190-0115,Garden Collectn-Temporary Agency Staff,21-Dec-10,198.81
http://statistics.data.gov.uk/id/local-authority-district/23UB,Cheltenham Borough Council,439026,502212,COMENSURA LIMITED,C-C23190-0115,Garden Collectn-Temporary Agency Staff,21-Dec-10,270.72
http://statistics.data.gov.uk/id/local-authority-district/23UB,Cheltenham Borough Council,439026,502212,COMENSURA LIMITED,C-D13100-0115,Muni Off Blgs-Temporary Agency Staff,21-Dec-10,84.60
http://statistics.data.gov.uk/id/local-authority-district/23UB,Cheltenham Borough Council,438392,2309,COMBUSTION SOLUTIONS,C-E63100-1215,Cemetery & Crem-Cremator servicing & rep,08-Dec-10,760.00
http://statistics.data.gov.uk/id/local-authority-district/23UB,Cheltenham Borough Council,438394,2313,COMBUSTION SOLUTIONS,C-PM0081-R201,Crematorium-Cremator Repairs,08-Dec-10,"2,233.50"
http://statistics.data.gov.uk/id/local-authority-district/23UB,Cheltenham Borough Council,437915,013442,CORY ENVIRONMENTAL LTD,C-C23100-3581,Refuse Collctn-Tipping charges,03-Dec-10,"4,545.99"
http://statistics.data.gov.uk/id/local-authority-district/23UB,Cheltenham Borough Council,437915,013442,CORY ENVIRONMENTAL LTD,C-C23100-3581,Refuse Collctn-Tipping charges,03-Dec-10,0.29
http://statistics.data.gov.uk/id/local-authority-district/23UB,Cheltenham Borough Council,438762,013553,CORY ENVIRONMENTAL LTD,C-C23100-3581,Refuse Collctn-Tipping charges,16-Dec-10,"4,700.95"
http://statistics.data.gov.uk/id/local-authority-district/23UB,Cheltenham Borough Council,438370,2607,CORNERSTONE LEARNING LTD,C-D12310-0205,Corporate Trg-Training fees/exp (Corp),08-Dec-10,539.00
http://statistics.data.gov.uk/id/local-authority-district/23UB,Cheltenham Borough Council,438504,19367,COTSWOLD DRAIN SERVICES LTD,C-D21250-3972,Civil Emergency-EU Restoration Fund,16-Dec-10,240.00
http://statistics.data.gov.uk/id/local-authority-district/23UB,Cheltenham Borough Council,438505,19368,COTSWOLD DRAIN SERVICES LTD,C-E22100-1129,Chel River&W/C-CBC Riparian Ownership,16-Dec-10,320.00
http://statistics.data.gov.uk/id/local-authority-district/23UB,Cheltenham Borough Council,438801,19382,COTSWOLD DRAIN SERVICES LTD,C-D21250-3972,Civil Emergency-EU Restoration Fund,16-Dec-10,"7,744.00"
http://statistics.data.gov.uk/id/local-authority-district/23UB,Cheltenham Borough Council,438166,OCT A/C,COTSWOLD & GLOS TOURIST GUIDES ASSOC.,C-Z12310-3941,TIC Agency-Coach Tours - Expenses,03-Dec-10,525.00
http://statistics.data.gov.uk/id/local-authority-district/23UB,Cheltenham Borough Council,438166,OCT A/C,COTSWOLD & GLOS TOURIST GUIDES ASSOC.,C-Z12310-3945,TIC Agency-Walking Tours Expenses,03-Dec-10,392.40
http://statistics.data.gov.uk/id/local-authority-district/23UB,Cheltenham Borough Council,439023,P111,COTSWOLD ESTATES & GARDENS,C-LC6015-C405,LeckhamptonHill-Specialist Contractor,20-Dec-10,"10,900.20"
http://statistics.data.gov.uk/id/local-authority-district/23UB,Cheltenham Borough Council,438758,1616453,CRAEMER UK LIMITED,C-C23100-3101,Refuse Collctn-Equipment purchases,16-Dec-10,"11,585.00"
http://statistics.data.gov.uk/id/local-authority-district/23UB,Cheltenham Borough Council,438984,SETTLEMENT,MRS R CREED T/A HOWLERS COMEDY CLUB,C-N13125-9206,ASH Ledger-PPR Invoices Paid,16-Dec-10,-387.19
http://statistics.data.gov.uk/id/local-authority-district/23UB,Cheltenham Borough Council,438984,SETTLEMENT,MRS R CREED T/A HOWLERS COMEDY CLUB,C-Z12210-9138,Box Off A/C-TH Hirers Tkt Pd out,16-Dec-10,"1,898.00"
http://statistics.data.gov.uk/id/local-authority-district/23UB,Cheltenham Borough Council,439019,SETTLEMENT,MRS R CREED T/A HOWLERS COMEDY CLUB,C-N13125-9205,ASH Ledger-Town Hall Invoices Paid,20-Dec-10,-531.68
http://statistics.data.gov.uk/id/local-authority-district/23UB,Cheltenham Borough Council,439019,SETTLEMENT,MRS R CREED T/A HOWLERS COMEDY CLUB,C-Z12210-9138,Box Off A/C-TH Hirers Tkt Pd out,20-Dec-10,"2,977.00"
http://statistics.data.gov.uk/id/local-authority-district/23UB,Cheltenham Borough Council,438467,769881,CRIMINAL RECORDS BUREAU,C-A21500-3501,Licensing-Hire of outside services,09-Dec-10,"1,332.00"
http://statistics.data.gov.uk/id/local-authority-district/23UB,Cheltenham Borough Council,438467,769881,CRIMINAL RECORDS BUREAU,C-L11500-3501,Rec Facilities-Hire of outside services,09-Dec-10,216.00
http://statistics.data.gov.uk/id/local-authority-district/23UB,Cheltenham Borough Council,438467,769881,CRIMINAL RECORDS BUREAU,C-Z16500-9101,CBH Holding Acc-Payments,09-Dec-10,36.00
http://statistics.data.gov.uk/id/local-authority-district/23UB,Cheltenham Borough Council,438922,PS02398,CSS CAR SOUNDS & SECURITY,C-L11500-3167,Rec Facilities-Maintenance Agreements,16-Dec-10,452.00
http://statistics.data.gov.uk/id/local-authority-district/23UB,Cheltenham Borough Council,438922,PS02398,CSS CAR SOUNDS & SECURITY,C-L11500-3167,Rec Facilities-Maintenance Agreements,16-Dec-10,54.10
http://statistics.data.gov.uk/id/local-authority-district/23UB,Cheltenham Borough Council,438922,PS02398,CSS CAR SOUNDS & SECURITY,C-L11500-3167,Rec Facilities-Maintenance Agreements,16-Dec-10,20.70
http://statistics.data.gov.uk/id/local-authority-district/23UB,Cheltenham Borough Council,438922,PS02398,CSS CAR SOUNDS & SECURITY,C-L11500-3167,Rec Facilities-Maintenance Agreements,16-Dec-10,171.00
http://statistics.data.gov.uk/id/local-authority-district/23UB,Cheltenham Borough Council,438922,PS02398,CSS CAR SOUNDS & SECURITY,C-L11500-3167,Rec Facilities-Maintenance Agreements,16-Dec-10,118.75
http://statistics.data.gov.uk/id/local-authority-district/23UB,Cheltenham Borough Council,437862,WO96166,CYCLESCHEME LIMITED,C-N16110-9101,Cycle loans/pur-Payments,01-Dec-10,551.44
http://statistics.data.gov.uk/id/local-authority-district/23UB,Cheltenham Borough Council,437862,WO96166,CYCLESCHEME LIMITED,C-N16110-9101,Cycle loans/pur-Payments,01-Dec-10,29.99
http://statistics.data.gov.uk/id/local-authority-district/23UB,Cheltenham Borough Council,438022,REDACTED,REDACTED,C-S31400-9150,Other Deds Cntr-Payroll Schedules,01-Dec-10,730.00
http://statistics.data.gov.uk/id/local-authority-district/23UB,Cheltenham Borough Council,438008,GRANT,D'ARCY GALLERY ART,C-D34400-3863,Bus & Econ Dev-Grants - Gen G.E.A. Cont,01-Dec-10,500.00
http://statistics.data.gov.uk/id/local-authority-district/23UB,Cheltenham Borough Council,437942,900051707,DAVIS LANGDON LLP,C-L41100-3816,AG & M-RIBA - Fees,01-Dec-10,"3,000.00"
http://statistics.data.gov.uk/id/local-authority-district/23UB,Cheltenham Borough Council,437943,900055844,DAVIS LANGDON LLP,C-L41100-3816,AG & M-RIBA - Fees,01-Dec-10,"5,000.00"
http://statistics.data.gov.uk/id/local-authority-district/23UB,Cheltenham Borough Council,439067,7401794388,DELL COMPUTER CORPORATION LTD,C-D11820-3660,IT Infrastructu-Hardware PC & Servers,23-Dec-10,571.06
http://statistics.data.gov.uk/id/local-authority-district/23UB,Cheltenham Borough Council,439066,7401793098,DELL COMPUTER CORPORATION LTD,C-D11820-3660,IT Infrastructu-Hardware PC & Servers,23-Dec-10,27.00
http://statistics.data.gov.uk/id/local-authority-district/23UB,Cheltenham Borough Council,439130,38602,DELAWARE COMMUNICATIONS PLC,C-E61500-3103,CCTV/TC Safety-Equipment repairs & maint,30-Dec-10,"1,419.17"
http://statistics.data.gov.uk/id/local-authority-district/23UB,Cheltenham Borough Council,439129,38603,DELAWARE COMMUNICATIONS PLC,C-E61500-3103,CCTV/TC Safety-Equipment repairs & maint,30-Dec-10,"1,419.17"
http://statistics.data.gov.uk/id/local-authority-district/23UB,Cheltenham Borough Council,438257,DE10520764,DENNIS EAGLE,C-C24100-3582,Fleet Maint-DSO Invoices,08-Dec-10,517.77
http://statistics.data.gov.uk/id/local-authority-district/23UB,Cheltenham Borough Council,438254,de10521340,DENNIS EAGLE,C-C24100-3582,Fleet Maint-DSO Invoices,08-Dec-10,19.45
http://statistics.data.gov.uk/id/local-authority-district/23UB,Cheltenham Borough Council,438255,de10521341,DENNIS EAGLE,C-C24100-3582,Fleet Maint-DSO Invoices,08-Dec-10,63.02
http://statistics.data.gov.uk/id/local-authority-district/23UB,Cheltenham Borough Council,438256,DE10521342,DENNIS EAGLE,C-C24100-3582,Fleet Maint-DSO Invoices,08-Dec-10,36.40
http://statistics.data.gov.uk/id/local-authority-district/23UB,Cheltenham Borough Council,438545,183465,DENNIS EAGLE,C-C24100-3582,Fleet Maint-DSO Invoices,16-Dec-10,"1,164.84"
http://statistics.data.gov.uk/id/local-authority-district/23UB,Cheltenham Borough Council,438546,DE10522037,DENNIS EAGLE,C-C24100-3582,Fleet Maint-DSO Invoices,16-Dec-10,598.23
http://statistics.data.gov.uk/id/local-authority-district/23UB,Cheltenham Borough Council,438544,DE10522306,DENNIS EAGLE,C-C24100-3582,Fleet Maint-DSO Invoices,16-Dec-10,87.52
http://statistics.data.gov.uk/id/local-authority-district/23UB,Cheltenham Borough Council,438682,DE10522888,DENNIS EAGLE,C-C24100-3582,Fleet Maint-DSO Invoices,16-Dec-10,306.76
http://statistics.data.gov.uk/id/local-authority-district/23UB,Cheltenham Borough Council,438964,DE10523457,DENNIS EAGLE,C-C24100-3582,Fleet Maint-DSO Invoices,16-Dec-10,842.94
http://statistics.data.gov.uk/id/local-authority-district/23UB,Cheltenham Borough Council,438963,DE10523735,DENNIS EAGLE,C-C24100-3582,Fleet Maint-DSO Invoices,16-Dec-10,24.03
http://statistics.data.gov.uk/id/local-authority-district/23UB,Cheltenham Borough Council,437857,00168,DEVELOPING POTENTIAL UK LIMITED,C-D12310-0205,Corporate Trg-Training fees/exp (Corp),01-Dec-10,680.00
http://statistics.data.gov.uk/id/local-authority-district/23UB,Cheltenham Borough Council,438252,000169,DEVELOPING POTENTIAL UK LIMITED,C-D12310-0205,Corporate Trg-Training fees/exp (Corp),08-Dec-10,770.00
http://statistics.data.gov.uk/id/local-authority-district/23UB,Cheltenham Borough Council,438268,GRANT,PAUL DOBSON CARPETS,C-D34400-3862,Bus & Econ Dev-Grants - Local G.E.A. Con,08-Dec-10,"1,250.00"
http://statistics.data.gov.uk/id/local-authority-district/23UB,Cheltenham Borough Council,438465,187186,DOMESTIC AND GENERAL INSULATION LTD,C-HC4076-C302,Loft/Cavity Ins-Building Contractor,09-Dec-10,189.52
http://statistics.data.gov.uk/id/local-authority-district/23UB,Cheltenham Borough Council,438466,187187,DOMESTIC AND GENERAL INSULATION LTD,C-HC4374-C308,Loft Insul. Imp-ALMO SCA Contractor,09-Dec-10,745.00
http://statistics.data.gov.uk/id/local-authority-district/23UB,Cheltenham Borough Council,438678,M024,DOWNING BENTLEY,C-DC1066-C849,Lnd&Prop presal-Miscellaneous other,16-Dec-10,"1,914.00"
http://statistics.data.gov.uk/id/local-authority-district/23UB,Cheltenham Borough Council,438658,394013/T215597,DTZ,C-D30200-1103,Misc Props & Ld-Special building maint,16-Dec-10,"350,000.00"
http://statistics.data.gov.uk/id/local-authority-district/23UB,Cheltenham Borough Council,438658,394013/T215597,DTZ,C-D30200-1103,Misc Props & Ld-Special building maint,16-Dec-10,"166,807.45"
http://statistics.data.gov.uk/id/local-authority-district/23UB,Cheltenham Borough Council,438658,394013/T215597,DTZ,C-D30200-8811,Misc Props & Ld-Regent Arcade rents,16-Dec-10,"-357,098.61"
http://statistics.data.gov.uk/id/local-authority-district/23UB,Cheltenham Borough Council,438658,394013/T215597,DTZ,C-E21100-1106,Car Prks-Off St-Reg Arcade-fixed mnt cst,16-Dec-10,"79,906.70"
http://statistics.data.gov.uk/id/local-authority-district/23UB,Cheltenham Borough Council,438659,394014/T215597,DTZ,C-D30200-8811,Misc Props & Ld-Regent Arcade rents,16-Dec-10,"-38,588.00"
http://statistics.data.gov.uk/id/local-authority-district/23UB,Cheltenham Borough Council,438660,399931/T215597,DTZ,C-E21100-1106,Car Prks-Off St-Reg Arcade-fixed mnt cst,16-Dec-10,"14,250.00"
http://statistics.data.gov.uk/id/local-authority-district/23UB,Cheltenham Borough Council,439141,90796429,DX NETWORK SERVICES LIMITED,C-D13100-3501,Muni Off Blgs-Hire of outside services,30-Dec-10,696.58
http://statistics.data.gov.uk/id/local-authority-district/23UB,Cheltenham Borough Council,439141,90796429,DX NETWORK SERVICES LIMITED,C-D21600-3602,Land Charges-Postages - frkng machine,30-Dec-10,"2,089.75"
http://statistics.data.gov.uk/id/local-authority-district/23UB,Cheltenham Borough Council,438438,12009,EAGLE LINE TRAVEL,C-L31100-3510,TIC-Promotion & Marketing,09-Dec-10,225.00
http://statistics.data.gov.uk/id/local-authority-district/23UB,Cheltenham Borough Council,438439,12020,EAGLE LINE TRAVEL,C-L31100-3510,TIC-Promotion & Marketing,09-Dec-10,260.00
http://statistics.data.gov.uk/id/local-authority-district/23UB,Cheltenham Borough Council,438440,12045,EAGLE LINE TRAVEL,C-L31100-3510,TIC-Promotion & Marketing,09-Dec-10,225.00
http://statistics.data.gov.uk/id/local-authority-district/23UB,Cheltenham Borough Council,438441,12087,EAGLE LINE TRAVEL,C-L31100-3510,TIC-Promotion & Marketing,09-Dec-10,260.00
http://statistics.data.gov.uk/id/local-authority-district/23UB,Cheltenham Borough Council,438432,REDACTED,REDACTED,C-P12250-9104,Tenants Rent-Refunds,09-Dec-10,583.40
http://statistics.data.gov.uk/id/local-authority-district/23UB,Cheltenham Borough Council,438051,201000001041/971,C B RICHARD ELLIS,C-D13550-1501,Area Off -E.Hse-Rents,03-Dec-10,"17,170.50"
http://statistics.data.gov.uk/id/local-authority-district/23UB,Cheltenham Borough Council,438580,301267/11/2010,ENER-G,C-L11500-1402,Rec Facilities-Electricity,16-Dec-10,"3,371.62"
http://statistics.data.gov.uk/id/local-authority-district/23UB,Cheltenham Borough Council,439133,3350,ESI LIMITED,C-E61600-3173,Contaminatd Lnd-Exp-Sandy Lane Playg Fld,30-Dec-10,"2,105.00"
http://statistics.data.gov.uk/id/local-authority-district/23UB,Cheltenham Borough Council,439134,3351,ESI LIMITED,C-E61600-3174,Contaminatd Lnd-Exp-Church Piece Plyg Fl,30-Dec-10,"4,558.75"
http://statistics.data.gov.uk/id/local-authority-district/23UB,Cheltenham Borough Council,439132,3357,ESI LIMITED,C-E61600-3239,Contaminatd Lnd-Alstone Lane Grant expen,30-Dec-10,"2,100.90"
http://statistics.data.gov.uk/id/local-authority-district/23UB,Cheltenham Borough Council,438009,REDACTED,REDACTED,C-H22400-3828,Homelessness-Prevention Fund,01-Dec-10,500.00
http://statistics.data.gov.uk/id/local-authority-district/23UB,Cheltenham Borough Council,438428,CREM FEES REFU,FAMILY TREE FUNERAL CO,C-E63100-8425,Cemetery & Crem-Cremation fees,09-Dec-10,555.00
http://statistics.data.gov.uk/id/local-authority-district/23UB,Cheltenham Borough Council,439092,GRANT,FOCUS NETWORKS UK LIMITED,C-D34400-3862,Bus & Econ Dev-Grants - Local G.E.A. Con,23-Dec-10,"1,250.00"
http://statistics.data.gov.uk/id/local-authority-district/23UB,Cheltenham Borough Council,438796,0338,FRONTLINE COMMUNICATION,C-L41100-3101,AG & M-Equipment purchases,16-Dec-10,"2,400.00"
http://statistics.data.gov.uk/id/local-authority-district/23UB,Cheltenham Borough Council,438004,5167,FUTRA LTD,C-C24150-3170,Fleet Managemnt-Fuel system maintenance,01-Dec-10,904.00
http://statistics.data.gov.uk/id/local-authority-district/23UB,Cheltenham Borough Council,437861,3075,GAVCA,C-D21950-3501,Community Plan-Hire of outside services,01-Dec-10,"3,000.00"
http://statistics.data.gov.uk/id/local-authority-district/23UB,Cheltenham Borough Council,438548,RP 101051,GIFFORD,C-D21250-3972,Civil Emergency-EU Restoration Fund,16-Dec-10,150.00
http://statistics.data.gov.uk/id/local-authority-district/23UB,Cheltenham Borough Council,438548,RP 101051,GIFFORD,C-D21250-3974,Civil Emergency-Multi-agency funding,16-Dec-10,150.00
http://statistics.data.gov.uk/id/local-authority-district/23UB,Cheltenham Borough Council,438557,RP 101053,GIFFORD,C-D21250-3972,Civil Emergency-EU Restoration Fund,16-Dec-10,150.00
http://statistics.data.gov.uk/id/local-authority-district/23UB,Cheltenham Borough Council,438557,RP 101053,GIFFORD,C-D21250-3972,Civil Emergency-EU Restoration Fund,16-Dec-10,150.00
http://statistics.data.gov.uk/id/local-authority-district/23UB,Cheltenham Borough Council,438549,RP 101057,GIFFORD,C-C22110-1301,Parks & Gardens-Routine grounds maint,16-Dec-10,"1,975.00"
http://statistics.data.gov.uk/id/local-authority-district/23UB,Cheltenham Borough Council,438547,RP101052,GIFFORD,C-D21250-3972,Civil Emergency-EU Restoration Fund,16-Dec-10,150.00
http://statistics.data.gov.uk/id/local-authority-district/23UB,Cheltenham Borough Council,438547,RP101052,GIFFORD,C-D21250-3974,Civil Emergency-Multi-agency funding,16-Dec-10,150.00
http://statistics.data.gov.uk/id/local-authority-district/23UB,Cheltenham Borough Council,439123,CSD1655066,GILLMANS SERVICE,C-HC4068-C302,Sheltered Hsg-Building Contractor,30-Dec-10,"1,440.00"
http://statistics.data.gov.uk/id/local-authority-district/23UB,Cheltenham Borough Council,439122,CSDS1655067,GILLMANS SERVICE,C-HC4068-C302,Sheltered Hsg-Building Contractor,30-Dec-10,976.00
http://statistics.data.gov.uk/id/local-authority-district/23UB,Cheltenham Borough Council,438872,18378,GLEVUM SECURITY,C-E21100-3501,Car Prks-Off St-Hire of outside services,16-Dec-10,"2,477.22"
http://statistics.data.gov.uk/id/local-authority-district/23UB,Cheltenham Borough Council,438872,18378,GLEVUM SECURITY,C-E21100-3501,Car Prks-Off St-Hire of outside services,16-Dec-10,"1,883.09"
http://statistics.data.gov.uk/id/local-authority-district/23UB,Cheltenham Borough Council,438872,18378,GLEVUM SECURITY,C-E21100-3501,Car Prks-Off St-Hire of outside services,16-Dec-10,"2,567.95"
http://statistics.data.gov.uk/id/local-authority-district/23UB,Cheltenham Borough Council,438104,22744,GLIDE MEDIA MARKETING,C-0T70L0-3527,Folk Festival-Distribution/Mailing,03-Dec-10,527.92
http://statistics.data.gov.uk/id/local-authority-district/23UB,Cheltenham Borough Council,438105,22745,GLIDE MEDIA MARKETING,C-0T31J1-3527,New Years Eve-Distribution/Mailing,03-Dec-10,101.00
http://statistics.data.gov.uk/id/local-authority-district/23UB,Cheltenham Borough Council,438435,22688,GLIDE MEDIA MARKETING,C-L31100-3602,TIC-Postages,09-Dec-10,840.19
http://statistics.data.gov.uk/id/local-authority-district/23UB,Cheltenham Borough Council,439012,22737,GLIDE MEDIA MARKETING,C-L31100-3510,TIC-Promotion & Marketing,20-Dec-10,"2,278.80"
http://statistics.data.gov.uk/id/local-authority-district/23UB,Cheltenham Borough Council,437853,10854921,GLOUCESTER CITY COUNCIL,C-H22400-3501,Homelessness-Hire of outside services,01-Dec-10,77.20
http://statistics.data.gov.uk/id/local-authority-district/23UB,Cheltenham Borough Council,437854,10854938,GLOUCESTER CITY COUNCIL,C-B51145-3501,Joint Core Stra-Hire of outside services,01-Dec-10,"30,000.00"
http://statistics.data.gov.uk/id/local-authority-district/23UB,Cheltenham Borough Council,438103,10851408,GLOUCESTER CITY COUNCIL,C-H22600-3920,Community Servs-Advertising,03-Dec-10,774.00
http://statistics.data.gov.uk/id/local-authority-district/23UB,Cheltenham Borough Council,437806,1800156405,GLOUCESTERSHIRE COUNTY COUNCIL,C-D21250-3925,Civil Emergency-Civil Emergency planning,01-Dec-10,"16,729.00"
http://statistics.data.gov.uk/id/local-authority-district/23UB,Cheltenham Borough Council,437809,1800156434,GLOUCESTERSHIRE COUNTY COUNCIL,C-EC0043-C101,StreetFurniture-Project Est for this Yea,01-Dec-10,"12,000.00"
http://statistics.data.gov.uk/id/local-authority-district/23UB,Cheltenham Borough Council,437814,1800156641,GLOUCESTERSHIRE COUNTY COUNCIL,C-E36200-4528,On-St Car Prkng-Net income paid to GCC,01-Dec-10,"74,769.84"
http://statistics.data.gov.uk/id/local-authority-district/23UB,Cheltenham Borough Council,437813,1800157028,GLOUCESTERSHIRE COUNTY COUNCIL,C-D32400-3501,Elderly Trspt-Hire of outside services,01-Dec-10,"1,542.08"
http://statistics.data.gov.uk/id/local-authority-district/23UB,Cheltenham Borough Council,437811,1800157131,GLOUCESTERSHIRE COUNTY COUNCIL,C-D32400-4126,Elderly Trspt-Paymts to Bus Cos-Full Far,01-Dec-10,"78,970.81"
http://statistics.data.gov.uk/id/local-authority-district/23UB,Cheltenham Borough Council,438096,1800158045,GLOUCESTERSHIRE COUNTY COUNCIL,C-B51160-3501,Civic Pride-Hire of outside services,03-Dec-10,"8,950.00"
http://statistics.data.gov.uk/id/local-authority-district/23UB,Cheltenham Borough Council,438595,00003365 GRCC,GLOUCESTERSHIRE RURAL COMMUNITY COUNCIL,C-D34400-3801,Bus & Econ Dev-Grants,16-Dec-10,"5,000.00"
http://statistics.data.gov.uk/id/local-authority-district/23UB,Cheltenham Borough Council,439018,SETTLEMENT,GLOUCESTERSHIRE COUNTY COUNCIL,C-N13125-9205,ASH Ledger-Town Hall Invoices Paid,20-Dec-10,"-1,293.74"
http://statistics.data.gov.uk/id/local-authority-district/23UB,Cheltenham Borough Council,439018,SETTLEMENT,GLOUCESTERSHIRE COUNTY COUNCIL,C-Z12210-9138,Box Off A/C-TH Hirers Tkt Pd out,20-Dec-10,"1,942.00"
http://statistics.data.gov.uk/id/local-authority-district/23UB,Cheltenham Borough Council,438487,CONTRIBUTION,GLOUCESTERSHIRE GUILD OF CRAFTSMEN,C-L41100-3540,AG & M-Educ-lectures/workshops,16-Dec-10,500.00
http://statistics.data.gov.uk/id/local-authority-district/23UB,Cheltenham Borough Council,438749,SIN001732,GLOUCESTERSHIRE TOURISM,C-L31100-3803,TIC-Grants -Tourism,16-Dec-10,"3,000.00"
http://statistics.data.gov.uk/id/local-authority-district/23UB,Cheltenham Borough Council,438012,210078,GLOUCESTERSHIRE WARKS STEAM RAILWAY PLC,C-Z12445-OR01,Com Outreach-School Workshops,01-Dec-10,585.70
http://statistics.data.gov.uk/id/local-authority-district/23UB,Cheltenham Borough Council,438881,15,W GODDARD,C-Z12210-9138,Box Off A/C-TH Hirers Tkt Pd out,16-Dec-10,"5,000.00"
http://statistics.data.gov.uk/id/local-authority-district/23UB,Cheltenham Borough Council,437964,44038,GOOCH GROUP LTD,C-H33700-1712,Estate Services-Estate cleaning-reactive,01-Dec-10,555.00
http://statistics.data.gov.uk/id/local-authority-district/23UB,Cheltenham Borough Council,437959,44403,GOOCH GROUP LTD,C-D13100-1703,Muni Off Blgs-Window cleaning,01-Dec-10,90.00
http://statistics.data.gov.uk/id/local-authority-district/23UB,Cheltenham Borough Council,437836,44410,GOOCH GROUP LTD,C-D13100-1703,Muni Off Blgs-Window cleaning,01-Dec-10,20.00
http://statistics.data.gov.uk/id/local-authority-district/23UB,Cheltenham Borough Council,438868,10/2354/2811,D GRAY SURFACING LTD,C-E21100-1101,Car Prks-Off St-General building repairs,16-Dec-10,"1,595.00"
http://statistics.data.gov.uk/id/local-authority-district/23UB,Cheltenham Borough Council,438858,312152,GREENWAY PARTNERSHIP LIMITED,C-C23140-1809,Public Convnces-RM-sanitary works,16-Dec-10,926.00
http://statistics.data.gov.uk/id/local-authority-district/23UB,Cheltenham Borough Council,438857,1312151,GREENWAY PARTNERSHIP LIMITED,C-PM0080-R027,Cemetery-DDA Works,16-Dec-10,"4,320.00"
http://statistics.data.gov.uk/id/local-authority-district/23UB,Cheltenham Borough Council,438889,1,P GUPPY,C-0T19H1-3151,Chris Addison-Specialist Equipment,16-Dec-10,160.00
http://statistics.data.gov.uk/id/local-authority-district/23UB,Cheltenham Borough Council,438888,3,P GUPPY,C-0T90H0-3559,Hirers-Recoverable Event Exp,16-Dec-10,260.00
http://statistics.data.gov.uk/id/local-authority-district/23UB,Cheltenham Borough Council,438890,4,P GUPPY,C-0T06J1-3151,Gervase Phinn-Specialist Equipment,16-Dec-10,160.00
http://statistics.data.gov.uk/id/local-authority-district/23UB,Cheltenham Borough Council,438204,W40431,HALCROW CONSULTING ENGINEERS,C-D21250-3973,Civil Emergency-EA FDGIA allocation,08-Dec-10,"6,000.00"
http://statistics.data.gov.uk/id/local-authority-district/23UB,Cheltenham Borough Council,438207,W40432,HALCROW CONSULTING ENGINEERS,C-D21250-3973,Civil Emergency-EA FDGIA allocation,08-Dec-10,"5,674.89"
http://statistics.data.gov.uk/id/local-authority-district/23UB,Cheltenham Borough Council,438206,W40441,HALCROW CONSULTING ENGINEERS,C-D21250-3973,Civil Emergency-EA FDGIA allocation,08-Dec-10,"17,582.74"
http://statistics.data.gov.uk/id/local-authority-district/23UB,Cheltenham Borough Council,438059,6145,HALAROSE LIMITED,C-D21300-3623,District Elects-Cmpter-sftwre lic purch,03-Dec-10,176.19
http://statistics.data.gov.uk/id/local-authority-district/23UB,Cheltenham Borough Council,438059,6145,HALAROSE LIMITED,C-D21300-3623,District Elects-Cmpter-sftwre lic purch,03-Dec-10,792.86
http://statistics.data.gov.uk/id/local-authority-district/23UB,Cheltenham Borough Council,438059,6145,HALAROSE LIMITED,C-D21300-3623,District Elects-Cmpter-sftwre lic purch,03-Dec-10,176.20
http://statistics.data.gov.uk/id/local-authority-district/23UB,Cheltenham Borough Council,438111,6166,HALAROSE LIMITED,C-D21500-0204,Elec.Reg.Overhe-Training fees/exp (Prof),03-Dec-10,460.00
http://statistics.data.gov.uk/id/local-authority-district/23UB,Cheltenham Borough Council,438588,6175,HALAROSE LIMITED,C-D21400-3401,Electoral Regn Hire outside services,16-Dec-10,"1,361.16"
http://statistics.data.gov.uk/id/local-authority-district/23UB,Cheltenham Borough Council,438018,REDACTED,HANOVER HOUSING ASSOCIATION,C-HC7440-C801,DFG.96.Act-Grants,01-Dec-10,"1,848.38"
http://statistics.data.gov.uk/id/local-authority-district/23UB,Cheltenham Borough Council,438125,REDACTED,HANOVER HOUSING ASSOCIATION,C-HC7440-C801,DFG.96.Act-Grants,03-Dec-10,"6,248.25"
http://statistics.data.gov.uk/id/local-authority-district/23UB,Cheltenham Borough Council,438126,REDACTED,HANOVER HOUSING ASSOCIATION,C-HC7440-C801,DFG.96.Act-Grants,03-Dec-10,"5,090.63"
http://statistics.data.gov.uk/id/local-authority-district/23UB,Cheltenham Borough Council,438407,REDACTED,HANOVER HOUSING ASSOCIATION,C-HC4100-C801,Dis.Adapt.HRA-Grants,08-Dec-10,"5,253.75"
http://statistics.data.gov.uk/id/local-authority-district/23UB,Cheltenham Borough Council,438405,REDACTED,HANOVER HOUSING ASSOCIATION,C-HC7440-C801,DFG.96.Act-Grants,08-Dec-10,"2,910.63"
http://statistics.data.gov.uk/id/local-authority-district/23UB,Cheltenham Borough Council,438406,REDACTED,HANOVER HOUSING ASSOCIATION,C-HC4100-C801,Dis.Adapt.HRA-Grants,08-Dec-10,"6,357.38"
http://statistics.data.gov.uk/id/local-authority-district/23UB,Cheltenham Borough Council,438489,REDACTED,HANOVER HOUSING ASSOCIATION,C-HC4100-C801,Dis.Adapt.HRA-Grants,16-Dec-10,"9,758.25"
http://statistics.data.gov.uk/id/local-authority-district/23UB,Cheltenham Borough Council,438488,REDACTED,HANOVER HOUSING ASSOCIATION,C-HC4100-C801,Dis.Adapt.HRA-Grants,16-Dec-10,"5,107.50"
http://statistics.data.gov.uk/id/local-authority-district/23UB,Cheltenham Borough Council,438994,REDACTED,HANOVER HOUSING ASSOCIATION,C-HC7440-C801,DFG.96.Act-Grants,16-Dec-10,"13,148.62"
http://statistics.data.gov.uk/id/local-authority-district/23UB,Cheltenham Borough Council,438993,REDACTED,HANOVER HOUSING ASSOCIATION,C-HC4100-C801,Dis.Adapt.HRA-Grants,16-Dec-10,"6,305.63"
http://statistics.data.gov.uk/id/local-authority-district/23UB,Cheltenham Borough Council,438995,REDACTED,HANOVER HOUSING ASSOCIATION,C-HC7440-C801,DFG.96.Act-Grants,16-Dec-10,"5,990.63"
http://statistics.data.gov.uk/id/local-authority-district/23UB,Cheltenham Borough Council,437997,HASKONING PPC,HASKONING UK LIMITED,C-HC4053-C302,Internal Imp-Building Contractor,01-Dec-10,500.00
http://statistics.data.gov.uk/id/local-authority-district/23UB,Cheltenham Borough Council,438684,HAZLEWDS 13337,HAZLEWOODS,C-HC4059-C302,Concrete repair-Building Contractor,16-Dec-10,845.00
http://statistics.data.gov.uk/id/local-authority-district/23UB,Cheltenham Borough Council,438859,134233,HAZLEWOODS,C-PM0081-R201,Crematorium-Cremator Repairs,16-Dec-10,540.00
http://statistics.data.gov.uk/id/local-authority-district/23UB,Cheltenham Borough Council,439065,6687065,HEWLETT PACKARD LIMITED,C-DC3211-C101,WorkingFlexibly-Project Est for this Yea,23-Dec-10,"2,354.94"
http://statistics.data.gov.uk/id/local-authority-district/23UB,Cheltenham Borough Council,437929,19130,HOGE 100 BUSINESS SYSTEMS LTD,C-E63100-3623,Cemetery & Crem-Cmpter-sftwre lic purch,01-Dec-10,"1,100.00"
http://statistics.data.gov.uk/id/local-authority-district/23UB,Cheltenham Borough Council,438417,SETTLEMENT,HOLST BIRTHPLACE TRUST,C-N13125-9206,ASH Ledger-PPR Invoices Paid,08-Dec-10,-517.56
http://statistics.data.gov.uk/id/local-authority-district/23UB,Cheltenham Borough Council,438417,SETTLEMENT,HOLST BIRTHPLACE TRUST,C-Z12210-9137,Box Off A/C-PPR Hirers Tkt Pd out,08-Dec-10,"2,074.00"
http://statistics.data.gov.uk/id/local-authority-district/23UB,Cheltenham Borough Council,438417,SETTLEMENT,HOLST BIRTHPLACE TRUST,C-Z12210-9276,Box Off A/C-Hirers Invoices Pd,08-Dec-10,-250.00
http://statistics.data.gov.uk/id/local-authority-district/23UB,Cheltenham Borough Council,438766,IUG00003044,HYDER ENVIRONMENT,C-E61600-3179,Contaminatd Lnd-Marle Hill revenue expen,16-Dec-10,"3,157.60"
http://statistics.data.gov.uk/id/local-authority-district/23UB,Cheltenham Borough Council,437819,4683,ICON NET LIMITED,C-L41100-3599,AG & M-Special Project,01-Dec-10,"1,250.00"
http://statistics.data.gov.uk/id/local-authority-district/23UB,Cheltenham Borough Council,438938,4708,ICON NET LIMITED,C-L41100-3599,AG & M-Special Project,16-Dec-10,"2,500.00"
http://statistics.data.gov.uk/id/local-authority-district/23UB,Cheltenham Borough Council,438849,850028050060,IMAGINE COOPERATIVE CHILDCARE,C-S31600-0118,Childcare Vchrs-Childcare vchr admin fee,16-Dec-10,204.55
http://statistics.data.gov.uk/id/local-authority-district/23UB,Cheltenham Borough Council,438849,850028050060,IMAGINE COOPERATIVE CHILDCARE,C-S31600-9101,Childcare Vchrs-Payments,16-Dec-10,"3,719.02"
http://statistics.data.gov.uk/id/local-authority-district/23UB,Cheltenham Borough Council,439034,01050,INFX NETWORKS LIMITED,C-L21100-3623,Town Hall-Cmpter-sftwre lic purch,23-Dec-10,"44,332.50"
http://statistics.data.gov.uk/id/local-authority-district/23UB,Cheltenham Borough Council,438120,PSI012897,INTRINSIC TECHNOLOGY LIMITED,C-D11820-3654,IT Infrastructu-Private Circuits,03-Dec-10,"1,560.00"
http://statistics.data.gov.uk/id/local-authority-district/23UB,Cheltenham Borough Council,438120,PSI012897,INTRINSIC TECHNOLOGY LIMITED,C-D11820-3654,IT Infrastructu-Private Circuits,03-Dec-10,"4,839.00"
http://statistics.data.gov.uk/id/local-authority-district/23UB,Cheltenham Borough Council,439039,1011021,JCA OCCUPATIONAL PSYCHOLOGISTS LIMITED,C-D12400-0204,Training Expenses,23-Dec-10,"2,250.00"
http://statistics.data.gov.uk/id/local-authority-district/23UB,Cheltenham Borough Council,439098,H1420,P H JONES LIMITED,C-H46100-1104,Cen.Heat.Serv-Council House repairs,23-Dec-10,"47,165.74"
http://statistics.data.gov.uk/id/local-authority-district/23UB,Cheltenham Borough Council,439098,H1420,P H JONES LIMITED,C-HC4061-C302,New Heating Ins-Building Contractor,23-Dec-10,"26,806.60"
http://statistics.data.gov.uk/id/local-authority-district/23UB,Cheltenham Borough Council,439098,H1420,P H JONES LIMITED,C-HC4079-C302,Gas - void-Building Contractor,23-Dec-10,"2,999.74"
http://statistics.data.gov.uk/id/local-authority-district/23UB,Cheltenham Borough Council,438424,H1412,HARROLD-JONES  SERVICES,C-HC4062-C302,Door Entry-Building Contractor,08-Dec-10,"21,432.00"
http://statistics.data.gov.uk/id/local-authority-district/23UB,Cheltenham Borough Council,438444,h1418,HARROLD-JONES  SERVICES,C-HC4062-C302,Door Entry-Building Contractor,09-Dec-10,"21,375.95"
http://statistics.data.gov.uk/id/local-authority-district/23UB,Cheltenham Borough Council,439021,SETTLEMENT,JUBILATE CHAMBER CHOIR,C-N13125-9205,ASH Ledger-Town Hall Invoices Paid,20-Dec-10,"-1,774.60"
http://statistics.data.gov.uk/id/local-authority-district/23UB,Cheltenham Borough Council,439021,SETTLEMENT,JUBILATE CHAMBER CHOIR,C-Z12210-9138,Box Off A/C-TH Hirers Tkt Pd out,20-Dec-10,"4,179.00"
http://statistics.data.gov.uk/id/local-authority-district/23UB,Cheltenham Borough Council,438532,00001131,JUST FOR LAUGHS LIVE LIMITED,C-0T06H1-3568,Redacted-Artist Fees,16-Dec-10,"3,106.67"
http://statistics.data.gov.uk/id/local-authority-district/23UB,Cheltenham Borough Council,438366,900,K B BUILDING SERVICES UK LIMITED,C-HC4020-C820,St Pauls NAR-Demolition,08-Dec-10,"1,645.00"
http://statistics.data.gov.uk/id/local-authority-district/23UB,Cheltenham Borough Council,438365,908,K B BUILDING SERVICES UK LIMITED,C-HC4020-C820,St Pauls NAR-Demolition,08-Dec-10,"1,747.00"
http://statistics.data.gov.uk/id/local-authority-district/23UB,Cheltenham Borough Council,438473,898,K B BUILDING SERVICES UK LIMITED,C-H46250-1104,Drain Clearing-Council House repairs,09-Dec-10,230.00
http://statistics.data.gov.uk/id/local-authority-district/23UB,Cheltenham Borough Council,438472,899,K B BUILDING SERVICES UK LIMITED,C-HC4719-C302,EIP Gold.Hse Ga-Building Contractor,09-Dec-10,"6,900.00"
http://statistics.data.gov.uk/id/local-authority-district/23UB,Cheltenham Borough Council,438970,902,K B BUILDING SERVICES UK LIMITED,C-E63100-1809,Cemetery & Crem-RM-sanitary works,16-Dec-10,180.00
http://statistics.data.gov.uk/id/local-authority-district/23UB,Cheltenham Borough Council,438971,910,K B BUILDING SERVICES UK LIMITED,C-H44500-1104,Prop.Manager-Council House repairs,16-Dec-10,482.00
http://statistics.data.gov.uk/id/local-authority-district/23UB,Cheltenham Borough Council,438474,05050,KENNEDY STREET ENTERPRISES LIMITED,C-0T18J1-3568,Redacted-Artist Fees,09-Dec-10,"12,500.00"
http://statistics.data.gov.uk/id/local-authority-district/23UB,Cheltenham Borough Council,438975,1363 66 SCOTT H,KERRY PLUMBING LIMITED,C-H44752-1104,Dis Adapts-Tech-Council House repairs,16-Dec-10,"1,385.00"
http://statistics.data.gov.uk/id/local-authority-district/23UB,Cheltenham Borough Council,437786,S1208522,KOMPAN LIMITED,C-LC6006-C601,Play Area Maint-Equipment,01-Dec-10,"2,964.00"
http://statistics.data.gov.uk/id/local-authority-district/23UB,Cheltenham Borough Council,437786,S1208522,KOMPAN LIMITED,C-LC6006-C601,Play Area Maint-Equipment,01-Dec-10,296.40
http://statistics.data.gov.uk/id/local-authority-district/23UB,Cheltenham Borough Council,438515,LCGC CONCERT ,LCF,C-Z12310-3940,TIC Agency-External Event Payments,16-Dec-10,"3,210.00"
http://statistics.data.gov.uk/id/local-authority-district/23UB,Cheltenham Borough Council,438515,LCGC CONCERT ,LCF,C-Z12310-3940,TIC Agency-External Event Payments,16-Dec-10,-273.20
http://statistics.data.gov.uk/id/local-authority-district/23UB,Cheltenham Borough Council,439009,SETTLEMENT,LISTER COMMUNICATIONS LIMITED,C-N13125-9206,ASH Ledger-PPR Invoices Paid,20-Dec-10,-693.57
http://statistics.data.gov.uk/id/local-authority-district/23UB,Cheltenham Borough Council,439009,SETTLEMENT,LISTER COMMUNICATIONS LIMITED,C-Z12210-9137,Box Off A/C-PPR Hirers Tkt Pd out,20-Dec-10,"1,730.00"
http://statistics.data.gov.uk/id/local-authority-district/23UB,Cheltenham Borough Council,438681,871381,MR M J LOVERIDGE,C-H44752-1104,Dis Adapts-Tech-Council House repairs,16-Dec-10,520.00
http://statistics.data.gov.uk/id/local-authority-district/23UB,Cheltenham Borough Council,438867,57891,MAIGRET CHEMICALS LIMITED,C-E21100-3101,Car Prks-Off St-Equipment purchases,16-Dec-10,740.00
http://statistics.data.gov.uk/id/local-authority-district/23UB,Cheltenham Borough Council,438867,57891,MAIGRET CHEMICALS LIMITED,C-E21100-3101,Car Prks-Off St-Equipment purchases,16-Dec-10,45.00
http://statistics.data.gov.uk/id/local-authority-district/23UB,Cheltenham Borough Council,438737,101206,MAPLE ROCK DESIGN LTD,C-B51160-3501,Civic Pride-Hire of outside services,16-Dec-10,705.00
http://statistics.data.gov.uk/id/local-authority-district/23UB,Cheltenham Borough Council,438377,17106,F G MARSHALL LTD,C-E63100-3111,Cemetery & Crem-Goods purch for resale,08-Dec-10,17.68
http://statistics.data.gov.uk/id/local-authority-district/23UB,Cheltenham Borough Council,438377,17106,F G MARSHALL LTD,C-E63100-3111,Cemetery & Crem-Goods purch for resale,08-Dec-10,102.40
http://statistics.data.gov.uk/id/local-authority-district/23UB,Cheltenham Borough Council,438377,17106,F G MARSHALL LTD,C-E63100-3111,Cemetery & Crem-Goods purch for resale,08-Dec-10,15.35
http://statistics.data.gov.uk/id/local-authority-district/23UB,Cheltenham Borough Council,438377,17106,F G MARSHALL LTD,C-E63100-3111,Cemetery & Crem-Goods purch for resale,08-Dec-10,57.29
http://statistics.data.gov.uk/id/local-authority-district/23UB,Cheltenham Borough Council,438377,17106,F G MARSHALL LTD,C-E63100-3111,Cemetery & Crem-Goods purch for resale,08-Dec-10,101.32
http://statistics.data.gov.uk/id/local-authority-district/23UB,Cheltenham Borough Council,438377,17106,F G MARSHALL LTD,C-E63100-3111,Cemetery & Crem-Goods purch for resale,08-Dec-10,6.63
http://statistics.data.gov.uk/id/local-authority-district/23UB,Cheltenham Borough Council,438377,17106,F G MARSHALL LTD,C-E63100-3111,Cemetery & Crem-Goods purch for resale,08-Dec-10,222.85
http://statistics.data.gov.uk/id/local-authority-district/23UB,Cheltenham Borough Council,438377,17106,F G MARSHALL LTD,C-E63100-3111,Cemetery & Crem-Goods purch for resale,08-Dec-10,99.45
http://statistics.data.gov.uk/id/local-authority-district/23UB,Cheltenham Borough Council,438378,17107,F G MARSHALL LTD,C-E63100-3111,Cemetery & Crem-Goods purch for resale,08-Dec-10,15.35
http://statistics.data.gov.uk/id/local-authority-district/23UB,Cheltenham Borough Council,438378,17107,F G MARSHALL LTD,C-E63100-3111,Cemetery & Crem-Goods purch for resale,08-Dec-10,37.92
http://statistics.data.gov.uk/id/local-authority-district/23UB,Cheltenham Borough Council,437788,2314,MARK WROOT AGRICULTURAL & GARDENS SERV,C-C22120-1301,Spts/Open Space-Routine grounds maint,01-Dec-10,"1,310.00"
http://statistics.data.gov.uk/id/local-authority-district/23UB,Cheltenham Borough Council,438996,REDACTED,REDACTED,C-H22400-3828,Homelessness-Prevention Fund,16-Dec-10,500.00
http://statistics.data.gov.uk/id/local-authority-district/23UB,Cheltenham Borough Council,438724,0012,MARK MASTERS,C-L11500-3522,Rec Facilities-Coaching scheme,16-Dec-10,125.00
http://statistics.data.gov.uk/id/local-authority-district/23UB,Cheltenham Borough Council,438724,0012,MARK MASTERS,C-L11500-3522,Rec Facilities-Coaching scheme,16-Dec-10,126.00
http://statistics.data.gov.uk/id/local-authority-district/23UB,Cheltenham Borough Council,438724,0012,MARK MASTERS,C-L11500-3522,Rec Facilities-Coaching scheme,16-Dec-10,105.00
http://statistics.data.gov.uk/id/local-authority-district/23UB,Cheltenham Borough Council,438724,0012,MARK MASTERS,C-L11500-3522,Rec Facilities-Coaching scheme,16-Dec-10,21.00
http://statistics.data.gov.uk/id/local-authority-district/23UB,Cheltenham Borough Council,438724,0012,MARK MASTERS,C-L11500-3522,Rec Facilities-Coaching scheme,16-Dec-10,105.00
http://statistics.data.gov.uk/id/local-authority-district/23UB,Cheltenham Borough Council,438724,0012,MARK MASTERS,C-L11500-3522,Rec Facilities-Coaching scheme,16-Dec-10,231.00
http://statistics.data.gov.uk/id/local-authority-district/23UB,Cheltenham Borough Council,438724,0012,MARK MASTERS,C-L11500-3522,Rec Facilities-Coaching scheme,16-Dec-10,84.00
http://statistics.data.gov.uk/id/local-authority-district/23UB,Cheltenham Borough Council,437985,01767,MG WINDOWS CHELTENHAM LIMITED,C-H44350-1104,Window Repairs-Council House repairs,01-Dec-10,2.50
http://statistics.data.gov.uk/id/local-authority-district/23UB,Cheltenham Borough Council,437972,01798,MG WINDOWS CHELTENHAM LIMITED,C-H44350-1104,Window Repairs-Council House repairs,01-Dec-10,2.50
http://statistics.data.gov.uk/id/local-authority-district/23UB,Cheltenham Borough Council,437979,01761,MG WINDOWS CHELTENHAM LIMITED,C-H44350-1104,Window Repairs-Council House repairs,01-Dec-10,56.28
http://statistics.data.gov.uk/id/local-authority-district/23UB,Cheltenham Borough Council,437978,01762,MG WINDOWS CHELTENHAM LIMITED,C-H44350-1104,Window Repairs-Council House repairs,01-Dec-10,3.00
http://statistics.data.gov.uk/id/local-authority-district/23UB,Cheltenham Borough Council,437977,01764,MG WINDOWS CHELTENHAM LIMITED,C-H44350-1104,Window Repairs-Council House repairs,01-Dec-10,171.40
http://statistics.data.gov.uk/id/local-authority-district/23UB,Cheltenham Borough Council,437981,01765,MG WINDOWS CHELTENHAM LIMITED,C-H44350-1104,Window Repairs-Council House repairs,01-Dec-10,41.20
http://statistics.data.gov.uk/id/local-authority-district/23UB,Cheltenham Borough Council,437983,01766,MG WINDOWS CHELTENHAM LIMITED,C-H44350-1104,Window Repairs-Council House repairs,01-Dec-10,2.50
http://statistics.data.gov.uk/id/local-authority-district/23UB,Cheltenham Borough Council,437976,01768,MG WINDOWS CHELTENHAM LIMITED,C-H44350-1104,Window Repairs-Council House repairs,01-Dec-10,133.79
http://statistics.data.gov.uk/id/local-authority-district/23UB,Cheltenham Borough Council,437974,01769,MG WINDOWS CHELTENHAM LIMITED,C-H44350-1104,Window Repairs-Council House repairs,01-Dec-10,20.00
http://statistics.data.gov.uk/id/local-authority-district/23UB,Cheltenham Borough Council,437967,01793,MG WINDOWS CHELTENHAM LIMITED,C-H44350-1104,Window Repairs-Council House repairs,01-Dec-10,122.04
http://statistics.data.gov.uk/id/local-authority-district/23UB,Cheltenham Borough Council,437968,01771,MG WINDOWS CHELTENHAM LIMITED,C-H44350-1104,Window Repairs-Council House repairs,01-Dec-10,22.88
http://statistics.data.gov.uk/id/local-authority-district/23UB,Cheltenham Borough Council,437965,01772,MG WINDOWS CHELTENHAM LIMITED,C-H44350-1104,Window Repairs-Council House repairs,01-Dec-10,235.44
http://statistics.data.gov.uk/id/local-authority-district/23UB,Cheltenham Borough Council,437975,01773,MG WINDOWS CHELTENHAM LIMITED,C-H44350-1104,Window Repairs-Council House repairs,01-Dec-10,72.55
http://statistics.data.gov.uk/id/local-authority-district/23UB,Cheltenham Borough Council,437984,01774,MG WINDOWS CHELTENHAM LIMITED,C-H44350-1104,Window Repairs-Council House repairs,01-Dec-10,2.50
http://statistics.data.gov.uk/id/local-authority-district/23UB,Cheltenham Borough Council,437970,01776,MG WINDOWS CHELTENHAM LIMITED,C-H44350-1104,Window Repairs-Council House repairs,01-Dec-10,40.24
http://statistics.data.gov.uk/id/local-authority-district/23UB,Cheltenham Borough Council,437969,01779,MG WINDOWS CHELTENHAM LIMITED,C-H44350-1104,Window Repairs-Council House repairs,01-Dec-10,31.05
http://statistics.data.gov.uk/id/local-authority-district/23UB,Cheltenham Borough Council,437966,01781,MG WINDOWS CHELTENHAM LIMITED,C-H44350-1104,Window Repairs-Council House repairs,01-Dec-10,119.64
http://statistics.data.gov.uk/id/local-authority-district/23UB,Cheltenham Borough Council,437982,01792,MG WINDOWS CHELTENHAM LIMITED,C-H44350-1104,Window Repairs-Council House repairs,01-Dec-10,2.50
http://statistics.data.gov.uk/id/local-authority-district/23UB,Cheltenham Borough Council,437971,01782,MG WINDOWS CHELTENHAM LIMITED,C-H44350-1104,Window Repairs-Council House repairs,01-Dec-10,128.64
http://statistics.data.gov.uk/id/local-authority-district/23UB,Cheltenham Borough Council,437986,01785,MG WINDOWS CHELTENHAM LIMITED,C-H44350-1104,Window Repairs-Council House repairs,01-Dec-10,32.49
http://statistics.data.gov.uk/id/local-authority-district/23UB,Cheltenham Borough Council,437980,01786,MG WINDOWS CHELTENHAM LIMITED,C-H44350-1104,Window Repairs-Council House repairs,01-Dec-10,10.00
http://statistics.data.gov.uk/id/local-authority-district/23UB,Cheltenham Borough Council,437973,01795,MG WINDOWS CHELTENHAM LIMITED,C-H44350-1104,Window Repairs-Council House repairs,01-Dec-10,158.90
http://statistics.data.gov.uk/id/local-authority-district/23UB,Cheltenham Borough Council,438699,01854,MG WINDOWS CHELTENHAM LIMITED,C-H44350-1104,Window Repairs-Council House repairs,16-Dec-10,107.25
http://statistics.data.gov.uk/id/local-authority-district/23UB,Cheltenham Borough Council,438700,01855,MG WINDOWS CHELTENHAM LIMITED,C-H44350-1104,Window Repairs-Council House repairs,16-Dec-10,35.95
http://statistics.data.gov.uk/id/local-authority-district/23UB,Cheltenham Borough Council,438710,01865,MG WINDOWS CHELTENHAM LIMITED,C-H44350-1104,Window Repairs-Council House repairs,16-Dec-10,23.80
http://statistics.data.gov.uk/id/local-authority-district/23UB,Cheltenham Borough Council,438701,01856,MG WINDOWS CHELTENHAM LIMITED,C-H44350-1104,Window Repairs-Council House repairs,16-Dec-10,20.00
http://statistics.data.gov.uk/id/local-authority-district/23UB,Cheltenham Borough Council,438702,01857,MG WINDOWS CHELTENHAM LIMITED,C-H44350-1104,Window Repairs-Council House repairs,16-Dec-10,59.69
http://statistics.data.gov.uk/id/local-authority-district/23UB,Cheltenham Borough Council,438703,01858,MG WINDOWS CHELTENHAM LIMITED,C-H44350-1104,Window Repairs-Council House repairs,16-Dec-10,22.25
http://statistics.data.gov.uk/id/local-authority-district/23UB,Cheltenham Borough Council,438717,01871,MG WINDOWS CHELTENHAM LIMITED,C-H44350-1104,Window Repairs-Council House repairs,16-Dec-10,73.06
http://statistics.data.gov.uk/id/local-authority-district/23UB,Cheltenham Borough Council,438704,01859,MG WINDOWS CHELTENHAM LIMITED,C-H44350-1104,Window Repairs-Council House repairs,16-Dec-10,24.25
http://statistics.data.gov.uk/id/local-authority-district/23UB,Cheltenham Borough Council,438705,01860,MG WINDOWS CHELTENHAM LIMITED,C-H44350-1104,Window Repairs-Council House repairs,16-Dec-10,28.40
http://statistics.data.gov.uk/id/local-authority-district/23UB,Cheltenham Borough Council,438706,01861,MG WINDOWS CHELTENHAM LIMITED,C-H44350-1104,Window Repairs-Council House repairs,16-Dec-10,110.82
http://statistics.data.gov.uk/id/local-authority-district/23UB,Cheltenham Borough Council,438707,01862,MG WINDOWS CHELTENHAM LIMITED,C-H44350-1104,Window Repairs-Council House repairs,16-Dec-10,92.00
http://statistics.data.gov.uk/id/local-authority-district/23UB,Cheltenham Borough Council,438708,01863,MG WINDOWS CHELTENHAM LIMITED,C-H44350-1104,Window Repairs-Council House repairs,16-Dec-10,29.35
http://statistics.data.gov.uk/id/local-authority-district/23UB,Cheltenham Borough Council,438709,01864,MG WINDOWS CHELTENHAM LIMITED,C-H44350-1104,Window Repairs-Council House repairs,16-Dec-10,123.48
http://statistics.data.gov.uk/id/local-authority-district/23UB,Cheltenham Borough Council,438711,01866,MG WINDOWS CHELTENHAM LIMITED,C-H44350-1104,Window Repairs-Council House repairs,16-Dec-10,75.60
http://statistics.data.gov.uk/id/local-authority-district/23UB,Cheltenham Borough Council,438712,01867,MG WINDOWS CHELTENHAM LIMITED,C-H44350-1104,Window Repairs-Council House repairs,16-Dec-10,13.60
http://statistics.data.gov.uk/id/local-authority-district/23UB,Cheltenham Borough Council,438713,01870,MG WINDOWS CHELTENHAM LIMITED,C-H44350-1104,Window Repairs-Council House repairs,16-Dec-10,2.50
http://statistics.data.gov.uk/id/local-authority-district/23UB,Cheltenham Borough Council,438716,01872,MG WINDOWS CHELTENHAM LIMITED,C-H44350-1104,Window Repairs-Council House repairs,16-Dec-10,85.70
http://statistics.data.gov.uk/id/local-authority-district/23UB,Cheltenham Borough Council,438715,01873,MG WINDOWS CHELTENHAM LIMITED,C-H44350-1104,Window Repairs-Council House repairs,16-Dec-10,10.00
http://statistics.data.gov.uk/id/local-authority-district/23UB,Cheltenham Borough Council,438714,01874,MG WINDOWS CHELTENHAM LIMITED,C-H44350-1104,Window Repairs-Council House repairs,16-Dec-10,59.10
http://statistics.data.gov.uk/id/local-authority-district/23UB,Cheltenham Borough Council,439051,01875,MG WINDOWS CHELTENHAM LIMITED,C-H44350-1104,Window Repairs-Council House repairs,23-Dec-10,2.50
http://statistics.data.gov.uk/id/local-authority-district/23UB,Cheltenham Borough Council,439050,01876,MG WINDOWS CHELTENHAM LIMITED,C-H44350-1104,Window Repairs-Council House repairs,23-Dec-10,88.80
http://statistics.data.gov.uk/id/local-authority-district/23UB,Cheltenham Borough Council,439049,01877,MG WINDOWS CHELTENHAM LIMITED,C-H44350-1104,Window Repairs-Council House repairs,23-Dec-10,23.60
http://statistics.data.gov.uk/id/local-authority-district/23UB,Cheltenham Borough Council,439048,01878,MG WINDOWS CHELTENHAM LIMITED,C-H44350-1104,Window Repairs-Council House repairs,23-Dec-10,31.45
http://statistics.data.gov.uk/id/local-authority-district/23UB,Cheltenham Borough Council,439047,01879,MG WINDOWS CHELTENHAM LIMITED,C-H44350-1104,Window Repairs-Council House repairs,23-Dec-10,24.25
http://statistics.data.gov.uk/id/local-authority-district/23UB,Cheltenham Borough Council,439046,01880,MG WINDOWS CHELTENHAM LIMITED,C-H44350-1104,Window Repairs-Council House repairs,23-Dec-10,76.00
http://statistics.data.gov.uk/id/local-authority-district/23UB,Cheltenham Borough Council,439045,01882,MG WINDOWS CHELTENHAM LIMITED,C-H44350-1104,Window Repairs-Council House repairs,23-Dec-10,138.71
http://statistics.data.gov.uk/id/local-authority-district/23UB,Cheltenham Borough Council,439052,01883,MG WINDOWS CHELTENHAM LIMITED,C-H44350-1104,Window Repairs-Council House repairs,23-Dec-10,82.96
http://statistics.data.gov.uk/id/local-authority-district/23UB,Cheltenham Borough Council,439044,01884,MG WINDOWS CHELTENHAM LIMITED,C-H44350-1104,Window Repairs-Council House repairs,23-Dec-10,43.70
http://statistics.data.gov.uk/id/local-authority-district/23UB,Cheltenham Borough Council,439109,01884/1,MG WINDOWS CHELTENHAM LIMITED,C-H44350-1104,Window Repairs-Council House repairs,30-Dec-10,29.20
http://statistics.data.gov.uk/id/local-authority-district/23UB,Cheltenham Borough Council,439111,01889,MG WINDOWS CHELTENHAM LIMITED,C-H44350-1104,Window Repairs-Council House repairs,30-Dec-10,29.92
http://statistics.data.gov.uk/id/local-authority-district/23UB,Cheltenham Borough Council,439118,01890,MG WINDOWS CHELTENHAM LIMITED,C-H44350-1104,Window Repairs-Council House repairs,30-Dec-10,32.23
http://statistics.data.gov.uk/id/local-authority-district/23UB,Cheltenham Borough Council,439112,01892,MG WINDOWS CHELTENHAM LIMITED,C-H44350-1104,Window Repairs-Council House repairs,30-Dec-10,50.45
http://statistics.data.gov.uk/id/local-authority-district/23UB,Cheltenham Borough Council,439113,01893,MG WINDOWS CHELTENHAM LIMITED,C-H44350-1104,Window Repairs-Council House repairs,30-Dec-10,21.90
http://statistics.data.gov.uk/id/local-authority-district/23UB,Cheltenham Borough Council,439114,01894,MG WINDOWS CHELTENHAM LIMITED,C-H44350-1104,Window Repairs-Council House repairs,30-Dec-10,50.82
http://statistics.data.gov.uk/id/local-authority-district/23UB,Cheltenham Borough Council,439115,01895,MG WINDOWS CHELTENHAM LIMITED,C-H44350-1104,Window Repairs-Council House repairs,30-Dec-10,114.15
http://statistics.data.gov.uk/id/local-authority-district/23UB,Cheltenham Borough Council,439116,01896,MG WINDOWS CHELTENHAM LIMITED,C-H44350-1104,Window Repairs-Council House repairs,30-Dec-10,180.98
http://statistics.data.gov.uk/id/local-authority-district/23UB,Cheltenham Borough Council,439117,01897,MG WINDOWS CHELTENHAM LIMITED,C-H44350-1104,Window Repairs-Council House repairs,30-Dec-10,32.56
http://statistics.data.gov.uk/id/local-authority-district/23UB,Cheltenham Borough Council,439110,01898,MG WINDOWS CHELTENHAM LIMITED,C-H44350-1104,Window Repairs-Council House repairs,30-Dec-10,67.60
http://statistics.data.gov.uk/id/local-authority-district/23UB,Cheltenham Borough Council,438034,37335,MHG SUPPLIES LTD,C-L11500-3101,Rec Facilities-Equipment purchases,03-Dec-10,"1,715.00"
http://statistics.data.gov.uk/id/local-authority-district/23UB,Cheltenham Borough Council,438034,37335,MHG SUPPLIES LTD,C-L11500-3101,Rec Facilities-Equipment purchases,03-Dec-10,13.50
http://statistics.data.gov.uk/id/local-authority-district/23UB,Cheltenham Borough Council,438367,RGM 10032,ROSS MITCHELL,C-0T15J1-3568,Christmas Ball-Artist Fees,08-Dec-10,"1,650.00"
http://statistics.data.gov.uk/id/local-authority-district/23UB,Cheltenham Borough Council,439020,SETTLEMENT,MMI,C-N13125-9205,ASH Ledger-Town Hall Invoices Paid,20-Dec-10,"-3,063.30"
http://statistics.data.gov.uk/id/local-authority-district/23UB,Cheltenham Borough Council,439020,SETTLEMENT,MMI,C-Z12210-9138,Box Off A/C-TH Hirers Tkt Pd out,20-Dec-10,"12,844.42"
http://statistics.data.gov.uk/id/local-authority-district/23UB,Cheltenham Borough Council,438445,72,J.J.MORRELL,C-D11400-3501,Audit & Assrnce-Hire of outside services,09-Dec-10,"2,133.00"
http://statistics.data.gov.uk/id/local-authority-district/23UB,Cheltenham Borough Council,439149,73,J.J.MORRELL,C-D11400-3501,Audit & Assrnce-Hire of outside services,30-Dec-10,"1,391.70"
http://statistics.data.gov.uk/id/local-authority-district/23UB,Cheltenham Borough Council,439173,BP7429,MORRIS VISITOR PUBLICATIONS,C-L31100-3510,TIC-Promotion & Marketing,30-Dec-10,550.00
http://statistics.data.gov.uk/id/local-authority-district/23UB,Cheltenham Borough Council,438063,1038,MPL WROUGHT IRON,C-H44752-1104,Dis Adapts-Tech-Council House repairs,03-Dec-10,450.00
http://statistics.data.gov.uk/id/local-authority-district/23UB,Cheltenham Borough Council,438062,1147,MPL WROUGHT IRON,C-H4209V-1104,Voids 2209-Council House repairs,03-Dec-10,110.00
http://statistics.data.gov.uk/id/local-authority-district/23UB,Cheltenham Borough Council,438898,078/09-10,MTD PRODUCTIONS LIMITED,C-0T21G1-3568,Redacted-Artist Fees,16-Dec-10,"4,251.16"
http://statistics.data.gov.uk/id/local-authority-district/23UB,Cheltenham Borough Council,437957,2010CHELT/HEST,MUMKIN OPERATIONAL SERVICES,C-LC6006-C401,Play Area Maint-Civil Engineering Cntrct,01-Dec-10,"4,985.00"
http://statistics.data.gov.uk/id/local-authority-district/23UB,Cheltenham Borough Council,438214,2010CHELT/HEST,MUMKIN OPERATIONAL SERVICES,C-LC6006-C401,Play Area Maint-Civil Engineering Cntrct,08-Dec-10,"6,440.00"
http://statistics.data.gov.uk/id/local-authority-district/23UB,Cheltenham Borough Council,439064,57,NATURE FIRST LIMITED,C-C22110-1305,Parks & Gardens-Tree surgery,23-Dec-10,"1,856.00"
http://statistics.data.gov.uk/id/local-authority-district/23UB,Cheltenham Borough Council,439064,57,NATURE FIRST LIMITED,C-C22110-1312,Parks & Gardens-Annual felling prog,23-Dec-10,"1,000.00"
http://statistics.data.gov.uk/id/local-authority-district/23UB,Cheltenham Borough Council,439064,57,NATURE FIRST LIMITED,C-C22120-1305,Spts/Open Space-Tree surgery,23-Dec-10,"1,000.00"
http://statistics.data.gov.uk/id/local-authority-district/23UB,Cheltenham Borough Council,439064,57,NATURE FIRST LIMITED,C-C22120-1312,Spts/Open Space-Annual felling prog,23-Dec-10,"1,000.00"
http://statistics.data.gov.uk/id/local-authority-district/23UB,Cheltenham Borough Council,438238,E800021,NCC SERVICES LIMITED,C-D11300-3623,Accountancy-Cmpter-sftwre lic purch,08-Dec-10,995.00
http://statistics.data.gov.uk/id/local-authority-district/23UB,Cheltenham Borough Council,438484,BIZ PRIDE RENT ,NOVUS SALES LIMITED,C-D34400-3862,Bus & Econ Dev-Grants - Local G.E.A. Con,16-Dec-10,"1,250.00"
http://statistics.data.gov.uk/id/local-authority-district/23UB,Cheltenham Borough Council,438848,065 1622 1342,NPOWER,C-H33700-1402,Estate Services-Electricity,16-Dec-10,23.50
http://statistics.data.gov.uk/id/local-authority-district/23UB,Cheltenham Borough Council,438664,7986 93359 30,NPOWER,C-H33700-1402,Estate Services-Electricity,16-Dec-10,"2,266.06"
http://statistics.data.gov.uk/id/local-authority-district/23UB,Cheltenham Borough Council,437939,515301,NUMBER FIVE,C-B51120-3501,Develt Con-Hire of outside services,01-Dec-10,750.00
http://statistics.data.gov.uk/id/local-authority-district/23UB,Cheltenham Borough Council,438359,4186,OASIS ENVIRONMENTS LIMITED,C-H4208G-1104,Gen Wks 2208-Council House repairs,08-Dec-10,"1,000.00"
http://statistics.data.gov.uk/id/local-authority-district/23UB,Cheltenham Borough Council,438357,4187,OASIS ENVIRONMENTS LIMITED,C-H4208G-1104,Gen Wks 2208-Council House repairs,08-Dec-10,"1,000.00"
http://statistics.data.gov.uk/id/local-authority-district/23UB,Cheltenham Borough Council,438358,4188,OASIS ENVIRONMENTS LIMITED,C-H4208G-1104,Gen Wks 2208-Council House repairs,08-Dec-10,"1,000.00"
http://statistics.data.gov.uk/id/local-authority-district/23UB,Cheltenham Borough Council,437849,30421,OCONNOR CONSTRUCTION AND  PLANT HIRE,C-C24100-2701,Fleet Maint-Hired transport,01-Dec-10,250.00
http://statistics.data.gov.uk/id/local-authority-district/23UB,Cheltenham Borough Council,437850,30443,OCONNOR CONSTRUCTION AND  PLANT HIRE,C-C24100-2702,Fleet Maint-Additional vehicle hire,01-Dec-10,250.00
http://statistics.data.gov.uk/id/local-authority-district/23UB,Cheltenham Borough Council,438521,30472,OCONNOR CONSTRUCTION AND  PLANT HIRE,C-C24100-2701,Fleet Maint-Hired transport,16-Dec-10,250.00
http://statistics.data.gov.uk/id/local-authority-district/23UB,Cheltenham Borough Council,438689,30507,OCONNOR CONSTRUCTION AND  PLANT HIRE,C-C24100-2701,Fleet Maint-Hired transport,16-Dec-10,250.00
http://statistics.data.gov.uk/id/local-authority-district/23UB,Cheltenham Borough Council,437795,947737544,OFFICE DEPOT,C-L11500-3101,Rec Facilities-Equipment purchases,01-Dec-10,32.27
http://statistics.data.gov.uk/id/local-authority-district/23UB,Cheltenham Borough Council,437795,947737544,OFFICE DEPOT,C-L11500-3101,Rec Facilities-Equipment purchases,01-Dec-10,4.11
http://statistics.data.gov.uk/id/local-authority-district/23UB,Cheltenham Borough Council,437795,947737544,OFFICE DEPOT,C-L11500-3410,Rec Facilities-Stationery & office supps,01-Dec-10,6.30
http://statistics.data.gov.uk/id/local-authority-district/23UB,Cheltenham Borough Council,437795,947737544,OFFICE DEPOT,C-L11500-3410,Rec Facilities-Stationery & office supps,01-Dec-10,9.62
http://statistics.data.gov.uk/id/local-authority-district/23UB,Cheltenham Borough Council,437795,947737544,OFFICE DEPOT,C-L11500-3410,Rec Facilities-Stationery & office supps,01-Dec-10,0.93
http://statistics.data.gov.uk/id/local-authority-district/23UB,Cheltenham Borough Council,437795,947737544,OFFICE DEPOT,C-L11500-3410,Rec Facilities-Stationery & office supps,01-Dec-10,1.60
http://statistics.data.gov.uk/id/local-authority-district/23UB,Cheltenham Borough Council,437795,947737544,OFFICE DEPOT,C-L11500-3410,Rec Facilities-Stationery & office supps,01-Dec-10,3.52
http://statistics.data.gov.uk/id/local-authority-district/23UB,Cheltenham Borough Council,437795,947737544,OFFICE DEPOT,C-L11500-3410,Rec Facilities-Stationery & office supps,01-Dec-10,5.65
http://statistics.data.gov.uk/id/local-authority-district/23UB,Cheltenham Borough Council,437795,947737544,OFFICE DEPOT,C-L11500-3410,Rec Facilities-Stationery & office supps,01-Dec-10,4.15
http://statistics.data.gov.uk/id/local-authority-district/23UB,Cheltenham Borough Council,437795,947737544,OFFICE DEPOT,C-L11500-3410,Rec Facilities-Stationery & office supps,01-Dec-10,48.80
http://statistics.data.gov.uk/id/local-authority-district/23UB,Cheltenham Borough Council,437795,947737544,OFFICE DEPOT,C-L11500-3410,Rec Facilities-Stationery & office supps,01-Dec-10,3.48
http://statistics.data.gov.uk/id/local-authority-district/23UB,Cheltenham Borough Council,437795,947737544,OFFICE DEPOT,C-L11500-3410,Rec Facilities-Stationery & office supps,01-Dec-10,1.82
http://statistics.data.gov.uk/id/local-authority-district/23UB,Cheltenham Borough Council,437795,947737544,OFFICE DEPOT,C-L11500-3410,Rec Facilities-Stationery & office supps,01-Dec-10,10.74
http://statistics.data.gov.uk/id/local-authority-district/23UB,Cheltenham Borough Council,437795,947737544,OFFICE DEPOT,C-L11500-3410,Rec Facilities-Stationery & office supps,01-Dec-10,1.80
http://statistics.data.gov.uk/id/local-authority-district/23UB,Cheltenham Borough Council,437795,947737544,OFFICE DEPOT,C-L11500-3410,Rec Facilities-Stationery & office supps,01-Dec-10,8.65
http://statistics.data.gov.uk/id/local-authority-district/23UB,Cheltenham Borough Council,437795,947737544,OFFICE DEPOT,C-L11500-3410,Rec Facilities-Stationery & office supps,01-Dec-10,2.79
http://statistics.data.gov.uk/id/local-authority-district/23UB,Cheltenham Borough Council,437818,947746001,OFFICE DEPOT,C-L41100-3410,AG & M-Stationery & office supps,01-Dec-10,36.60
http://statistics.data.gov.uk/id/local-authority-district/23UB,Cheltenham Borough Council,437818,947746001,OFFICE DEPOT,C-L41100-3410,AG & M-Stationery & office supps,01-Dec-10,0.94
http://statistics.data.gov.uk/id/local-authority-district/23UB,Cheltenham Borough Council,437818,947746001,OFFICE DEPOT,C-L41100-3410,AG & M-Stationery & office supps,01-Dec-10,3.42
http://statistics.data.gov.uk/id/local-authority-district/23UB,Cheltenham Borough Council,437818,947746001,OFFICE DEPOT,C-L41100-3410,AG & M-Stationery & office supps,01-Dec-10,3.42
http://statistics.data.gov.uk/id/local-authority-district/23UB,Cheltenham Borough Council,437796,947746004,OFFICE DEPOT,C-D11830-3410,Corporate Print-Stationery & office supp,01-Dec-10,122.00
http://statistics.data.gov.uk/id/local-authority-district/23UB,Cheltenham Borough Council,437796,947746004,OFFICE DEPOT,C-D12300-3410,Personnel and P-Stationery & office supp,01-Dec-10,7.71
http://statistics.data.gov.uk/id/local-authority-district/23UB,Cheltenham Borough Council,437796,947746004,OFFICE DEPOT,C-D12455-3410,CarPk Inc Colln-Stationery & office supp,01-Dec-10,18.54
http://statistics.data.gov.uk/id/local-authority-district/23UB,Cheltenham Borough Council,437796,947746004,OFFICE DEPOT,C-E71150-3410,Public Pro Div-Stationery & office supps,01-Dec-10,14.48
http://statistics.data.gov.uk/id/local-authority-district/23UB,Cheltenham Borough Council,437796,947746004,OFFICE DEPOT,C-E71150-3410,Public Pro Div-Stationery & office supps,01-Dec-10,4.24
http://statistics.data.gov.uk/id/local-authority-district/23UB,Cheltenham Borough Council,437796,947746004,OFFICE DEPOT,C-E71150-3410,Public Pro Div-Stationery & office supps,01-Dec-10,14.84
http://statistics.data.gov.uk/id/local-authority-district/23UB,Cheltenham Borough Council,437796,947746004,OFFICE DEPOT,C-E72500-3410,Built Env Div-Stationery & office supps,01-Dec-10,2.71
http://statistics.data.gov.uk/id/local-authority-district/23UB,Cheltenham Borough Council,437796,947746004,OFFICE DEPOT,C-E72500-3410,Built Env Div-Stationery & office supps,01-Dec-10,7.24
http://statistics.data.gov.uk/id/local-authority-district/23UB,Cheltenham Borough Council,437796,947746004,OFFICE DEPOT,C-E72500-3410,Built Env Div-Stationery & office supps,01-Dec-10,1.24
http://statistics.data.gov.uk/id/local-authority-district/23UB,Cheltenham Borough Council,437796,947746004,OFFICE DEPOT,C-E72500-3410,Built Env Div-Stationery & office supps,01-Dec-10,1.27
http://statistics.data.gov.uk/id/local-authority-district/23UB,Cheltenham Borough Council,437796,947746004,OFFICE DEPOT,C-E75500-3410,Intgd Tran Div-Stationery & office supp,01-Dec-10,6.96
http://statistics.data.gov.uk/id/local-authority-district/23UB,Cheltenham Borough Council,437796,947746004,OFFICE DEPOT,C-H22600-3410,Community Servs-Stationery & office supp,01-Dec-10,0.90
http://statistics.data.gov.uk/id/local-authority-district/23UB,Cheltenham Borough Council,437796,947746004,OFFICE DEPOT,C-H22600-3410,Community Servs-Stationery & office supp,01-Dec-10,1.41
http://statistics.data.gov.uk/id/local-authority-district/23UB,Cheltenham Borough Council,437796,947746004,OFFICE DEPOT,C-H22600-3410,Community Servs-Stationery & office supp,01-Dec-10,3.72
http://statistics.data.gov.uk/id/local-authority-district/23UB,Cheltenham Borough Council,437801,947823920,OFFICE DEPOT,C-D11100-3410,CEO Management-Stationery & office supps,01-Dec-10,1.03
http://statistics.data.gov.uk/id/local-authority-district/23UB,Cheltenham Borough Council,437801,947823920,OFFICE DEPOT,C-D11830-3410,Corporate Print-Stationery & office supp,01-Dec-10,244.00
http://statistics.data.gov.uk/id/local-authority-district/23UB,Cheltenham Borough Council,437801,947823920,OFFICE DEPOT,C-D12440-3410,Coun Tax overhe-Stationery & office supp,01-Dec-10,27.60
http://statistics.data.gov.uk/id/local-authority-district/23UB,Cheltenham Borough Council,437801,947823920,OFFICE DEPOT,C-D12440-3410,Coun Tax overhe-Stationery & office supp,01-Dec-10,1.35
http://statistics.data.gov.uk/id/local-authority-district/23UB,Cheltenham Borough Council,437801,947823920,OFFICE DEPOT,C-D12440-3410,Coun Tax overhe-Stationery & office supp,01-Dec-10,0.93
http://statistics.data.gov.uk/id/local-authority-district/23UB,Cheltenham Borough Council,437801,947823920,OFFICE DEPOT,C-D12480-3410,Business Revenu-Stationery & office supp,01-Dec-10,23.00
http://statistics.data.gov.uk/id/local-authority-district/23UB,Cheltenham Borough Council,437801,947823920,OFFICE DEPOT,C-D13100-3101,Muni Off Blgs-Equipment purchases,01-Dec-10,136.28
http://statistics.data.gov.uk/id/local-authority-district/23UB,Cheltenham Borough Council,437801,947823920,OFFICE DEPOT,C-E63100-3410,Cemetery & Crem-Stationery & office supp,01-Dec-10,19.90
http://statistics.data.gov.uk/id/local-authority-district/23UB,Cheltenham Borough Council,437801,947823920,OFFICE DEPOT,C-E63100-3410,Cemetery & Crem-Stationery & office supp,01-Dec-10,15.96
http://statistics.data.gov.uk/id/local-authority-district/23UB,Cheltenham Borough Council,437801,947823920,OFFICE DEPOT,C-E63100-3410,Cemetery & Crem-Stationery & office supp,01-Dec-10,0.84
http://statistics.data.gov.uk/id/local-authority-district/23UB,Cheltenham Borough Council,437801,947823920,OFFICE DEPOT,C-H22600-3410,Community Servs-Stationery & office supp,01-Dec-10,8.56
http://statistics.data.gov.uk/id/local-authority-district/23UB,Cheltenham Borough Council,437800,947828374,OFFICE DEPOT,C-D12480-3410,Business Revenu-Stationery & office supp,01-Dec-10,12.98
http://statistics.data.gov.uk/id/local-authority-district/23UB,Cheltenham Borough Council,438242,F56078,OMEGA FACILITY SERVICES,C-L41100-1801,AG & M-RM-Electrical repairs,08-Dec-10,188.00
http://statistics.data.gov.uk/id/local-authority-district/23UB,Cheltenham Borough Council,438243,F56079,OMEGA FACILITY SERVICES,C-L21100-1801,Town Hall-RM-Electrical repairs,08-Dec-10,188.00
http://statistics.data.gov.uk/id/local-authority-district/23UB,Cheltenham Borough Council,438244,F56080,OMEGA FACILITY SERVICES,C-L11500-1801,Rec Facilities-RM-Electrical repairs,08-Dec-10,241.00
http://statistics.data.gov.uk/id/local-authority-district/23UB,Cheltenham Borough Council,437996,I02371422,PACE FUELCARE LIMITED,C-N42250-3112,DSO Stores - Stock purchases,01-Dec-10,"9,255.97"
http://statistics.data.gov.uk/id/local-authority-district/23UB,Cheltenham Borough Council,437995,I02375151,PACE FUELCARE LIMITED,C-N42250-3112,DSO Stores - Stock purchases,01-Dec-10,"2,574.25"
http://statistics.data.gov.uk/id/local-authority-district/23UB,Cheltenham Borough Council,438262,i02377608,PACE FUELCARE LIMITED,C-N42250-3112,DSO Stores - Stock purchases,08-Dec-10,"2,548.50"
http://statistics.data.gov.uk/id/local-authority-district/23UB,Cheltenham Borough Council,438261,i02377609,PACE FUELCARE LIMITED,C-N42250-3112,DSO Stores - Stock purchases,08-Dec-10,"11,213.40"
http://statistics.data.gov.uk/id/local-authority-district/23UB,Cheltenham Borough Council,438518,I02238049,PACE FUELCARE LIMITED,C-N42250-3112,DSO Stores - Stock purchases,16-Dec-10,"11,250.54"
http://statistics.data.gov.uk/id/local-authority-district/23UB,Cheltenham Borough Council,438519,I02380847,PACE FUELCARE LIMITED,C-N42250-3112,DSO Stores - Stock purchases,16-Dec-10,"2,559.50"
http://statistics.data.gov.uk/id/local-authority-district/23UB,Cheltenham Borough Council,438683,I02386166,PACE FUELCARE LIMITED,C-N42250-3112,DSO Stores - Stock purchases,16-Dec-10,"2,537.00"
http://statistics.data.gov.uk/id/local-authority-district/23UB,Cheltenham Borough Council,438945,I02398608,PACE FUELCARE LIMITED,C-N42250-3112,DSO Stores - Stock purchases,16-Dec-10,"9,404.10"
http://statistics.data.gov.uk/id/local-authority-district/23UB,Cheltenham Borough Council,438946,I02398610,PACE FUELCARE LIMITED,C-N42250-3112,DSO Stores - Stock purchases,16-Dec-10,"2,612.25"
http://statistics.data.gov.uk/id/local-authority-district/23UB,Cheltenham Borough Council,438864,1379,PATROL(PARKING AND TRAFF REGS O/S LNDN),C-E36200-3501,On-St Car Prkng-Hire of outside services,16-Dec-10,"2,983.50"
http://statistics.data.gov.uk/id/local-authority-district/23UB,Cheltenham Borough Council,438690,NOV266,PC MOLEING SERVICES,C-H4209G-1104,Gen Wks 2209-Council House repairs,16-Dec-10,545.00
http://statistics.data.gov.uk/id/local-authority-district/23UB,Cheltenham Borough Council,438693,NOV267,PC MOLEING SERVICES,C-H4208G-1104,Gen Wks 2208-Council House repairs,16-Dec-10,780.00
http://statistics.data.gov.uk/id/local-authority-district/23UB,Cheltenham Borough Council,438691,NOV268,PC MOLEING SERVICES,C-H4213G-1104,Gen Wks 2213-Council House repairs,16-Dec-10,395.00
http://statistics.data.gov.uk/id/local-authority-district/23UB,Cheltenham Borough Council,438692,NOV269,PC MOLEING SERVICES,C-H4213G-1104,Gen Wks 2213-Council House repairs,16-Dec-10,480.00
http://statistics.data.gov.uk/id/local-authority-district/23UB,Cheltenham Borough Council,439124,DEC245/PPC/RCS,PC MOLEING SERVICES,C-HC4060-C302,Garage Imps-Building Contractor,30-Dec-10,"4,670.00"
http://statistics.data.gov.uk/id/local-authority-district/23UB,Cheltenham Borough Council,438894,M3740,PEAK HIRE LIMITED,C-0T90H0-3559,Hirers-Recoverable Event Exp,16-Dec-10,436.00
http://statistics.data.gov.uk/id/local-authority-district/23UB,Cheltenham Borough Council,438893,M3746,PEAK HIRE LIMITED,C-0T27H1-3151,Paul Carrack-Specialist Equipment,16-Dec-10,426.90
http://statistics.data.gov.uk/id/local-authority-district/23UB,Cheltenham Borough Council,438475,BAND,PEEPING TOM,C-0T27J1-3568,Christmas Barn-Artist Fees,09-Dec-10,600.00
http://statistics.data.gov.uk/id/local-authority-district/23UB,Cheltenham Borough Council,438447,232,D O PHILLIPS,C-L41100-3543,AG & M-Performing Rights Society,09-Dec-10,"1,649.63"
http://statistics.data.gov.uk/id/local-authority-district/23UB,Cheltenham Borough Council,438447,232,D O PHILLIPS,C-L41100-8115,AG & M-Curatorial Projects,09-Dec-10,"3,907.07"
http://statistics.data.gov.uk/id/local-authority-district/23UB,Cheltenham Borough Council,438447,232,D O PHILLIPS,C-L41100-3543,AG & M-Performing Rights Society,21-Dec-10,"1,649.63"
http://statistics.data.gov.uk/id/local-authority-district/23UB,Cheltenham Borough Council,438447,232,D O PHILLIPS,C-L41100-3543,AG & M-Performing Rights Society,21-Dec-10,"1,649.63"
http://statistics.data.gov.uk/id/local-authority-district/23UB,Cheltenham Borough Council,438447,232,D O PHILLIPS,C-L41100-8115,AG & M-Curatorial Projects,21-Dec-10,"3,907.07"
http://statistics.data.gov.uk/id/local-authority-district/23UB,Cheltenham Borough Council,438447,232,D O PHILLIPS,C-L41100-8115,AG & M-Curatorial Projects,21-Dec-10,"3,907.07"
http://statistics.data.gov.uk/id/local-authority-district/23UB,Cheltenham Borough Council,439154,BL04260206,PITNEY BOWES FINANCE PLC,C-D13120-3103,Mail Room-Equipment repairs & maint,30-Dec-10,438.00
http://statistics.data.gov.uk/id/local-authority-district/23UB,Cheltenham Borough Council,439154,BL04260206,PITNEY BOWES FINANCE PLC,C-D13120-3108,Mail Room-Equipment operating lease,30-Dec-10,990.00
http://statistics.data.gov.uk/id/local-authority-district/23UB,Cheltenham Borough Council,437946,131/34832,PJT PUMPING SERVICES LTD,C-C22110-3103,Parks & Gardens-Equipment repairs & main,01-Dec-10,387.81
http://statistics.data.gov.uk/id/local-authority-district/23UB,Cheltenham Borough Council,437946,131/34832,PJT PUMPING SERVICES LTD,C-C22110-3103,Parks & Gardens-Equipment repairs & main,01-Dec-10,71.00
http://statistics.data.gov.uk/id/local-authority-district/23UB,Cheltenham Borough Council,437946,131/34832,PJT PUMPING SERVICES LTD,C-C22110-3103,Parks & Gardens-Equipment repairs & main,01-Dec-10,71.00
http://statistics.data.gov.uk/id/local-authority-district/23UB,Cheltenham Borough Council,437946,131/34832,PJT PUMPING SERVICES LTD,C-C22110-3103,Parks & Gardens-Equipment repairs & main,01-Dec-10,71.00
http://statistics.data.gov.uk/id/local-authority-district/23UB,Cheltenham Borough Council,437946,131/34832,PJT PUMPING SERVICES LTD,C-C22110-3103,Parks & Gardens-Equipment repairs & main,01-Dec-10,71.00
http://statistics.data.gov.uk/id/local-authority-district/23UB,Cheltenham Borough Council,437946,131/34832,PJT PUMPING SERVICES LTD,C-C22110-3103,Parks & Gardens-Equipment repairs & main,01-Dec-10,71.00
http://statistics.data.gov.uk/id/local-authority-district/23UB,Cheltenham Borough Council,437946,131/34832,PJT PUMPING SERVICES LTD,C-C22110-3103,Parks & Gardens-Equipment repairs & main,01-Dec-10,77.92
http://statistics.data.gov.uk/id/local-authority-district/23UB,Cheltenham Borough Council,437946,131/34832,PJT PUMPING SERVICES LTD,C-C22110-3103,Parks & Gardens-Equipment repairs & main,01-Dec-10,77.92
http://statistics.data.gov.uk/id/local-authority-district/23UB,Cheltenham Borough Council,437946,131/34832,PJT PUMPING SERVICES LTD,C-C22110-3103,Parks & Gardens-Equipment repairs & main,01-Dec-10,191.90
http://statistics.data.gov.uk/id/local-authority-district/23UB,Cheltenham Borough Council,437946,131/34832,PJT PUMPING SERVICES LTD,C-C22110-3103,Parks & Gardens-Equipment repairs & main,01-Dec-10,191.90
http://statistics.data.gov.uk/id/local-authority-district/23UB,Cheltenham Borough Council,437946,131/34832,PJT PUMPING SERVICES LTD,C-C22110-3103,Parks & Gardens-Equipment repairs & main,01-Dec-10,71.00
http://statistics.data.gov.uk/id/local-authority-district/23UB,Cheltenham Borough Council,437946,131/34832,PJT PUMPING SERVICES LTD,C-C22110-3103,Parks & Gardens-Equipment repairs & main,01-Dec-10,71.00
http://statistics.data.gov.uk/id/local-authority-district/23UB,Cheltenham Borough Council,437946,131/34832,PJT PUMPING SERVICES LTD,C-C22110-3103,Parks & Gardens-Equipment repairs & main,01-Dec-10,71.00
http://statistics.data.gov.uk/id/local-authority-district/23UB,Cheltenham Borough Council,437946,131/34832,PJT PUMPING SERVICES LTD,C-C22110-3103,Parks & Gardens-Equipment repairs & main,01-Dec-10,71.00
http://statistics.data.gov.uk/id/local-authority-district/23UB,Cheltenham Borough Council,437946,131/34832,PJT PUMPING SERVICES LTD,C-C22110-3103,Parks & Gardens-Equipment repairs & main,01-Dec-10,71.00
http://statistics.data.gov.uk/id/local-authority-district/23UB,Cheltenham Borough Council,437946,131/34832,PJT PUMPING SERVICES LTD,C-C22110-3103,Parks & Gardens-Equipment repairs & main,01-Dec-10,301.01
http://statistics.data.gov.uk/id/local-authority-district/23UB,Cheltenham Borough Council,437946,131/34832,PJT PUMPING SERVICES LTD,C-C22110-3103,Parks & Gardens-Equipment repairs & main,01-Dec-10,301.01
http://statistics.data.gov.uk/id/local-authority-district/23UB,Cheltenham Borough Council,437946,131/34832,PJT PUMPING SERVICES LTD,C-C22110-3103,Parks & Gardens-Equipment repairs & main,01-Dec-10,274.66
http://statistics.data.gov.uk/id/local-authority-district/23UB,Cheltenham Borough Council,437946,131/34832,PJT PUMPING SERVICES LTD,C-C22110-3103,Parks & Gardens-Equipment repairs & main,01-Dec-10,301.01
http://statistics.data.gov.uk/id/local-authority-district/23UB,Cheltenham Borough Council,437946,131/34832,PJT PUMPING SERVICES LTD,C-C22110-3103,Parks & Gardens-Equipment repairs & main,01-Dec-10,301.01
http://statistics.data.gov.uk/id/local-authority-district/23UB,Cheltenham Borough Council,437946,131/34832,PJT PUMPING SERVICES LTD,C-C22110-3103,Parks & Gardens-Equipment repairs & main,01-Dec-10,301.01
http://statistics.data.gov.uk/id/local-authority-district/23UB,Cheltenham Borough Council,437946,131/34832,PJT PUMPING SERVICES LTD,C-C22110-3103,Parks & Gardens-Equipment repairs & main,01-Dec-10,301.01
http://statistics.data.gov.uk/id/local-authority-district/23UB,Cheltenham Borough Council,438209,19742,PLAYDALE PLAYGROUPS,C-LC6006-C401,Play Area Maint-Civil Engineering Cntrct,08-Dec-10,"7,992.00"
http://statistics.data.gov.uk/id/local-authority-district/23UB,Cheltenham Borough Council,438209,19742,PLAYDALE PLAYGROUPS,C-LC6006-C401,Play Area Maint-Civil Engineering Cntrct,08-Dec-10,"-1,199.00"
http://statistics.data.gov.uk/id/local-authority-district/23UB,Cheltenham Borough Council,438450,19743,PLAYDALE PLAYGROUPS,C-LC6006-C401,Play Area Maint-Civil Engineering Cntrct,09-Dec-10,542.00
http://statistics.data.gov.uk/id/local-authority-district/23UB,Cheltenham Borough Council,438449,19743,PLAYDALE PLAYGROUPS,C-LC6006-C401,Play Area Maint-Civil Engineering Cntrct,09-Dec-10,"3,356.00"
http://statistics.data.gov.uk/id/local-authority-district/23UB,Cheltenham Borough Council,438451,19933,PLAYDALE PLAYGROUPS,C-LC6006-C401,Play Area Maint-Civil Engineering Cntrct,09-Dec-10,"7,486.00"
http://statistics.data.gov.uk/id/local-authority-district/23UB,Cheltenham Borough Council,438211,6551,THE PLAY INSPECTION COMPANY,C-C22120-1119,Spts/Open Space-Playground Maint,08-Dec-10,"2,247.50"
http://statistics.data.gov.uk/id/local-authority-district/23UB,Cheltenham Borough Council,439146,P126,PLAY GLOUCESTERSHIRE,C-L16100-3178,Holiday Rec-Big Lottery Fund Expenditure,30-Dec-10,"8,023.00"
http://statistics.data.gov.uk/id/local-authority-district/23UB,Cheltenham Borough Council,438101,03150901,POSTAGE BY PHONE PITNEY BOWES PLC,C-L21100-3602,Town Hall-Postages - frkng machine,03-Dec-10,120.00
http://statistics.data.gov.uk/id/local-authority-district/23UB,Cheltenham Borough Council,438101,03150901,POSTAGE BY PHONE PITNEY BOWES PLC,C-L21100-3602,Town Hall-Postages - frkng machine,03-Dec-10,9.00
http://statistics.data.gov.uk/id/local-authority-district/23UB,Cheltenham Borough Council,438101,03150901,POSTAGE BY PHONE PITNEY BOWES PLC,C-L24500-3602,Box Office-Postages - frkng machine,03-Dec-10,880.00
http://statistics.data.gov.uk/id/local-authority-district/23UB,Cheltenham Borough Council,439151,152448,PREMIERE PRODUCTS,C-D13100-1702,Muni Off Blgs-Cleaning materials,30-Dec-10,224.40
http://statistics.data.gov.uk/id/local-authority-district/23UB,Cheltenham Borough Council,439151,152448,PREMIERE PRODUCTS,C-D13100-1702,Muni Off Blgs-Cleaning materials,30-Dec-10,33.85
http://statistics.data.gov.uk/id/local-authority-district/23UB,Cheltenham Borough Council,439151,152448,PREMIERE PRODUCTS,C-D13100-1702,Muni Off Blgs-Cleaning materials,30-Dec-10,42.62
http://statistics.data.gov.uk/id/local-authority-district/23UB,Cheltenham Borough Council,439151,152448,PREMIERE PRODUCTS,C-D13100-1702,Muni Off Blgs-Cleaning materials,30-Dec-10,90.23
http://statistics.data.gov.uk/id/local-authority-district/23UB,Cheltenham Borough Council,439152,395940,PREMIERE PRODUCTS,C-D13100-1702,Muni Off Blgs-Cleaning materials,30-Dec-10,235.00
http://statistics.data.gov.uk/id/local-authority-district/23UB,Cheltenham Borough Council,439152,395940,PREMIERE PRODUCTS,C-D13100-1702,Muni Off Blgs-Cleaning materials,30-Dec-10,27.16
http://statistics.data.gov.uk/id/local-authority-district/23UB,Cheltenham Borough Council,438763,2040581,PRINTWASTE RECYCLING,C-C23120-3509,Recycling Cntr-Hire of outside services,16-Dec-10,"4,640.23"
http://statistics.data.gov.uk/id/local-authority-district/23UB,Cheltenham Borough Council,438764,2040583,PRINTWASTE RECYCLING,C-C23120-3509,Recycling Cntr-Hire of outside services,16-Dec-10,"1,453.80"
http://statistics.data.gov.uk/id/local-authority-district/23UB,Cheltenham Borough Council,439058,2039991,PRINTWASTE RECYCLING,C-C23120-3509,Recycling Cntr-Hire of outside services,23-Dec-10,"2,100.00"
http://statistics.data.gov.uk/id/local-authority-district/23UB,Cheltenham Borough Council,439158,OP/1318134,PROBRAND LTD,C-DC3213-C101,Storage Area-Project Est for this Year,30-Dec-10,"1,022.92"
http://statistics.data.gov.uk/id/local-authority-district/23UB,Cheltenham Borough Council,439158,OP/1318134,PROBRAND LTD,C-DC3213-C101,Storage Area-Project Est for this Year,30-Dec-10,801.00
http://statistics.data.gov.uk/id/local-authority-district/23UB,Cheltenham Borough Council,439158,OP/1318134,PROBRAND LTD,C-DC3213-C101,Storage Area-Project Est for this Year,30-Dec-10,"4,117.68"
http://statistics.data.gov.uk/id/local-authority-district/23UB,Cheltenham Borough Council,439158,OP/1318134,PROBRAND LTD,C-DC3213-C101,Storage Area-Project Est for this Year,30-Dec-10,"6,569.78"
http://statistics.data.gov.uk/id/local-authority-district/23UB,Cheltenham Borough Council,439158,OP/1318134,PROBRAND LTD,C-DC3213-C101,Storage Area-Project Est for this Year,30-Dec-10,"1,207.58"
http://statistics.data.gov.uk/id/local-authority-district/23UB,Cheltenham Borough Council,439160,OP/1318135,PROBRAND LTD,C-DC3213-C101,Storage Area-Project Est for this Year,30-Dec-10,"6,940.66"
http://statistics.data.gov.uk/id/local-authority-district/23UB,Cheltenham Borough Council,439160,OP/1318135,PROBRAND LTD,C-DC3213-C101,Storage Area-Project Est for this Year,30-Dec-10,"3,214.13"
http://statistics.data.gov.uk/id/local-authority-district/23UB,Cheltenham Borough Council,439160,OP/1318135,PROBRAND LTD,C-DC3213-C101,Storage Area-Project Est for this Year,30-Dec-10,"2,574.68"
http://statistics.data.gov.uk/id/local-authority-district/23UB,Cheltenham Borough Council,439160,OP/1318135,PROBRAND LTD,C-DC3213-C101,Storage Area-Project Est for this Year,30-Dec-10,"2,053.68"
http://statistics.data.gov.uk/id/local-authority-district/23UB,Cheltenham Borough Council,439160,OP/1318135,PROBRAND LTD,C-DC3213-C101,Storage Area-Project Est for this Year,30-Dec-10,"1,972.81"
http://statistics.data.gov.uk/id/local-authority-district/23UB,Cheltenham Borough Council,439160,OP/1318135,PROBRAND LTD,C-DC3213-C101,Storage Area-Project Est for this Year,30-Dec-10,"5,040.64"
http://statistics.data.gov.uk/id/local-authority-district/23UB,Cheltenham Borough Council,439159,OP/I318267,PROBRAND LTD,C-DC3213-C101,Storage Area-Project Est for this Year,30-Dec-10,517.58
http://statistics.data.gov.uk/id/local-authority-district/23UB,Cheltenham Borough Council,439159,OP/I318267,PROBRAND LTD,C-DC3213-C101,Storage Area-Project Est for this Year,30-Dec-10,91.58
http://statistics.data.gov.uk/id/local-authority-district/23UB,Cheltenham Borough Council,439157,OP/1319243,PROBRAND LTD,C-DC3213-C101,Storage Area-Project Est for this Year,30-Dec-10,"10,466.94"
http://statistics.data.gov.uk/id/local-authority-district/23UB,Cheltenham Borough Council,438212,199852657,PROLUDIC LTD,C-LC6006-C601,Play Area Maint-Equipment,08-Dec-10,"3,489.00"
http://statistics.data.gov.uk/id/local-authority-district/23UB,Cheltenham Borough Council,438969,015224,REDFERN TRAVEL LIMITED,C-D11100-2803,CEO Management-Public transport allce,16-Dec-10,41.46
http://statistics.data.gov.uk/id/local-authority-district/23UB,Cheltenham Borough Council,438969,015224,REDFERN TRAVEL LIMITED,C-D11300-2803,Accountancy-Public transport allce,16-Dec-10,146.74
http://statistics.data.gov.uk/id/local-authority-district/23UB,Cheltenham Borough Council,438969,015224,REDFERN TRAVEL LIMITED,C-D12400-2803,CAST-Public transport allce,16-Dec-10,216.55
http://statistics.data.gov.uk/id/local-authority-district/23UB,Cheltenham Borough Council,438969,015224,REDFERN TRAVEL LIMITED,C-D12430-2803,Housing & CT Be-Public transport allce,16-Dec-10,13.29
http://statistics.data.gov.uk/id/local-authority-district/23UB,Cheltenham Borough Council,438969,015224,REDFERN TRAVEL LIMITED,C-D12440-2803,Coun Tax overhe-Public transport allce,16-Dec-10,62.46
http://statistics.data.gov.uk/id/local-authority-district/23UB,Cheltenham Borough Council,438969,015224,REDFERN TRAVEL LIMITED,C-D12600-2803,Service Develop-Public transport allce,16-Dec-10,34.16
http://statistics.data.gov.uk/id/local-authority-district/23UB,Cheltenham Borough Council,438969,015224,REDFERN TRAVEL LIMITED,C-D21100-2803,Dem Process-Public transport allce,16-Dec-10,64.87
http://statistics.data.gov.uk/id/local-authority-district/23UB,Cheltenham Borough Council,438969,015224,REDFERN TRAVEL LIMITED,C-D21500-2803,Elec.Reg.Overhe-Public transport allce,16-Dec-10,100.94
http://statistics.data.gov.uk/id/local-authority-district/23UB,Cheltenham Borough Council,438969,015224,REDFERN TRAVEL LIMITED,C-E72500-2803,Built Env Div-Public transport allce,16-Dec-10,59.05
http://statistics.data.gov.uk/id/local-authority-district/23UB,Cheltenham Borough Council,438969,015224,REDFERN TRAVEL LIMITED,C-H22600-2803,Community Servs-Public transport allce,16-Dec-10,134.28
http://statistics.data.gov.uk/id/local-authority-district/23UB,Cheltenham Borough Council,438969,015224,REDFERN TRAVEL LIMITED,C-L17200-2802,Sport/Play Div-Car/Subsistence allowance,16-Dec-10,288.66
http://statistics.data.gov.uk/id/local-authority-district/23UB,Cheltenham Borough Council,438969,015224,REDFERN TRAVEL LIMITED,C-L41100-2803,AG & M-Public transport allce,16-Dec-10,176.93
http://statistics.data.gov.uk/id/local-authority-district/23UB,Cheltenham Borough Council,438551,2963,REP SECURITY LIMITED,C-D34510-3183,Crime & Disordr-Taxi Marshalls,16-Dec-10,900.00
http://statistics.data.gov.uk/id/local-authority-district/23UB,Cheltenham Borough Council,438064,2224,REX BISHOP & SON,C-HC4064-C302,Asbestos Manage-Building Contractor,03-Dec-10,"9,445.00"
http://statistics.data.gov.uk/id/local-authority-district/23UB,Cheltenham Borough Council,437962,85623505,RICOH UK LIMITED,C-L21100-3401,Town Hall-Printing - general,01-Dec-10,374.83
http://statistics.data.gov.uk/id/local-authority-district/23UB,Cheltenham Borough Council,437961,85736397,RICOH UK LIMITED,C-L21100-3401,Town Hall-Printing - general,01-Dec-10,"1,361.90"
http://statistics.data.gov.uk/id/local-authority-district/23UB,Cheltenham Borough Council,437958,85736398,RICOH UK LIMITED,C-L21100-3401,Town Hall-Printing - general,01-Dec-10,247.56
http://statistics.data.gov.uk/id/local-authority-district/23UB,Cheltenham Borough Council,437963,85776377,RICOH UK LIMITED,C-Z12260-F415,GEN (CAF Dbtr)-Post/ tel/stationery/misc,01-Dec-10,46.34
http://statistics.data.gov.uk/id/local-authority-district/23UB,Cheltenham Borough Council,438163,85245593,RICOH UK LIMITED,C-D11830-3102,Corporate Print-Equipment rental,03-Dec-10,241.89
http://statistics.data.gov.uk/id/local-authority-district/23UB,Cheltenham Borough Council,438163,85245593,RICOH UK LIMITED,C-D11830-3401,Corporate Print-Printing - general,03-Dec-10,111.73
http://statistics.data.gov.uk/id/local-authority-district/23UB,Cheltenham Borough Council,438162,85330537,RICOH UK LIMITED,C-D11830-3102,Corporate Print-Equipment rental,03-Dec-10,241.89
http://statistics.data.gov.uk/id/local-authority-district/23UB,Cheltenham Borough Council,438162,85330537,RICOH UK LIMITED,C-D11830-3401,Corporate Print-Printing - general,03-Dec-10,273.25
http://statistics.data.gov.uk/id/local-authority-district/23UB,Cheltenham Borough Council,438161,85353921,RICOH UK LIMITED,C-D11830-3401,Corporate Print-Printing - general,03-Dec-10,54.37
http://statistics.data.gov.uk/id/local-authority-district/23UB,Cheltenham Borough Council,438160,85406615,RICOH UK LIMITED,C-D11830-3401,Corporate Print-Printing - general,03-Dec-10,6.67
http://statistics.data.gov.uk/id/local-authority-district/23UB,Cheltenham Borough Council,438158,85434791,RICOH UK LIMITED,C-D11830-3102,Corporate Print-Equipment rental,03-Dec-10,241.89
http://statistics.data.gov.uk/id/local-authority-district/23UB,Cheltenham Borough Council,438158,85434791,RICOH UK LIMITED,C-D11830-3401,Corporate Print-Printing - general,03-Dec-10,216.25
http://statistics.data.gov.uk/id/local-authority-district/23UB,Cheltenham Borough Council,438159,85592140,RICOH UK LIMITED,C-D11830-3102,Corporate Print-Equipment rental,03-Dec-10,44.25
http://statistics.data.gov.uk/id/local-authority-district/23UB,Cheltenham Borough Council,438155,85077790,RICOH UK LIMITED,C-D11830-3102,Corporate Print-Equipment rental,03-Dec-10,273.99
http://statistics.data.gov.uk/id/local-authority-district/23UB,Cheltenham Borough Council,438156,85077791,RICOH UK LIMITED,C-D11830-3102,Corporate Print-Equipment rental,03-Dec-10,264.30
http://statistics.data.gov.uk/id/local-authority-district/23UB,Cheltenham Borough Council,438156,85077791,RICOH UK LIMITED,C-D11830-3401,Corporate Print-Printing - general,03-Dec-10,931.07
http://statistics.data.gov.uk/id/local-authority-district/23UB,Cheltenham Borough Council,438157,85077792,RICOH UK LIMITED,C-D11830-3102,Corporate Print-Equipment rental,03-Dec-10,213.07
http://statistics.data.gov.uk/id/local-authority-district/23UB,Cheltenham Borough Council,438171,85749917,RICOH UK LIMITED,C-D11830-3102,Corporate Print-Equipment rental,03-Dec-10,"1,152.18"
http://statistics.data.gov.uk/id/local-authority-district/23UB,Cheltenham Borough Council,438093,55530130,RICOH UK LIMITED,C-D11830-3102,Corporate Print-Equipment rental,03-Dec-10,359.76
http://statistics.data.gov.uk/id/local-authority-district/23UB,Cheltenham Borough Council,438164,85786743,RICOH UK LIMITED,C-D11830-3401,Corporate Print-Printing - general,03-Dec-10,101.14
http://statistics.data.gov.uk/id/local-authority-district/23UB,Cheltenham Borough Council,438165,86094037,RICOH UK LIMITED,C-D11830-3401,Corporate Print-Printing - general,03-Dec-10,"2,268.34"
http://statistics.data.gov.uk/id/local-authority-district/23UB,Cheltenham Borough Council,438092,55664453,RICOH UK LIMITED,C-D11830-3102,Corporate Print-Equipment rental,03-Dec-10,-359.76
http://statistics.data.gov.uk/id/local-authority-district/23UB,Cheltenham Borough Council,438091,86104890,RICOH UK LIMITED,C-D11830-3102,Corporate Print-Equipment rental,03-Dec-10,31.88
http://statistics.data.gov.uk/id/local-authority-district/23UB,Cheltenham Borough Council,438091,86104890,RICOH UK LIMITED,C-D11830-3102,Corporate Print-Equipment rental,03-Dec-10,11.21
http://statistics.data.gov.uk/id/local-authority-district/23UB,Cheltenham Borough Council,438095,86109386,RICOH UK LIMITED,C-D11830-3102,Corporate Print-Equipment rental,03-Dec-10,182.40
http://statistics.data.gov.uk/id/local-authority-district/23UB,Cheltenham Borough Council,438095,86109386,RICOH UK LIMITED,C-D11830-3401,Corporate Print-Printing - general,03-Dec-10,181.61
http://statistics.data.gov.uk/id/local-authority-district/23UB,Cheltenham Borough Council,438124,1244,KEITH RICHARDS LIMITED,C-D11800-0204,IT Services-Training fees/exp (Prof),03-Dec-10,575.00
http://statistics.data.gov.uk/id/local-authority-district/23UB,Cheltenham Borough Council,439165,SIN021975,ROBINSON LOW FRANCIS LLP,C-L41100-3816,AG & M-RIBA - Fees,30-Dec-10,"4,903.00"
http://statistics.data.gov.uk/id/local-authority-district/23UB,Cheltenham Borough Council,438122,11807350,ROCOM TECHNICAL SERVICES,C-D12435-3101,Local Housing A-Equipment purchases,03-Dec-10,845.70
http://statistics.data.gov.uk/id/local-authority-district/23UB,Cheltenham Borough Council,438122,11807350,ROCOM TECHNICAL SERVICES,C-D12435-3101,Local Housing A-Equipment purchases,03-Dec-10,9.75
http://statistics.data.gov.uk/id/local-authority-district/23UB,Cheltenham Borough Council,438122,11807350,ROCOM TECHNICAL SERVICES,C-D12435-3101,Local Housing A-Equipment purchases,30-Dec-10,845.70
http://statistics.data.gov.uk/id/local-authority-district/23UB,Cheltenham Borough Council,438122,11807350,ROCOM TECHNICAL SERVICES,C-D12435-3101,Local Housing A-Equipment purchases,30-Dec-10,845.70
http://statistics.data.gov.uk/id/local-authority-district/23UB,Cheltenham Borough Council,438122,11807350,ROCOM TECHNICAL SERVICES,C-D12435-3101,Local Housing A-Equipment purchases,30-Dec-10,9.75
http://statistics.data.gov.uk/id/local-authority-district/23UB,Cheltenham Borough Council,438122,11807350,ROCOM TECHNICAL SERVICES,C-D12435-3101,Local Housing A-Equipment purchases,30-Dec-10,9.75
http://statistics.data.gov.uk/id/local-authority-district/23UB,Cheltenham Borough Council,438486,LL/LP/SOL0018/43,ROSE BREWER LLP SOLICITORS,C-C22100-3934,Green Envir Div-TP Gen-/Excess,16-Dec-10,"6,300.00"
http://statistics.data.gov.uk/id/local-authority-district/23UB,Cheltenham Borough Council,438788,9031865561,ROYAL MAIL,C-D21400-3602,Electoral Regn-Postages - frkng machine,16-Dec-10,330.88
http://statistics.data.gov.uk/id/local-authority-district/23UB,Cheltenham Borough Council,438788,9031865561,ROYAL MAIL,C-E72500-3602,Built Env Div-Postages - frkng machine,16-Dec-10,534.94
http://statistics.data.gov.uk/id/local-authority-district/23UB,Cheltenham Borough Council,438788,9031865561,ROYAL MAIL,C-L31100-3602,TIC-Postages - frkng machine,16-Dec-10,148.96
http://statistics.data.gov.uk/id/local-authority-district/23UB,Cheltenham Borough Council,437864,0011,S AND J ASSOCIATES  LIMITED,C-IT0071-350A,Revs & Bens-Consultants Fees,01-Dec-10,"3,323.00"
http://statistics.data.gov.uk/id/local-authority-district/23UB,Cheltenham Borough Council,438019,0012,S AND J ASSOCIATES  LIMITED,C-IT0071-350A,Revs & Bens-Consultants Fees,01-Dec-10,"3,601.00"
http://statistics.data.gov.uk/id/local-authority-district/23UB,Cheltenham Borough Council,438408,SANDFORD LIDO,SANDFORD LIDO (TRADING) LIMITED,C-E21100-8596,Car Prks-Off St-Fee-Lido Car Park net in,08-Dec-10,"-1,060.00"
http://statistics.data.gov.uk/id/local-authority-district/23UB,Cheltenham Borough Council,438408,SANDFORD LIDO,SANDFORD LIDO (TRADING) LIMITED,C-Z13030-4902,Lido Car Park-Lido Carpark-fees paid ove,08-Dec-10,"19,331.20"
http://statistics.data.gov.uk/id/local-authority-district/23UB,Cheltenham Borough Council,439084,REDACTED,REDACTED,C-S31400-9150,Other Deds Cntr-Payroll Schedules,23-Dec-10,980.00
http://statistics.data.gov.uk/id/local-authority-district/23UB,Cheltenham Borough Council,438364,292,SASEPC LIMITED,C-H44405-1410,Energy Perf Cer-EPC Fees,08-Dec-10,"1,000.00"
http://statistics.data.gov.uk/id/local-authority-district/23UB,Cheltenham Borough Council,439140,MOSCOW ENSEM,MRS C L SAVAGE,C-N13125-9206,ASH Ledger-PPR Invoices Paid,30-Dec-10,-523.15
http://statistics.data.gov.uk/id/local-authority-district/23UB,Cheltenham Borough Council,439140,MOSCOW ENSEM,MRS C L SAVAGE,C-Z12210-9137,Box Off A/C-PPR Hirers Tkt Pd out,30-Dec-10,"1,734.00"
http://statistics.data.gov.uk/id/local-authority-district/23UB,Cheltenham Borough Council,438258,239485,SCARAB SALES LIMITED,C-C24100-3582,Fleet Maint-DSO Invoices,08-Dec-10,"1,264.37"
http://statistics.data.gov.uk/id/local-authority-district/23UB,Cheltenham Borough Council,438259,239612,SCARAB SALES LIMITED,C-C24100-3582,Fleet Maint-DSO Invoices,08-Dec-10,"1,078.99"
http://statistics.data.gov.uk/id/local-authority-district/23UB,Cheltenham Borough Council,438592,30762644,CASH SOLUTIONS UK LIMITED,C-D12450-3502,Cash Rec / Bnkg-Cash transportation,16-Dec-10,255.97
http://statistics.data.gov.uk/id/local-authority-district/23UB,Cheltenham Borough Council,438592,30762644,CASH SOLUTIONS UK LIMITED,C-D12450-3502,Cash Rec / Bnkg-Cash transportation,16-Dec-10,523.03
http://statistics.data.gov.uk/id/local-authority-district/23UB,Cheltenham Borough Council,438522,P3269OCP/101114,J & S SEDDON PAINTING LTD,C-PM0020-R041,Town Hall-Floor Repairs,16-Dec-10,"4,051.00"
http://statistics.data.gov.uk/id/local-authority-district/23UB,Cheltenham Borough Council,438581,P32690CP/101200,J & S SEDDON PAINTING LTD,C-PM0020-R041,Town Hall-Floor Repairs,16-Dec-10,"1,030.00"
http://statistics.data.gov.uk/id/local-authority-district/23UB,Cheltenham Borough Council,438007,350062186,SEVERN TRENT WATER AUTHORITY,C-D13100-1505,Muni Off Blgs-Water rates - metered,01-Dec-10,843.81
http://statistics.data.gov.uk/id/local-authority-district/23UB,Cheltenham Borough Council,438972,325075241,SEVERN TRENT WATER AUTHORITY,C-L21200-1507,Pump Room-Sewerage & env. services,16-Dec-10,760.45
http://statistics.data.gov.uk/id/local-authority-district/23UB,Cheltenham Borough Council,438578,111042849/637003,SEVERN TRENT WATER AUTHORITY,C-D30200-1505,Misc Props & Ld-Water rates - metered,16-Dec-10,47.42
http://statistics.data.gov.uk/id/local-authority-district/23UB,Cheltenham Borough Council,438579,888436077748,SEVERN TRENT WATER AUTHORITY,C-L11500-1507,Rec Facilities-Sewerage & env. services,16-Dec-10,"1,162.00"
http://statistics.data.gov.uk/id/local-authority-district/23UB,Cheltenham Borough Council,438974,282106374,SEVERN TRENT WATER AUTHORITY,C-D13100-1505,Muni Off Blgs-Water rates - metered,16-Dec-10,692.97
http://statistics.data.gov.uk/id/local-authority-district/23UB,Cheltenham Borough Council,438973,740092807,SEVERN TRENT WATER AUTHORITY,C-D14100-1505,Depot Building-Water rates - metered,16-Dec-10,"1,735.41"
http://statistics.data.gov.uk/id/local-authority-district/23UB,Cheltenham Borough Council,439017,1520032044,SEVERN TRENT WATER AUTHORITY,C-C22140-1505,Nursery-Water rates - metered,20-Dec-10,"1,172.62"
http://statistics.data.gov.uk/id/local-authority-district/23UB,Cheltenham Borough Council,439017,1520032044,SEVERN TRENT WATER AUTHORITY,C-C22140-1505,Nursery-Water rates - metered,20-Dec-10,18.11
http://statistics.data.gov.uk/id/local-authority-district/23UB,Cheltenham Borough Council,439017,1520032044,SEVERN TRENT WATER AUTHORITY,C-C22140-1505,Nursery-Water rates - metered,20-Dec-10,15.72
http://statistics.data.gov.uk/id/local-authority-district/23UB,Cheltenham Borough Council,439082,1520032044,SEVERN TRENT WATER AUTHORITY,C-C22140-1505,Nursery-Water rates - metered,23-Dec-10,"1,356.00"
http://statistics.data.gov.uk/id/local-authority-district/23UB,Cheltenham Borough Council,439082,1520032044,SEVERN TRENT WATER AUTHORITY,C-C22140-1505,Nursery-Water rates - metered,23-Dec-10,"1,483.04"
http://statistics.data.gov.uk/id/local-authority-district/23UB,Cheltenham Borough Council,439082,1520032044,SEVERN TRENT WATER AUTHORITY,C-C22140-1505,Nursery-Water rates - metered,23-Dec-10,19.89
http://statistics.data.gov.uk/id/local-authority-district/23UB,Cheltenham Borough Council,439082,1520032044,SEVERN TRENT WATER AUTHORITY,C-C22140-1505,Nursery-Water rates - metered,23-Dec-10,-98.17
http://statistics.data.gov.uk/id/local-authority-district/23UB,Cheltenham Borough Council,439082,1520032044,SEVERN TRENT WATER AUTHORITY,C-C22140-1505,Nursery-Water rates - metered,23-Dec-10,22.91
http://statistics.data.gov.uk/id/local-authority-district/23UB,Cheltenham Borough Council,439082,1520032044,SEVERN TRENT WATER AUTHORITY,C-C22140-1505,Nursery-Water rates - metered,23-Dec-10,20.95
http://statistics.data.gov.uk/id/local-authority-district/23UB,Cheltenham Borough Council,439082,1520032044,SEVERN TRENT WATER AUTHORITY,C-C22140-1505,Nursery-Water rates - metered,23-Dec-10,19.25
http://statistics.data.gov.uk/id/local-authority-district/23UB,Cheltenham Borough Council,439083,645028137,SEVERN TRENT WATER AUTHORITY,C-C22110-1505,Parks & Gardens-Water rates - metered,23-Dec-10,475.05
http://statistics.data.gov.uk/id/local-authority-district/23UB,Cheltenham Borough Council,439083,645028137,SEVERN TRENT WATER AUTHORITY,C-C22110-1505,Parks & Gardens-Water rates - metered,23-Dec-10,-0.09
http://statistics.data.gov.uk/id/local-authority-district/23UB,Cheltenham Borough Council,439083,645028137,SEVERN TRENT WATER AUTHORITY,C-C22110-1505,Parks & Gardens-Water rates - metered,23-Dec-10,17.33
http://statistics.data.gov.uk/id/local-authority-district/23UB,Cheltenham Borough Council,439074,5290047445,SEVERN TRENT WATER AUTHORITY,C-C22110-1505,Parks & Gardens-Water rates - metered,23-Dec-10,4.64
http://statistics.data.gov.uk/id/local-authority-district/23UB,Cheltenham Borough Council,439074,5290047445,SEVERN TRENT WATER AUTHORITY,C-C22110-1505,Parks & Gardens-Water rates - metered,23-Dec-10,16.14
http://statistics.data.gov.uk/id/local-authority-district/23UB,Cheltenham Borough Council,439074,5290047445,SEVERN TRENT WATER AUTHORITY,C-C22110-1505,Parks & Gardens-Water rates - metered,23-Dec-10,7.59
http://statistics.data.gov.uk/id/local-authority-district/23UB,Cheltenham Borough Council,439074,5290047445,SEVERN TRENT WATER AUTHORITY,C-C22110-1505,Parks & Gardens-Water rates - metered,23-Dec-10,-330.56
http://statistics.data.gov.uk/id/local-authority-district/23UB,Cheltenham Borough Council,439074,5290047445,SEVERN TRENT WATER AUTHORITY,C-C22110-1505,Parks & Gardens-Water rates - metered,23-Dec-10,3.70
http://statistics.data.gov.uk/id/local-authority-district/23UB,Cheltenham Borough Council,439074,5290047445,SEVERN TRENT WATER AUTHORITY,C-C22110-1505,Parks & Gardens-Water rates - metered,23-Dec-10,6.04
http://statistics.data.gov.uk/id/local-authority-district/23UB,Cheltenham Borough Council,439074,5290047445,SEVERN TRENT WATER AUTHORITY,C-C22110-1505,Parks & Gardens-Water rates - metered,23-Dec-10,12.39
http://statistics.data.gov.uk/id/local-authority-district/23UB,Cheltenham Borough Council,439074,5290047445,SEVERN TRENT WATER AUTHORITY,C-C22110-1505,Parks & Gardens-Water rates - metered,23-Dec-10,6.17
http://statistics.data.gov.uk/id/local-authority-district/23UB,Cheltenham Borough Council,439074,5290047445,SEVERN TRENT WATER AUTHORITY,C-C22110-1505,Parks & Gardens-Water rates - metered,23-Dec-10,3.01
http://statistics.data.gov.uk/id/local-authority-district/23UB,Cheltenham Borough Council,438757,377381,SEVERNSIDE SAFETY SUPPLIES LTD,C-C23190-3301,Garden Collectn-Clothing & uniforms,16-Dec-10,14.44
http://statistics.data.gov.uk/id/local-authority-district/23UB,Cheltenham Borough Council,438771,377439,SEVERNSIDE SAFETY SUPPLIES LTD,C-C22110-3301,Parks & Gardens-Clothing & uniforms,16-Dec-10,9.56
http://statistics.data.gov.uk/id/local-authority-district/23UB,Cheltenham Borough Council,438756,377454,SEVERNSIDE SAFETY SUPPLIES LTD,C-C23100-3301,Refuse Collctn-Clothing & uniforms,16-Dec-10,14.70
http://statistics.data.gov.uk/id/local-authority-district/23UB,Cheltenham Borough Council,438759,377459,SEVERNSIDE SAFETY SUPPLIES LTD,C-C23100-3301,Refuse Collctn-Clothing & uniforms,16-Dec-10,13.00
http://statistics.data.gov.uk/id/local-authority-district/23UB,Cheltenham Borough Council,438755,377480,SEVERNSIDE SAFETY SUPPLIES LTD,C-C23110-3301,Street Cleaning-Clothing & uniforms,16-Dec-10,24.48
http://statistics.data.gov.uk/id/local-authority-district/23UB,Cheltenham Borough Council,438773,377493,SEVERNSIDE SAFETY SUPPLIES LTD,C-C22120-3301,Spts/Open Space-Clothing & uniforms,16-Dec-10,24.12
http://statistics.data.gov.uk/id/local-authority-district/23UB,Cheltenham Borough Council,438520,377523,SEVERNSIDE SAFETY SUPPLIES LTD,C-N42250-3112,DSO Stores - Stock purchases,16-Dec-10,360.00
http://statistics.data.gov.uk/id/local-authority-district/23UB,Cheltenham Borough Council,438774,377531,SEVERNSIDE SAFETY SUPPLIES LTD,C-C22120-3301,Spts/Open Space-Clothing & uniforms,16-Dec-10,15.00
http://statistics.data.gov.uk/id/local-authority-district/23UB,Cheltenham Borough Council,438760,377601,SEVERNSIDE SAFETY SUPPLIES LTD,C-C23100-3301,Refuse Collctn-Clothing & uniforms,16-Dec-10,13.10
http://statistics.data.gov.uk/id/local-authority-district/23UB,Cheltenham Borough Council,438967,377842,SEVERNSIDE SAFETY SUPPLIES LTD,C-N42250-3112,DSO Stores - Stock purchases,16-Dec-10,87.92
http://statistics.data.gov.uk/id/local-authority-district/23UB,Cheltenham Borough Council,438109,119143,SEVERNPRINT LIMITED,C-0T70L0-3527,Folk Festival-Distribution/Mailing,03-Dec-10,829.00
http://statistics.data.gov.uk/id/local-authority-district/23UB,Cheltenham Borough Council,438109,119143,SEVERNPRINT LIMITED,C-0T70L0-3527,Folk Festival-Distribution/Mailing,03-Dec-10,391.00
http://statistics.data.gov.uk/id/local-authority-district/23UB,Cheltenham Borough Council,438865,73291,SIGNCRAFT (CHELTENHAM) LTD,C-E21100-3401,Car Prks-Off St-Printing - general,16-Dec-10,140.96
http://statistics.data.gov.uk/id/local-authority-district/23UB,Cheltenham Borough Council,438870,73339,SIGNCRAFT (CHELTENHAM) LTD,C-E21100-3401,Car Prks-Off St-Printing - general,16-Dec-10,497.42
http://statistics.data.gov.uk/id/local-authority-district/23UB,Cheltenham Borough Council,438269,GRANT,SILVER DELIGHTS,C-D34400-3862,Bus & Econ Dev-Grants - Local G.E.A. Con,08-Dec-10,805.00
http://statistics.data.gov.uk/id/local-authority-district/23UB,Cheltenham Borough Council,439089,REDACTED,REDACTED,C-H22400-3244,Homelessness-Supporting People,23-Dec-10,500.00
http://statistics.data.gov.uk/id/local-authority-district/23UB,Cheltenham Borough Council,439150,35728,SKIP UNITS LIMITED,C-C23120-3501,Recycling Cntr-Hire of outside services,30-Dec-10,"4,990.00"
http://statistics.data.gov.uk/id/local-authority-district/23UB,Cheltenham Borough Council,438213,016086,SMP PLAYGROUNDS LTD,C-LC6006-C601,Play Area Maint-Equipment,08-Dec-10,284.20
http://statistics.data.gov.uk/id/local-authority-district/23UB,Cheltenham Borough Council,438213,016086,SMP PLAYGROUNDS LTD,C-LC6006-C601,Play Area Maint-Equipment,08-Dec-10,720.00
http://statistics.data.gov.uk/id/local-authority-district/23UB,Cheltenham Borough Council,438213,016086,SMP PLAYGROUNDS LTD,C-LC6006-C601,Play Area Maint-Equipment,08-Dec-10,"2,122.00"
http://statistics.data.gov.uk/id/local-authority-district/23UB,Cheltenham Borough Council,438661,CBC/001,MR FRANK SOO,C-0T31J1-3568,New Years Eve-Artist Fees,16-Dec-10,"2,000.00"
http://statistics.data.gov.uk/id/local-authority-district/23UB,Cheltenham Borough Council,438619,101299353 0023,SOUTHERN ELECTRIC PLC,C-H33700-1402,Estate Services-Electricity,16-Dec-10,100.33
http://statistics.data.gov.uk/id/local-authority-district/23UB,Cheltenham Borough Council,438599,121300540 0012,SOUTHERN ELECTRIC PLC,C-H33700-1402,Estate Services-Electricity,16-Dec-10,-71.72
http://statistics.data.gov.uk/id/local-authority-district/23UB,Cheltenham Borough Council,438601,121300540 0013,SOUTHERN ELECTRIC PLC,C-H33700-1402,Estate Services-Electricity,16-Dec-10,-84.53
http://statistics.data.gov.uk/id/local-authority-district/23UB,Cheltenham Borough Council,438602,121300540 0014,SOUTHERN ELECTRIC PLC,C-H33700-1402,Estate Services-Electricity,16-Dec-10,-79.15
http://statistics.data.gov.uk/id/local-authority-district/23UB,Cheltenham Borough Council,438603,121300540 0015,SOUTHERN ELECTRIC PLC,C-H33700-1402,Estate Services-Electricity,16-Dec-10,-156.60
http://statistics.data.gov.uk/id/local-authority-district/23UB,Cheltenham Borough Council,438604,121300540 0016,SOUTHERN ELECTRIC PLC,C-H33700-1402,Estate Services-Electricity,16-Dec-10,-69.67
http://statistics.data.gov.uk/id/local-authority-district/23UB,Cheltenham Borough Council,438605,121300540 0017,SOUTHERN ELECTRIC PLC,C-H33700-1402,Estate Services-Electricity,16-Dec-10,-91.96
http://statistics.data.gov.uk/id/local-authority-district/23UB,Cheltenham Borough Council,438606,121300540 0018,SOUTHERN ELECTRIC PLC,C-H33700-1402,Estate Services-Electricity,16-Dec-10,-74.54
http://statistics.data.gov.uk/id/local-authority-district/23UB,Cheltenham Borough Council,438607,121300540 0019,SOUTHERN ELECTRIC PLC,C-H33700-1402,Estate Services-Electricity,16-Dec-10,-137.22
http://statistics.data.gov.uk/id/local-authority-district/23UB,Cheltenham Borough Council,438608,121300540 0020,SOUTHERN ELECTRIC PLC,C-H33700-1402,Estate Services-Electricity,16-Dec-10,28.93
http://statistics.data.gov.uk/id/local-authority-district/23UB,Cheltenham Borough Council,438609,121300540 0021,SOUTHERN ELECTRIC PLC,C-H33700-1402,Estate Services-Electricity,16-Dec-10,28.93
http://statistics.data.gov.uk/id/local-authority-district/23UB,Cheltenham Borough Council,438611,121300540 0022,SOUTHERN ELECTRIC PLC,C-H33700-1402,Estate Services-Electricity,16-Dec-10,28.93
http://statistics.data.gov.uk/id/local-authority-district/23UB,Cheltenham Borough Council,438612,121300540 0023,SOUTHERN ELECTRIC PLC,C-H33700-1402,Estate Services-Electricity,16-Dec-10,28.93
http://statistics.data.gov.uk/id/local-authority-district/23UB,Cheltenham Borough Council,438614,121300540 0024,SOUTHERN ELECTRIC PLC,C-H33700-1402,Estate Services-Electricity,16-Dec-10,28.93
http://statistics.data.gov.uk/id/local-authority-district/23UB,Cheltenham Borough Council,438615,121300540 0025,SOUTHERN ELECTRIC PLC,C-H33700-1402,Estate Services-Electricity,16-Dec-10,28.93
http://statistics.data.gov.uk/id/local-authority-district/23UB,Cheltenham Borough Council,438616,121300540 0026,SOUTHERN ELECTRIC PLC,C-H33700-1402,Estate Services-Electricity,16-Dec-10,28.93
http://statistics.data.gov.uk/id/local-authority-district/23UB,Cheltenham Borough Council,438617,121300540 0027,SOUTHERN ELECTRIC PLC,C-H33700-1402,Estate Services-Electricity,16-Dec-10,29.27
http://statistics.data.gov.uk/id/local-authority-district/23UB,Cheltenham Borough Council,438621,411319491 0026,SOUTHERN ELECTRIC PLC,C-H33700-1402,Estate Services-Electricity,16-Dec-10,58.22
http://statistics.data.gov.uk/id/local-authority-district/23UB,Cheltenham Borough Council,438618,461299181 0023,SOUTHERN ELECTRIC PLC,C-H33700-1402,Estate Services-Electricity,16-Dec-10,58.22
http://statistics.data.gov.uk/id/local-authority-district/23UB,Cheltenham Borough Council,438620,811299636 0021,SOUTHERN ELECTRIC PLC,C-H33700-1402,Estate Services-Electricity,16-Dec-10,103.66
http://statistics.data.gov.uk/id/local-authority-district/23UB,Cheltenham Borough Council,438622,031299792 0021,SOUTHERN ELECTRIC PLC,C-H33700-1402,Estate Services-Electricity,16-Dec-10,102.03
http://statistics.data.gov.uk/id/local-authority-district/23UB,Cheltenham Borough Council,438623,801298994 0015,SOUTHERN ELECTRIC PLC,C-H33700-1402,Estate Services-Electricity,16-Dec-10,38.75
http://statistics.data.gov.uk/id/local-authority-district/23UB,Cheltenham Borough Council,438625,431299425 0021,SOUTHERN ELECTRIC PLC,C-H33700-1402,Estate Services-Electricity,16-Dec-10,113.26
http://statistics.data.gov.uk/id/local-authority-district/23UB,Cheltenham Borough Council,438624,451299055 0019,SOUTHERN ELECTRIC PLC,C-H33700-1402,Estate Services-Electricity,16-Dec-10,57.11
http://statistics.data.gov.uk/id/local-authority-district/23UB,Cheltenham Borough Council,438626,851299725 0021,SOUTHERN ELECTRIC PLC,C-H33700-1402,Estate Services-Electricity,16-Dec-10,66.25
http://statistics.data.gov.uk/id/local-authority-district/23UB,Cheltenham Borough Council,438628,961300260 0023,SOUTHERN ELECTRIC PLC,C-H33700-1402,Estate Services-Electricity,16-Dec-10,64.89
http://statistics.data.gov.uk/id/local-authority-district/23UB,Cheltenham Borough Council,438627,981298559 0021,SOUTHERN ELECTRIC PLC,C-H33700-1402,Estate Services-Electricity,16-Dec-10,178.87
http://statistics.data.gov.uk/id/local-authority-district/23UB,Cheltenham Borough Council,438552,321345435/0022,SOUTHERN ELECTRIC PLC,C-E61500-1402,CCTV/TC Sfty-Electricity,16-Dec-10,388.58
http://statistics.data.gov.uk/id/local-authority-district/23UB,Cheltenham Borough Council,438629,481299264 0021,SOUTHERN ELECTRIC PLC,C-H33700-1402,Estate Services-Electricity,16-Dec-10,132.95
http://statistics.data.gov.uk/id/local-authority-district/23UB,Cheltenham Borough Council,438501,OP/L247917,SPECIALIST COMPUTER CENTRES PLC,C-GCERP-3623,GO Cap Cost ERP  Implementation Prjct,16-Dec-10,"208,000.00"
http://statistics.data.gov.uk/id/local-authority-district/23UB,Cheltenham Borough Council,437781,11763624,SPOT ON SUPPLIES LTD,C-L21100-1702,Town Hall-Cleaning materials,01-Dec-10,102.18
http://statistics.data.gov.uk/id/local-authority-district/23UB,Cheltenham Borough Council,437823,11763767,SPOT ON SUPPLIES LTD,C-L21200-1702,Pump Room-Cleaning materials,01-Dec-10,73.20
http://statistics.data.gov.uk/id/local-authority-district/23UB,Cheltenham Borough Council,437785,11764453,SPOT ON SUPPLIES LTD,C-L21100-1702,Town Hall-Cleaning materials,01-Dec-10,408.72
http://statistics.data.gov.uk/id/local-authority-district/23UB,Cheltenham Borough Council,438877,11762991,SPOT ON SUPPLIES LTD,C-L21100-1702,Town Hall-Cleaning materials,16-Dec-10,13.20
http://statistics.data.gov.uk/id/local-authority-district/23UB,Cheltenham Borough Council,438877,11762991,SPOT ON SUPPLIES LTD,C-L21100-1702,Town Hall-Cleaning materials,16-Dec-10,15.08
http://statistics.data.gov.uk/id/local-authority-district/23UB,Cheltenham Borough Council,438877,11762991,SPOT ON SUPPLIES LTD,C-L21100-1702,Town Hall-Cleaning materials,16-Dec-10,20.22
http://statistics.data.gov.uk/id/local-authority-district/23UB,Cheltenham Borough Council,438877,11762991,SPOT ON SUPPLIES LTD,C-L21100-1702,Town Hall-Cleaning materials,16-Dec-10,12.21
http://statistics.data.gov.uk/id/local-authority-district/23UB,Cheltenham Borough Council,438877,11762991,SPOT ON SUPPLIES LTD,C-L21100-1702,Town Hall-Cleaning materials,16-Dec-10,13.20
http://statistics.data.gov.uk/id/local-authority-district/23UB,Cheltenham Borough Council,438875,11764930,SPOT ON SUPPLIES LTD,C-L21200-1702,Pump Room-Cleaning materials,16-Dec-10,170.80
http://statistics.data.gov.uk/id/local-authority-district/23UB,Cheltenham Borough Council,438739,11765538,SPOT ON SUPPLIES LTD,C-L41100-1702,AG & M-Cleaning materials,16-Dec-10,98.15
http://statistics.data.gov.uk/id/local-authority-district/23UB,Cheltenham Borough Council,438739,11765538,SPOT ON SUPPLIES LTD,C-L41100-1702,AG & M-Cleaning materials,16-Dec-10,14.44
http://statistics.data.gov.uk/id/local-authority-district/23UB,Cheltenham Borough Council,438880,11765772,SPOT ON SUPPLIES LTD,C-L21100-1702,Town Hall-Cleaning materials,16-Dec-10,13.20
http://statistics.data.gov.uk/id/local-authority-district/23UB,Cheltenham Borough Council,438880,11765772,SPOT ON SUPPLIES LTD,C-L21100-1702,Town Hall-Cleaning materials,16-Dec-10,26.76
http://statistics.data.gov.uk/id/local-authority-district/23UB,Cheltenham Borough Council,438880,11765772,SPOT ON SUPPLIES LTD,C-L21100-1702,Town Hall-Cleaning materials,16-Dec-10,7.90
http://statistics.data.gov.uk/id/local-authority-district/23UB,Cheltenham Borough Council,438880,11765772,SPOT ON SUPPLIES LTD,C-L21100-1702,Town Hall-Cleaning materials,16-Dec-10,28.32
http://statistics.data.gov.uk/id/local-authority-district/23UB,Cheltenham Borough Council,438880,11765772,SPOT ON SUPPLIES LTD,C-L21100-1702,Town Hall-Cleaning materials,16-Dec-10,13.38
http://statistics.data.gov.uk/id/local-authority-district/23UB,Cheltenham Borough Council,438880,11765772,SPOT ON SUPPLIES LTD,C-L21100-1702,Town Hall-Cleaning materials,16-Dec-10,13.20
http://statistics.data.gov.uk/id/local-authority-district/23UB,Cheltenham Borough Council,438880,11765772,SPOT ON SUPPLIES LTD,C-L21100-1702,Town Hall-Cleaning materials,16-Dec-10,163.62
http://statistics.data.gov.uk/id/local-authority-district/23UB,Cheltenham Borough Council,438770,16194-CL,GB SPORT AND LEISURE,C-C22120-1119,Spts/Open Space-Playground Maint,16-Dec-10,290.00
http://statistics.data.gov.uk/id/local-authority-district/23UB,Cheltenham Borough Council,438770,16194-CL,GB SPORT AND LEISURE,C-C22120-1119,Spts/Open Space-Playground Maint,16-Dec-10,110.00
http://statistics.data.gov.uk/id/local-authority-district/23UB,Cheltenham Borough Council,438770,16194-CL,GB SPORT AND LEISURE,C-C22120-1119,Spts/Open Space-Playground Maint,16-Dec-10,88.00
http://statistics.data.gov.uk/id/local-authority-district/23UB,Cheltenham Borough Council,438770,16194-CL,GB SPORT AND LEISURE,C-C22120-1119,Spts/Open Space-Playground Maint,16-Dec-10,120.00
http://statistics.data.gov.uk/id/local-authority-district/23UB,Cheltenham Borough Council,439059,2712,STAR 107.5 FM,C-L11500-3510,Rec Facilities-Promotion & Marketing,23-Dec-10,"3,000.00"
http://statistics.data.gov.uk/id/local-authority-district/23UB,Cheltenham Borough Council,437918,213009069,STARTRAC,C-L11500-3167,Rec Facilities-Maintenance Agreements,01-Dec-10,85.00
http://statistics.data.gov.uk/id/local-authority-district/23UB,Cheltenham Borough Council,437918,213009069,STARTRAC,C-L11500-3167,Rec Facilities-Maintenance Agreements,01-Dec-10,481.00
http://statistics.data.gov.uk/id/local-authority-district/23UB,Cheltenham Borough Council,437917,213009599,STARTRAC,C-L11500-3101,Rec Facilities-Equipment purchases,01-Dec-10,37.80
http://statistics.data.gov.uk/id/local-authority-district/23UB,Cheltenham Borough Council,437917,213009599,STARTRAC,C-L11500-3101,Rec Facilities-Equipment purchases,01-Dec-10,50.25
http://statistics.data.gov.uk/id/local-authority-district/23UB,Cheltenham Borough Council,437917,213009599,STARTRAC,C-L11500-3101,Rec Facilities-Equipment purchases,01-Dec-10,47.97
http://statistics.data.gov.uk/id/local-authority-district/23UB,Cheltenham Borough Council,437860,139,THE STABLE COMPANY,C-D21970-3677,Parish Pride-Parish Council - Community,01-Dec-10,"1,500.00"
http://statistics.data.gov.uk/id/local-authority-district/23UB,Cheltenham Borough Council,437810,09-062,S3IA LTD,C-D11820-3890,IT Infrastructu-Subscriptions - general,01-Dec-10,500.00
http://statistics.data.gov.uk/id/local-authority-district/23UB,Cheltenham Borough Council,439002,COMM PRIDE,ST MARGARETS HALL USERS GROUP,C-D21970-3677,Parish Pride-Parish Council - Community,16-Dec-10,"3,396.00"
http://statistics.data.gov.uk/id/local-authority-district/23UB,Cheltenham Borough Council,437792,400378517,STROUD DISTRICT COUNCIL,C-C23180-3501,Rcycl Cltn Schm-Hire of outside services,01-Dec-10,"5,000.00"
http://statistics.data.gov.uk/id/local-authority-district/23UB,Cheltenham Borough Council,437956,002015,SYSTEM 6,C-PM0042-R048,Pavillions-Other Internal Improvements,01-Dec-10,"1,173.00"
http://statistics.data.gov.uk/id/local-authority-district/23UB,Cheltenham Borough Council,437824,002020,SYSTEM 6,C-L21200-1807,Pump Room-RM-Vandalism,01-Dec-10,273.00
http://statistics.data.gov.uk/id/local-authority-district/23UB,Cheltenham Borough Council,437784,002023,SYSTEM 6,C-L21100-1805,Town Hall-RM-Int. fixtures/fittings,01-Dec-10,55.00
http://statistics.data.gov.uk/id/local-authority-district/23UB,Cheltenham Borough Council,437784,002023,SYSTEM 6,C-L21100-1805,Town Hall-RM-Int. fixtures/fittings,01-Dec-10,471.20
http://statistics.data.gov.uk/id/local-authority-district/23UB,Cheltenham Borough Council,437784,002023,SYSTEM 6,C-L21100-1805,Town Hall-RM-Int. fixtures/fittings,01-Dec-10,85.00
http://statistics.data.gov.uk/id/local-authority-district/23UB,Cheltenham Borough Council,438068,00982,SYSTEM 6,C-C22110-1808,Parks & Gardens-RM-Routine works,03-Dec-10,255.00
http://statistics.data.gov.uk/id/local-authority-district/23UB,Cheltenham Borough Council,438068,00982,SYSTEM 6,C-C22110-1808,Parks & Gardens-RM-Routine works,03-Dec-10,115.00
http://statistics.data.gov.uk/id/local-authority-district/23UB,Cheltenham Borough Council,438068,00982,SYSTEM 6,C-C22110-1808,Parks & Gardens-RM-Routine works,03-Dec-10,115.00
http://statistics.data.gov.uk/id/local-authority-district/23UB,Cheltenham Borough Council,438068,00982,SYSTEM 6,C-C22110-1808,Parks & Gardens-RM-Routine works,03-Dec-10,175.00
http://statistics.data.gov.uk/id/local-authority-district/23UB,Cheltenham Borough Council,438068,00982,SYSTEM 6,C-C22140-1808,Nursery-RM-Routine works,03-Dec-10,200.00
http://statistics.data.gov.uk/id/local-authority-district/23UB,Cheltenham Borough Council,438068,00982,SYSTEM 6,C-D14100-1808,Depot Building-RM-Routine works,03-Dec-10,725.00
http://statistics.data.gov.uk/id/local-authority-district/23UB,Cheltenham Borough Council,438068,00982,SYSTEM 6,C-D30200-1808,Misc Props & Ld-RM-Routine works,03-Dec-10,255.00
http://statistics.data.gov.uk/id/local-authority-district/23UB,Cheltenham Borough Council,438068,00982,SYSTEM 6,C-D30200-1808,Misc Props & Ld-RM-Routine works,03-Dec-10,125.00
http://statistics.data.gov.uk/id/local-authority-district/23UB,Cheltenham Borough Council,438068,00982,SYSTEM 6,C-D30200-1808,Misc Props & Ld-RM-Routine works,03-Dec-10,125.00
http://statistics.data.gov.uk/id/local-authority-district/23UB,Cheltenham Borough Council,438068,00982,SYSTEM 6,C-L11500-1808,Rec Facilities-RM-Routine works,03-Dec-10,125.00
http://statistics.data.gov.uk/id/local-authority-district/23UB,Cheltenham Borough Council,438068,00982,SYSTEM 6,C-L11500-1808,Rec Facilities-RM-Routine works,03-Dec-10,435.00
http://statistics.data.gov.uk/id/local-authority-district/23UB,Cheltenham Borough Council,438068,00982,SYSTEM 6,C-L21400-1808,Stanton Room-RM-Routine works,03-Dec-10,100.00
http://statistics.data.gov.uk/id/local-authority-district/23UB,Cheltenham Borough Council,438070,002017,SYSTEM 6,C-D23060-3501,Rem Sunday-Hire of outside services,03-Dec-10,677.00
http://statistics.data.gov.uk/id/local-authority-district/23UB,Cheltenham Borough Council,438069,002021,SYSTEM 6,C-PM0091-R003,EverymanTheatre-External Re-decoration,03-Dec-10,"2,066.00"
http://statistics.data.gov.uk/id/local-authority-district/23UB,Cheltenham Borough Council,438071,002025,SYSTEM 6,C-E63100-1807,Cemetery & Crem-RM-Vandalism,03-Dec-10,405.00
http://statistics.data.gov.uk/id/local-authority-district/23UB,Cheltenham Borough Council,438232,00958,SYSTEM 6,C-C22110-1805,Parks & Gardens-RM-Int. fixtures/fitting,08-Dec-10,230.00
http://statistics.data.gov.uk/id/local-authority-district/23UB,Cheltenham Borough Council,438227,002024,SYSTEM 6,C-L41100-1808,AG & M-RM-Routine works,08-Dec-10,50.00
http://statistics.data.gov.uk/id/local-authority-district/23UB,Cheltenham Borough Council,438376,002026,SYSTEM 6,C-L11500-1805,Rec Facilities-RM-Int. fixtures/fittings,08-Dec-10,30.00
http://statistics.data.gov.uk/id/local-authority-district/23UB,Cheltenham Borough Council,438228,002027,SYSTEM 6,C-L11500-1806,Rec Facilities-RM-Ext. fixtures/fittings,08-Dec-10,146.00
http://statistics.data.gov.uk/id/local-authority-district/23UB,Cheltenham Borough Council,438229,002028,SYSTEM 6,C-C22120-1804,Sports & Open S-RM-External structures,08-Dec-10,123.00
http://statistics.data.gov.uk/id/local-authority-district/23UB,Cheltenham Borough Council,438230,002029,SYSTEM 6,C-C22120-1804,Sports & Open S-RM-External structures,08-Dec-10,65.50
http://statistics.data.gov.uk/id/local-authority-district/23UB,Cheltenham Borough Council,438233,002030,SYSTEM 6,C-C22120-1806,Sports & Open S-RM-Ext. fixtures/fitting,08-Dec-10,127.14
http://statistics.data.gov.uk/id/local-authority-district/23UB,Cheltenham Borough Council,438231,002031,SYSTEM 6,C-D13100-1808,Muni Off Blgs-RM-Routine works,08-Dec-10,191.50
http://statistics.data.gov.uk/id/local-authority-district/23UB,Cheltenham Borough Council,438234,002032,SYSTEM 6,C-D13100-1808,Muni Off Blgs-RM-Routine works,08-Dec-10,623.90
http://statistics.data.gov.uk/id/local-authority-district/23UB,Cheltenham Borough Council,438220,42949,TECHNIX RUBBER & PLASTICS LTD,C-LC6006-C601,Play Area Maint-Equipment,08-Dec-10,"2,628.00"
http://statistics.data.gov.uk/id/local-authority-district/23UB,Cheltenham Borough Council,438220,42949,TECHNIX RUBBER & PLASTICS LTD,C-LC6006-C601,Play Area Maint-Equipment,08-Dec-10,270.00
http://statistics.data.gov.uk/id/local-authority-district/23UB,Cheltenham Borough Council,438220,42949,TECHNIX RUBBER & PLASTICS LTD,C-LC6006-C601,Play Area Maint-Equipment,08-Dec-10,155.00
http://statistics.data.gov.uk/id/local-authority-district/23UB,Cheltenham Borough Council,438220,42949,TECHNIX RUBBER & PLASTICS LTD,C-LC6006-C601,Play Area Maint-Equipment,08-Dec-10,48.00
http://statistics.data.gov.uk/id/local-authority-district/23UB,Cheltenham Borough Council,437989,1148,TEWKESBURY BOROUGH COUNCIL,C-E72500-0204,Built Env Div-Training fees/exp (Prof),01-Dec-10,11.20
http://statistics.data.gov.uk/id/local-authority-district/23UB,Cheltenham Borough Council,437855,DC000851,TEWKESBURY BOROUGH COUNCIL,C-B51145-3501,Joint Core Stra-Hire of outside services,01-Dec-10,"11,853.00"
http://statistics.data.gov.uk/id/local-authority-district/23UB,Cheltenham Borough Council,438094,LG00002406,TEWKESBURY BOROUGH COUNCIL,C-GO7-0220,GO7 Project-Other employee expenses,03-Dec-10,537.48
http://statistics.data.gov.uk/id/local-authority-district/23UB,Cheltenham Borough Council,438363,LG00002383,TEWKESBURY BOROUGH COUNCIL,C-H22225-3501,Housing Standards-Hire of o/side service,08-Dec-10,"1,191.00"
http://statistics.data.gov.uk/id/local-authority-district/23UB,Cheltenham Borough Council,438555,CHELT- NOVEMB,TRADITION (UK) LIMITED,C-D32700-3994,Debt Mgt-Brokerage,16-Dec-10,"2,013.70"
http://statistics.data.gov.uk/id/local-authority-district/23UB,Cheltenham Borough Council,438078,INV36027,TRIANGLE LIFT SERVICES  LIMITED,C-H46150-1104,Lift.Service-Council House repairs,03-Dec-10,275.50
http://statistics.data.gov.uk/id/local-authority-district/23UB,Cheltenham Borough Council,438079,INV36029,TRIANGLE LIFT SERVICES  LIMITED,C-H46150-1104,Lift.Service-Council House repairs,03-Dec-10,63.00
http://statistics.data.gov.uk/id/local-authority-district/23UB,Cheltenham Borough Council,438081,INV36589,TRIANGLE LIFT SERVICES  LIMITED,C-H46150-1104,Lift.Service-Council House repairs,03-Dec-10,355.50
http://statistics.data.gov.uk/id/local-authority-district/23UB,Cheltenham Borough Council,438085,INV36616,TRIANGLE LIFT SERVICES  LIMITED,C-H46150-1104,Lift.Service-Council House repairs,03-Dec-10,389.50
http://statistics.data.gov.uk/id/local-authority-district/23UB,Cheltenham Borough Council,438084,INV36622,TRIANGLE LIFT SERVICES  LIMITED,C-H46150-1104,Lift.Service-Council House repairs,03-Dec-10,246.50
http://statistics.data.gov.uk/id/local-authority-district/23UB,Cheltenham Borough Council,438082,INV36689,TRIANGLE LIFT SERVICES  LIMITED,C-H46150-1104,Lift.Service-Council House repairs,03-Dec-10,107.00
http://statistics.data.gov.uk/id/local-authority-district/23UB,Cheltenham Borough Council,438083,INV36702,TRIANGLE LIFT SERVICES  LIMITED,C-H46150-1104,Lift.Service-Council House repairs,03-Dec-10,225.00
http://statistics.data.gov.uk/id/local-authority-district/23UB,Cheltenham Borough Council,438080,INV36767,TRIANGLE LIFT SERVICES  LIMITED,C-H46150-1104,Lift.Service-Council House repairs,03-Dec-10,544.50
http://statistics.data.gov.uk/id/local-authority-district/23UB,Cheltenham Borough Council,438502,INV37190,TRIANGLE LIFT SERVICES  LIMITED,C-L21100-1220,Town Hall-Lift repairs,16-Dec-10,806.50
http://statistics.data.gov.uk/id/local-authority-district/23UB,Cheltenham Borough Council,439054,36998,TRIANGLE LIFT SERVICES  LIMITED,C-H46150-1104,Lift.Service-Council House repairs,23-Dec-10,85.00
http://statistics.data.gov.uk/id/local-authority-district/23UB,Cheltenham Borough Council,439053,37041,TRIANGLE LIFT SERVICES  LIMITED,C-H46150-1104,Lift.Service-Council House repairs,23-Dec-10,107.00
http://statistics.data.gov.uk/id/local-authority-district/23UB,Cheltenham Borough Council,439055,37047,TRIANGLE LIFT SERVICES  LIMITED,C-H46150-1104,Lift.Service-Council House repairs,23-Dec-10,97.50
http://statistics.data.gov.uk/id/local-authority-district/23UB,Cheltenham Borough Council,439042,37107,TRIANGLE LIFT SERVICES  LIMITED,C-HC4068-C302,Sheltered Hsg-Building Contractor,23-Dec-10,261.50
http://statistics.data.gov.uk/id/local-authority-district/23UB,Cheltenham Borough Council,439056,37162,TRIANGLE LIFT SERVICES  LIMITED,C-H46150-1104,Lift.Service-Council House repairs,23-Dec-10,215.00
http://statistics.data.gov.uk/id/local-authority-district/23UB,Cheltenham Borough Council,439099,H1419,TRIANGLE LIFT SERVICES  LIMITED,C-H46150-1104,Lift.Service-Council House repairs,23-Dec-10,"5,026.68"
http://statistics.data.gov.uk/id/local-authority-district/23UB,Cheltenham Borough Council,438217,76344,TUDOR ENVIRONMENTAL,C-C22120-3101,Spts/Open Space-Equipment purchases,08-Dec-10,63.00
http://statistics.data.gov.uk/id/local-authority-district/23UB,Cheltenham Borough Council,438217,76344,TUDOR ENVIRONMENTAL,C-C22120-3101,Spts/Open Space-Equipment purchases,08-Dec-10,33.00
http://statistics.data.gov.uk/id/local-authority-district/23UB,Cheltenham Borough Council,438223,76431,TUDOR ENVIRONMENTAL,C-C22140-3123,Nursery-Materials-Int Landscaping,08-Dec-10,375.00
http://statistics.data.gov.uk/id/local-authority-district/23UB,Cheltenham Borough Council,438223,76431,TUDOR ENVIRONMENTAL,C-C22140-3123,Nursery-Materials-Int Landscaping,08-Dec-10,34.32
http://statistics.data.gov.uk/id/local-authority-district/23UB,Cheltenham Borough Council,438891,3904,EVENT STAFF,C-0T04H1-3501,Marty Wilde-Hire of outside services,16-Dec-10,296.00
http://statistics.data.gov.uk/id/local-authority-district/23UB,Cheltenham Borough Council,438887,3905,EVENT STAFF,C-0T05H1-3501,Max Rhythm Blue-Hire of outside services,16-Dec-10,296.00
http://statistics.data.gov.uk/id/local-authority-district/23UB,Cheltenham Borough Council,438892,3920,EVENT STAFF,C-0T27H1-3501,Paul Carrack-Hire of outside services,16-Dec-10,192.00
http://statistics.data.gov.uk/id/local-authority-district/23UB,Cheltenham Borough Council,438121,INV38021,UPS SYSTEMS PLC,C-D11820-3660,IT Infrastructu-Hardware PC & Servers,03-Dec-10,"2,025.00"
http://statistics.data.gov.uk/id/local-authority-district/23UB,Cheltenham Borough Council,438121,INV38021,UPS SYSTEMS PLC,C-D11820-3660,IT Infrastructu-Hardware PC & Servers,03-Dec-10,30.00
http://statistics.data.gov.uk/id/local-authority-district/23UB,Cheltenham Borough Council,438897,USS015464,UNIQUE SOUND SYSTEMS,C-0T10H1-3151,Sean Lock-Specialist Equipment,16-Dec-10,240.00
http://statistics.data.gov.uk/id/local-authority-district/23UB,Cheltenham Borough Council,438896,USS015465,UNIQUE SOUND SYSTEMS,C-0T90H0-3559,Hirers-Recoverable Event Exp,16-Dec-10,200.00
http://statistics.data.gov.uk/id/local-authority-district/23UB,Cheltenham Borough Council,438895,USS002,UNIQUE SOUND SYSTEMS,C-0T90H0-3559,Hirers-Recoverable Event Exp,16-Dec-10,224.00
http://statistics.data.gov.uk/id/local-authority-district/23UB,Cheltenham Borough Council,438874,CHL00106,VERRUS (UK) LTD,C-E21100-8571,Car Prks-Off St-Fees-Bath Road c/p,16-Dec-10,56.26
http://statistics.data.gov.uk/id/local-authority-district/23UB,Cheltenham Borough Council,438874,CHL00106,VERRUS (UK) LTD,C-E21100-8572,Car Prks-Off St-Fees-Bath Terrace c/p,16-Dec-10,14.96
http://statistics.data.gov.uk/id/local-authority-district/23UB,Cheltenham Borough Council,438874,CHL00106,VERRUS (UK) LTD,C-E21100-8573,Car Prks-Off St-Fees-Commercial St c/p,16-Dec-10,0.35
http://statistics.data.gov.uk/id/local-authority-district/23UB,Cheltenham Borough Council,438874,CHL00106,VERRUS (UK) LTD,C-E21100-8574,Car Prks-Off St-Fees-Grosvenor Tce c/p,16-Dec-10,37.13
http://statistics.data.gov.uk/id/local-authority-district/23UB,Cheltenham Borough Council,438874,CHL00106,VERRUS (UK) LTD,C-E21100-8576,Car Prks-Off St-Fees-High Street Car Par,16-Dec-10,28.35
http://statistics.data.gov.uk/id/local-authority-district/23UB,Cheltenham Borough Council,438874,CHL00106,VERRUS (UK) LTD,C-E21100-8578,Car Prks-Off St-Fees-Chelt Walk Car Park,16-Dec-10,168.43
http://statistics.data.gov.uk/id/local-authority-district/23UB,Cheltenham Borough Council,438874,CHL00106,VERRUS (UK) LTD,C-E21100-8579,Car Prks-Off St-Fees-Phoenix Passage c/p,16-Dec-10,7.57
http://statistics.data.gov.uk/id/local-authority-district/23UB,Cheltenham Borough Council,438874,CHL00106,VERRUS (UK) LTD,C-E21100-8580,Car Prks-Off St-Fees-Portland Street c/p,16-Dec-10,87.39
http://statistics.data.gov.uk/id/local-authority-district/23UB,Cheltenham Borough Council,438874,CHL00106,VERRUS (UK) LTD,C-E21100-8582,Car Prks-Off St-Fees-Rodney Road Car Par,16-Dec-10,138.70
http://statistics.data.gov.uk/id/local-authority-district/23UB,Cheltenham Borough Council,438874,CHL00106,VERRUS (UK) LTD,C-E21100-8583,Car Prks-Off St-Fees-Sherborne Place c/p,16-Dec-10,36.52
